Workbook

Sheet 1월
A2: 2020-01-10 | B2: 전체보기 | C2: 수입보기 | D2: 날짜내림정렬 | E2: 금액 \ 표시하기 | I2: 노트
B3: 12월 이월금 | D3: 날짜오름정렬
A4: 예산 사용 현황 | B4: 지출내역 | C4: 사용 예산 | D4: 실사용금액 | E4: 예산사용율 | F4: 예산 잔액 | G4: 초과 지출 소명
B5: 저축_투자 | C5: 410000 | D5: =SUMIF($C$25:$C$1000,B5,$F$25:$F$1000) -> 410000 | E5: =D5/C5 -> 1 | F5: =C5-D5 -> 0
B6: 주거 | C6: 397500 | D6: 365020 | E6: 0.9182893082 | F6: 32480
B7: 식비 | C7: 500000 | D7: 535140 | E7: 1.07028 | F7: -35140
B8: 생활용품 | C8: 50000 | D8: 195040 | E8: 3.9008 | F8: -145040
B9: 의복_미용 | C9: 30000 | D9: 49000 | E9: 1.633333333 | F9: -19000 | I9: 주거 | J9: =SUMIF($C$25:$C$1000,I9,$F$25:$F$1000) -> 365020 | K9: 전체 | M9: 수입내용 | O9: 비율 | Q9: 고정지출 | S9: 비율
B10: 건강 | C10: 50000 | D10: 27900 | E10: 0.558 | F10: 22100 | I10: 관리비 | J10: =SUMIF($D$25:$D$1000,I10,$F$25:$F$1000) -> 113490 | K10: =J10/$J$9 -> 0.3109144704 | M10: 월급 | N10: =SUMIF($D$25:$D$1000,M10,$F$25:$F$1000) -> 7138000 | O10: =N10/N13 -> 0.8563876948 | Q10: 신한저축 | R10: =SUMIF($D$25:$D$1000,Q10,$F$25:$F$1000) -> 0 | S10: =R10/$R$17 -> 0
B11: 자기계발 | C11: 50000 | D11: 85591 | E11: 1.71182 | F11: -35591 | I11: 도시가스 | J11: 66660 | K11: 0.1826201304 | M11: 기타수입 | N11: =SUMIF($D$25:$D$1000,M11,$F$25:$F$1000) -> 1197010 | O11: =N11/N13 -> 0.1436123052 | Q11: 저축 | R11: =SUMIF($D$25:$D$1000,Q11,$F$25:$F$1000) -> 410000 | S11: 0.3653130778
B12: 자동차 | C12: 200000 | D12: 160596 | E12: 0.80298 | F12: 39404 | I12: 대출이자 | J12: 97160 | K12: 0.2661771958 | M12: 이자 | N12: =SUMIF($D$25:$D$1000,M12,$F$25:$F$1000) -> 0 | O12: =N12/N13 -> 0 | Q12: CCC | R12: =SUMIF($D$25:$D$1000,Q12,$F$25:$F$1000) -> 50000 | S12: 0.04455037534
B13: 육아 | C13: 200000 | D13: 260980 | E13: 1.3049 | F13: -60980 | I13: 수리/청소 | J13: 0 | K13: 0 | M13: 합계 | N13: =SUM(N10:N12) -> 8335010 | Q13: 손해보험 | R13: =SUMIF($D$25:$D$1000,Q13,$F$25:$F$1000) -> 42718 | S13: 0.03806205867
B14: 보험 | C14: 42718 | D14: 42718 | E14: 1 | F14: 0 | I14: 렌탈비 | J14: 65800 | K14: 0.1802640951 | Q14: 교육비 | R14: =SUMIF($D$25:$D$1000,Q14,$F$25:$F$1000) -> 132580 | S14: 0.1181297752
B15: 이벤트 | C15: 50000 | D15: 17000 | E15: 0.34 | F15: 33000 | I15: KT인터넷 | J15: 21910 | K15: 0.06002410827 | Q15: 주거 | R15: =SUMIF($C$26:$C$1000,Q15,$F$25:$F$1000) -> 182587 | S15: 0.1626863876
B16: 섬김비 | C16: 250000 | D16: 0 | E16: 0 | F16: 250000 | Q16: 자동차 | R16: =SUMIF($C$26:$C$1000,Q16,$F$25:$F$1000) -> 304440 | S16: 0.2712583254
B17: 헌금 | C17: 300000 | D17: 337000 | E17: 1.123333333 | F17: -37000 | I17: 식비 | J17: =SUMIF($C$26:$C$1000,I17,$F$25:$F$1000) -> 845791 | K17: 전체 | M17: 자동차 | N17: =SUMIF($C$26:$C$1000,M17,$F$25:$F$1000) -> 304440 | O17: 전체 | Q17: 합계 | R17: =SUM(R10:R16) -> 1122325
B18: 기부 | C18: 115000 | D18: 95000 | E18: 0.8260869565 | F18: 20000 | I18: 식자재 | J18: =SUMIF($D$25:$D$1000,I18,$F$25:$F$1000) -> 421790 | K18: =J18/$J$17 -> 0.4986929395 | M18: 주유비 | N18: =SUMIF($D$25:$D$1000,M18,$F$25:$F$1000) -> 150596 | O18: =N18/$N$17 -> 0.4946656156
B19: 통신비 | C19: 120000 | D19: 110870 | E19: 0.9239166667 | F19: 9130 | I19: 외식 | J19: =SUMIF($D$25:$D$1000,I19,$F$25:$F$1000) -> 94700 | K19: =J19/$J$17 -> 0.111966195 | M19: 택시비 | N19: =SUMIF($D$25:$D$1000,M19,$F$25:$F$1000) -> 22100 | O19: =N19/$N$17 -> 0.07259230062 | Q19: 섬김비 | R19: =SUMIF($D$25:$D$1000,Q19,$F$25:$F$1000) -> 0
B20: 기타 | C20: 30000 | D20: 30000 | E20: 1 | F20: 0 | I20: 간식비 | J20: =SUMIF($D$25:$D$1000,I20,$F$25:$F$1000) -> 28850 | K20: =J20/$J$17 -> 0.03411008157 | M20: 보험/세금 | N20: =SUMIF($D$25:$D$1000,M20,$F$25:$F$1000) -> 0 | O20: =N20/$N$17 -> 0
B21: 합계 | C21: =SUM(C5:C20) -> 2795218 | D21: =SUM(D5:D20) -> 2721855 | E21: 예산-실사용금액 | F21: =SUM(F5:F20) -> 73363 | M21: 주차/통행료 | N21: =SUMIF($D$25:$D$1000,M21,$F$25:$F$1000) -> 0 | O21: =N21/$N$17 -> 0
B22: 총수입-총지출 | C22: =N13-D21 -> 5613155
A24: 날짜 | B24: 계좌 | C24: 대분류 | D24: 소분류 | E24: 내용 | F24: 금액 | G24: 수입지출
A25: 2019-01-10 | B25: 신한은행 | C25: 식비 | D25: 식자재 | E25: 테스트 | F25: 94690 | G25: 지출
A26: 2019-01-10 | B26: 신한은행 | C26: 수입 | D26: 월급 | E26: 테스트 | F26: 2687110 | G26: 수입
A27: 2019-01-10 | B27: NH스마트 알림 | C27: 기타 | D27: 은행수수료 | E27: 테스트 | F27: 800 | G27: 지출
A28: 2019-01-10 | B28: 신한은행 | C28: 수입 | D28: 기타수입 | E28: 테스트 | F28: 117010 | G28: 수입
A29: 2019-01-10 | B29: 하나카드 | C29: 주거 | D29: 렌탈비 | E29: 테스트 | F29: 44900 | G29: 지출
A30: 2019-01-10 | B30: 신한은행 | C30: 기타 | D30: 은행수수료 | E30: 테스트 | F30: 1000 | G30: 지출
A31: 2019-01-10 | B31: 현금 | C31: 육아 | D31: 장난감 | E31: 테스트 | F31: 2000 | G31: 지출
A32: 2019-01-11 | B32: NH스마트 알림 | C32: 저축_투자 | D32: 저축 | E32: 테스트 | F32: 50000 | G32: 지출
A33: 2019-01-11 | B33: NH스마트 알림 | C33: 저축_투자 | D33: 저축 | E33: 테스트 | F33: 30000 | G33: 지출
A34: 2019-01-11 | B34: 신한은행 | C34: 전월카드지출 | E34: 테스트 | F34: 87610 | G34: 지출
A35: 2019-01-11 | B35: 신한은행 | C35: 자동차 | D35: 소모품/수리 | E35: 테스트 | F35: 10000 | G35: 지출
A36: 2019-01-11 | B36: 신한은행 | C36: 경조사 | D36: 가족/친지 | E36: 테스트 | F36: 100000 | G36: 지출
A37: 2019-01-11 | B37: 현금 | C37: 기타 | D37: 기타 | E37: 테스트 | F37: 2500 | G37: 지출
A38: 2019-01-11 | B38: NH스마트 알림 | C38: 저축_투자 | D38: 저축 | E38: 테스트 | F38: 30000 | G38: 지출
A39: 2019-01-12 | B39: 현금 | C39: 생활용품 | D39: 기타용품 | E39: 테스트 | F39: 3700 | G39: 지출
A40: 2019-01-12 | B40: 현금 | C40: 육아 | D40: 교육비 | E40: 테스트 | F40: 4000 | G40: 지출
A41: 2019-01-12 | B41: 하나카드 | C41: 주거 | D41: KT인터넷 | E41: 테스트 | F41: 21910 | G41: 지출
A42: 2019-01-12 | B42: 하나카드 | C42: 식비 | D42: 간식비 | E42: 테스트 | F42: 900 | G42: 지출
A43: 2019-01-12 | B43: 하나카드 | C43: 식비 | D43: 간식비 | E43: 테스트 | F43: 1800 | G43: 지출
A44: 2019-01-13 | B44: 신한은행 | C44: 식비 | D44: 식자재 | E44: 테스트 | F44: 3000 | G44: 지출
A45: 2019-01-13 | B45: 신한은행 | C45: 식비 | D45: 식자재 | E45: 테스트 | F45: 13810 | G45: 지출
A46: 2019-01-13 | B46: 현금 | C46: 헌금 | D46: 셀모임 | E46: 테스트 | F46: 5000 | G46: 지출
A47: 2019-01-13 | B47: 현금 | C47: 헌금 | D47: 주일헌금 | E47: 테스트 | F47: 2000 | G47: 지출
A48: 2019-01-13 | B48: 현금 | C48: 헌금 | D48: 십일조 | E48: 테스트 | F48: 270000 | G48: 지출
A49: 2019-01-13 | B49: 신한은행 | C49: 육아 | D49: 장난감 | E49: 테스트 | F49: 20000 | G49: 지출
A50: 2019-01-14 | B50: 신한은행 | C50: 자동차 | D50: 주유비 | E50: 테스트 | F50: 40087 | G50: 지출
A51: 2019-01-14 | B51: 신한은행 | C51: 주거 | D51: 대출이자 | E51: 테스트 | F51: 97160 | G51: 지출
A52: 2019-01-15 | B52: NH스마트 알림 | C52: 기부 | D52: 컨패션 | E52: 테스트 | F52: 45000 | G52: 지출
A53: 2019-01-15 | B53: NH스마트 알림 | C53: 기부 | D53: CCC | E53: 테스트 | F53: 50000 | G53: 지출
A54: 2019-01-15 | B54: NH스마트 알림 | C54: 저축_투자 | D54: 저축 | E54: 테스트 | F54: 300000 | G54: 지출
A55: 2019-01-15 | B55: 하나카드 | C55: 식비 | D55: 식자재 | E55: 테스트 | F55: 9440 | G55: 지출
A56: 2019-01-15 | B56: 하나카드 | C56: 건강 | D56: 병원/약국 | E56: 테스트 | F56: 2100 | G56: 지출
A57: 2019-01-15 | B57: 하나카드 | C57: 건강 | D57: 병원/약국 | E57: 테스트 | F57: 2400 | G57: 지출
A58: 2019-01-16 | B58: 하나카드 | C58: 기타 | D58: 택시비 | E58: 테스트 | F58: 3900 | G58: 지출
A59: 2019-01-16 | B59: 하나카드 | C59: 식비 | D59: 식자재 | E59: 테스트 | F59: 23130 | G59: 지출
A60: 2019-01-16 | B60: 하나카드 | C60: 식비 | D60: 식자재 | E60: 테스트 | F60: 25500 | G60: 지출
A61: 2019-01-16 | B61: 신한은행 | C61: 경조사 | D61: 지인 | E61: 테스트 | F61: 19800 | G61: 지출
A62: 2019-01-16 | B62: 하나카드 | C62: 통신비 | D62: 김인철 | E62: 테스트 | F62: 66410 | G62: 지출
A63: 2019-01-16 | B63: 하나카드 | C63: 통신비 | D63: 김진령 | E63: 테스트 | F63: 44460 | G63: 지출
A64: 2019-01-17 | B64: 하나카드 | C64: 경조사 | D64: 지인 | E64: 테스트 | F64: 37000 | G64: 지출
A65: 2019-01-18 | B65: 하나카드 | C65: 식비 | D65: 식자재 | E65: 테스트 | F65: 2900 | G65: 지출
A66: 2019-01-19 | B66: 신한은행 | C66: 주거 | D66: 도시가스 | E66: 테스트 | F66: 66660 | G66: 지출
A67: 2019-01-19 | B67: 신한은행 | C67: 식비 | D67: 식자재 | E67: 테스트 | F67: 10420 | G67: 지출
A68: 2019-01-19 | B68: 신한은행 | C68: 식비 | D68: 식자재 | E68: 테스트 | F68: 8000 | G68: 지출
A69: 2019-01-20 | B69: 하나카드 | C69: 식비 | D69: 식자재 | E69: 테스트 | F69: 25880 | G69: 지출
A70: 2019-01-20 | B70: 하나카드 | C70: 의복_미용 | D70: 의류/잡화 | E70: 테스트 | F70: 39000 | G70: 지출
A71: 2019-01-21 | B71: 신한은행 | C71: 건강 | D71: 병원/약국 | E71: 테스트 | F71: 7000 | G71: 지출
A72: 2019-01-21 | B72: 신한은행 | C72: 보험 | D72: 손해보험 | E72: 테스트 | F72: 14210 | G72: 지출
A73: 2019-01-21 | B73: 신한은행 | C73: 보험 | D73: 손해보험 | E73: 테스트 | F73: 14090 | G73: 지출
A74: 2019-01-21 | B74: 하나카드 | C74: 주거 | D74: 렌탈비 | E74: 테스트 | F74: 20900 | G74: 지출
A75: 2019-01-22 | B75: 하나카드 | C75: 기타 | D75: 택시비 | E75: 테스트 | F75: 4500 | G75: 지출
A76: 2019-01-22 | B76: 하나카드 | C76: 식비 | D76: 외식 | E76: 테스트 | F76: 28300 | G76: 지출
A77: 2019-01-22 | B77: 하나카드 | C77: 기타 | D77: 택시비 | E77: 테스트 | F77: 3700 | G77: 지출
A78: 2019-01-23 | B78: 하나카드 | C78: 기타 | D78: 택시비 | E78: 테스트 | F78: 3400 | G78: 지출
A79: 2019-01-23 | B79: 하나카드 | C79: 식비 | D79: 간식비 | E79: 테스트 | F79: 3200 | G79: 지출
A80: 2019-01-24 | B80: 하나카드 | C80: 식비 | D80: 식자재 | E80: 테스트 | F80: 2480 | G80: 지출
A81: 2019-01-24 | B81: 하나카드 | C81: 식비 | D81: 식자재 | E81: 테스트 | F81: 30380 | G81: 지출
A82: 2019-01-24 | B82: 하나카드 | C82: 자동차 | D82: 주유비 | E82: 테스트 | F82: 36351 | G82: 지출
A83: 2019-01-24 | B83: 하나카드 | C83: 식비 | D83: 식자재 | E83: 테스트 | F83: 140060 | G83: 지출
A84: 2019-01-24 | B84: 하나카드 | C84: 생활용품 | D84: 기타용품 | E84: 테스트 | F84: 129500 | G84: 지출
A85: 2019-01-24 | B85: 하나카드 | C85: 식비 | D85: 외식 | E85: 테스트 | F85: 4500 | G85: 지출
A86: 2019-01-24 | B86: 하나카드 | C86: 식비 | D86: 외식 | E86: 테스트 | F86: 11500 | G86: 지출
A87: 2019-01-25 | B87: 신한은행 | C87: 수입 | E87: 테스트 | F87: 100000 | G87: 수입
A88: 2019-01-25 | B88: 신한은행 | C88: 수입 | D88: 기타수입 | E88: 테스트 | F88: 100000 | G88: 수입
A89: 2019-01-25 | B89: 하나카드 | C89: 생활용품 | D89: 기타용품 | E89: 테스트 | F89: 17500 | G89: 지출
A90: 2019-01-25 | B90: 하나카드 | C90: 식비 | E90: 테스트 | F90: -10200 | G90: 지출
A91: 2019-01-25 | B91: 하나카드 | C91: 식비 | D91: 식자재 | E91: 테스트 | F91: 10200 | G91: 지출
A92: 2019-01-26 | B92: 신한은행 | C92: 식비 | D92: 외식 | E92: 테스트 | F92: 33000 | G92: 지출
A93: 2019-01-26 | B93: 신한은행 | C93: 생활용품 | D93: 기타용품 | E93: 테스트 | F93: 3500 | G93: 지출
A94: 2019-01-27 | B94: 신한은행 | C94: 육아 | D94: 육아용품 | E94: 테스트 | F94: 22400 | G94: 지출
A95: 2019-01-27 | B95: 현금 | C95: 수입 | D95: 기타수입 | E95: 테스트 | F95: 100000 | G95: 수입
A96: 2019-01-27 | B96: 현금 | C96: 경조사 | D96: 지인 | E96: 테스트 | F96: 20000 | G96: 지출
A97: 2019-01-27 | B97: 현금 | C97: 헌금 | D97: 주일헌금 | E97: 테스트 | F97: 10000 | G97: 지출
A98: 2019-01-28 | B98: 신한은행 | C98: 식비 | D98: 식자재 | E98: 테스트 | F98: 4000 | G98: 지출
A99: 2019-01-28 | B99: 신한은행 | C99: 생활용품 | D99: 기타용품 | E99: 테스트 | F99: 4500 | G99: 지출
A100: 2019-01-28 | B100: 하나카드 | C100: 주거 | D100: 관리비 | E100: 테스트 | F100: 113490 | G100: 지출
A101: 2019-01-28 | B101: 하나카드 | C101: 기타 | D101: 택시비 | E101: 테스트 | F101: 2800 | G101: 지출
A102: 2019-01-28 | B102: 하나카드 | C102: 건강 | D102: 병원/약국 | E102: 테스트 | F102: 2700 | G102: 지출
A103: 2019-01-28 | B103: 하나카드 | C103: 건강 | D103: 병원/약국 | E103: 테스트 | F103: 7100 | G103: 지출
A104: 2019-01-29 | B104: 신한은행 | C104: 경조사 | D104: 지인 | E104: 테스트 | F104: 4000 | G104: 지출
A105: 2019-01-29 | B105: 신한은행 | C105: 육아 | D105: 장난감 | E105: 테스트 | F105: 49000 | G105: 지출
A106: 2019-01-29 | B106: 하나카드 | C106: 식비 | D106: 식자재 | E106: 테스트 | F106: 8900 | G106: 지출
A107: 2019-01-29 | B107: 신한은행 | C107: 자기계발 | D107: 도서/문구 | E107: 테스트 | F107: 10250 | G107: 지출
A108: 2019-01-29 | B108: 신한은행 | C108: 헌금 | D108: 기타헌금 | E108: 테스트 | F108: 50000 | G108: 지출
A109: 2019-01-29 | B109: 신한은행 | C109: 육아 | D109: 육아용품 | E109: 테스트 | F109: 32400 | G109: 지출
A110: 2019-01-30 | B110: 삼성 | C110: 자기계발 | D110: 기타 | E110: 테스트 | F110: 75341 | G110: 지출
A111: 2019-01-31 | B111: 신한은행 | C111: 생활용품 | D111: 기타용품 | E111: 테스트 | F111: 10500 | G111: 지출
A112: 2019-01-31 | B112: 신한은행 | C112: 수입 | D112: 월급 | E112: 테스트 | F112: 4450890 | G112: 수입
A113: 2019-01-31 | B113: 하나카드 | C113: 기타 | D113: 택배비 | E113: 테스트 | F113: 3600 | G113: 지출
A114: 2019-02-02 | B114: 하나카드 | C114: 생활용품 | D114: 기타용품 | E114: 테스트 | F114: 25840 | G114: 지출
A115: 2019-02-02 | B115: 신한은행 | C115: 식비 | D115: 외식 | E115: 테스트 | F115: 1400 | G115: 지출
A116: 2019-02-02 | B116: 신한은행 | C116: 식비 | D116: 외식 | E116: 테스트 | F116: 12300 | G116: 지출
A117: 2019-02-02 | B117: 신한은행 | C117: 식비 | D117: 식자재 | E117: 테스트 | F117: 4500 | G117: 지출
A118: 2019-02-02 | B118: 신한은행 | C118: 식비 | D118: 외식 | E118: 테스트 | F118: 3700 | G118: 지출
A119: 2019-02-02 | B119: 하나카드 | C119: 기타 | D119: 택시비 | E119: 테스트 | F119: 3800 | G119: 지출
A120: 2019-02-02 | B120: 현금 | C120: 의복_미용 | D120: 세탁/수선 | E120: 테스트 | F120: 10000 | G120: 지출
A121: 2019-02-03 | B121: 신한은행 | C121: 건강 | D121: 병원/약국 | E121: 테스트 | F121: 6600 | G121: 지출
A122: 2019-02-03 | B122: 신한은행 | C122: 식비 | D122: 간식비 | E122: 테스트 | F122: 8400 | G122: 지출
A123: 2019-02-03 | B123: 신한은행 | C123: 식비 | D123: 간식비 | E123: 테스트 | F123: 5100 | G123: 지출
A124: 2019-02-03 | B124: 신한은행 | C124: 식비 | D124: 간식비 | E124: 테스트 | F124: 3000 | G124: 지출
A125: 2019-02-03 | B125: 하나카드 | C125: 경조사 | D125: 가족/친지 | E125: 테스트 | F125: 160000 | G125: 지출
A126: 2019-02-03 | B126: 하나카드 | C126: 자동차 | D126: 주유비 | E126: 테스트 | F126: 44021 | G126: 지출
A127: 2019-02-04 | B127: 신한은행 | C127: 이벤트 | D127: 놀이방 | E127: 테스트 | F127: 17000 | G127: 지출
A128: 2019-02-04 | B128: 신한은행 | C128: 경조사 | D128: 지인 | E128: 테스트 | F128: 20000 | G128: 지출
A129: 2019-02-05 | B129: 하나카드 | C129: 보험 | D129: 손해보험 | E129: 테스트 | F129: 14418 | G129: 지출
A130: 2019-02-05 | B130: 신한은행 | C130: 육아 | D130: 장난감 | E130: 테스트 | F130: 2600 | G130: 지출
A131: 2019-02-05 | B131: 현금 | C131: 경조사 | D131: 가족/친지 | E131: 테스트 | F131: 200000 | G131: 지출
A132: 2019-02-05 | B132: 현금 | C132: 경조사 | D132: 가족/친지 | E132: 테스트 | F132: 30000 | G132: 지출
A133: 2019-02-05 | B133: 현금 | C133: 경조사 | D133: 가족/친지 | E133: 테스트 | F133: 100000 | G133: 지출
A134: 2019-02-05 | B134: 현금 | C134: 수입 | D134: 기타수입 | E134: 테스트 | F134: 210000 | G134: 수입
A135: 2019-02-05 | B135: 현금 | C135: 수입 | D135: 기타수입 | E135: 테스트 | F135: 50000 | G135: 수입
A136: 2019-02-05 | B136: 현금 | C136: 수입 | D136: 기타수입 | E136: 테스트 | F136: 30000 | G136: 수입
A137: 2019-02-05 | B137: 현금 | C137: 수입 | D137: 기타수입 | E137: 테스트 | F137: 50000 | G137: 수입
A138: 2019-02-05 | B138: 현금 | C138: 수입 | D138: 기타수입 | E138: 테스트 | F138: 40000 | G138: 수입
A139: 2019-02-06 | B139: 신한은행 | C139: 식비 | D139: 식자재 | E139: 테스트 | F139: 4500 | G139: 지출
A140: 2019-02-06 | B140: 하나카드 | C140: 식비 | D140: 간식비 | E140: 테스트 | F140: 6450 | G140: 지출
A141: 2019-02-06 | B141: 하나카드 | C141: 자동차 | D141: 주유비 | E141: 테스트 | F141: 30137 | G141: 지출
A142: 2019-02-07 | B142: NH스마트 알림 | C142: 육아 | D142: 교육비 | E142: 테스트 | F142: 128580 | G142: 지출
A143: 2020-02-25 | B143: 농협 | C143: 수입 | D143: 기타수입 | E143: LB휴넷 장모님 칠순 | F143: 500000 | G143: 수입

Sheet 2월
A2: 2020-02-10 | B2: 전체보기 | C2: 수입보기 | D2: 날짜내림정렬 | E2: 금액 \ 표시하기 | I2: 노트
B3: 1월 이월금 | D3: 날짜오름정렬
A4: 예산 사용 현황 | B4: 지출내역 | C4: 사용 예산 | D4: 실사용금액 | E4: 예산사용율 | F4: 예산 잔액 | G4: 초과 지출 소명
B5: 저축_투자 | C5: 410000 | D5: =SUMIF($C$25:$C$1000,B5,$F$25:$F$1000) -> 110000 | E5: =D5/C5 -> 0.2682926829 | F5: =C5-D5 -> 300000
B6: 주거 | C6: 397500 | D6: 415900 | E6: 1.046289308 | F6: -18400
B7: 식비 | C7: 500000 | D7: 726280 | E7: 1.45256 | F7: -226280
B8: 생활용품 | C8: 50000 | D8: 347010 | E8: 6.9402 | F8: -297010
B9: 의복_미용 | C9: 30000 | D9: 10000 | E9: 0.3333333333 | F9: 20000 | I9: 주거 | J9: =SUMIF($C$25:$C$1000,I9,$F$25:$F$1000) -> 415900 | K9: 전체 | M9: 수입내용 | O9: 비율 | Q9: 고정지출 | S9: 비율 | U9: 육아
B10: 건강 | C10: 50000 | D10: 45900 | E10: 0.918 | F10: 4100 | I10: 관리비 | J10: =SUMIF($D$25:$D$1000,I10,$F$25:$F$1000) -> 138680 | K10: =J10/$J$9 -> 0.3334455398 | M10: 월급 | N10: =SUMIF($D$25:$D$1000,M10,$F$25:$F$1000) -> 2559570 | O10: =N10/N13 -> 0.9200235796 | Q10: 신한저축 | R10: =SUMIF($D$25:$D$1000,Q10,$F$25:$F$1000) -> 0 | S10: =R10/$R$17 -> 0 | U10: 육아용품 | V10: =SUMIF($D$25:$D$1000,U10,$F$25:$F$1000) -> 0
B11: 자기계발 | C11: 50000 | D11: 141600 | E11: 2.832 | F11: -91600 | I11: 도시가스 | J11: =SUMIF($D$25:$D$297,I11,$F$25:$F$1000) -> 95290 | K11: 0.2291175763 | M11: 기타수입 | N11: =SUMIF($D$25:$D$253,M11,$F$25:$F$1000) -> 222500 | O11: =N11/N13 -> 0.07997642044 | Q11: 저축 | R11: =SUMIF($D$25:$D$1000,Q11,$F$25:$F$1000) -> 110000 | S11: 0.03551388593 | U11: 교육비 | V11: =SUMIF($D$25:$D$1000,U11,$F$25:$F$1000) -> 60000
B12: 자동차 | C12: 200000 | D12: 83497 | E12: 0.417485 | F12: 116503 | I12: 대출이자 | J12: =SUMIF($D$25:$D$1000,I12,$F$25:$F$1000) -> 88080 | K12: 0.2117816783 | M12: 이자 | N12: =SUMIF($D$25:$D$253,M12,$F$25:$F$1000) -> 0 | O12: =N12/N13 -> 0 | Q12: CCC | R12: =SUMIF($D$25:$D$1000,Q12,$F$25:$F$1000) -> 95000 | S12: 0.0306710833 | U12: 장난감 | V12: =SUMIF($D$25:$D$1000,U12,$F$25:$F$1000) -> 0
B13: 육아 | C13: 200000 | D13: 60000 | E13: 0.3 | F13: 140000 | I13: 수리/청소 | J13: =SUMIF($D$25:$D$1000,I13,$F$25:$F$1000) -> 0 | K13: 0 | M13: 합계 | N13: =SUM(N10:N12) -> 2782070 | Q13: 손해보험 | R13: =SUMIF($D$25:$D$1000,Q13,$F$25:$F$1000) -> 27730 | S13: 0.008952727789 | V13: =SUBTOTAL(9,V10:V12) -> 60000
B14: 보험 | C14: 42718 | D14: 27730 | E14: 0.6491408774 | F14: 14988 | I14: 렌탈비 | J14: =SUMIF($D$25:$D$1000,I14,$F$25:$F$1000) -> 65800 | K14: 0.1582111084 | Q14: 교육비 | R14: =SUMIF($D$25:$D$1000,Q14,$F$25:$F$1000) -> 60000 | S14: 0.01937121051
B15: 이벤트 | C15: 50000 | D15: 0 | E15: 0 | F15: 50000 | I15: KT인터넷 | J15: =SUMIF($D$25:$D$1000,I15,$F$25:$F$1000) -> 28050 | K15: 0.06744409714 | Q15: 주거 | R15: =SUMIF($C$26:$C$1000,Q15,$F$25:$F$1000) -> 2760320 | S15: 0.8911789964
B16: 섬김비 | C16: 250000 | D16: 32000 | E16: 0.128 | F16: 218000 | Q16: 자동차 | R16: =SUMIF($C$26:$C$1000,Q16,$F$25:$F$1000) -> 44330 | S16: 0.01431209603
B17: 헌금 | C17: 300000 | D17: 250000 | E17: 0.8333333333 | F17: 50000 | I17: 식비 | J17: =SUMIF($C$26:$C$1000,I17,$F$25:$F$1000) -> 1307500 | K17: 전체 | M17: 자동차 | N17: =SUMIF($C$26:$C$1000,M17,$F$25:$F$1000) -> 44330 | O17: 전체 | Q17: 합계 | R17: =SUM(R10:R16) -> 3097380
B18: 기부 | C18: 115000 | D18: 95000 | E18: 0.8260869565 | F18: 20000 | I18: 식자재 | J18: =SUMIF($D$25:$D$1000,I18,$F$25:$F$1000) -> 538290 | K18: =J18/$J$17 -> 0.4116940727 | M18: 주유비 | N18: =SUMIF($D$25:$D$1000,M18,$F$25:$F$1000) -> 83497 | O18: =N18/$N$17 -> 1.883532596
B19: 통신비 | C19: 120000 | D19: 193060 | E19: 1.608833333 | F19: -73060 | I19: 외식 | J19: =SUMIF($D$25:$D$297,I19,$F$25:$F$1000) -> 138400 | K19: =J19/$J$17 -> 0.1058508604 | M19: 택시비 | N19: =SUMIF($D$25:$D$1000,M19,$F$25:$F$1000) -> 0 | O19: =N19/$N$17 -> 0 | Q19: 섬김비 | R19: =SUMIF($D$25:$D$1000,Q19,$F$25:$F$1000) -> 0
B20: 기타 | C20: 30000 | D20: 51058 | E20: 1.701933333 | F20: -21058 | I20: 간식비 | J20: =SUMIF($D$25:$D$297,I20,$F$25:$F$1000) -> 49590 | K20: =J20/$J$17 -> 0.03792734226 | M20: 보험/세금 | N20: =SUMIF($D$25:$D$1000,M20,$F$25:$F$1000) -> 0 | O20: =N20/$N$17 -> 0
B21: 합계 | C21: =SUM(C5:C20) -> 2795218 | D21: =SUM(D5:D20) -> 2589035 | E21: 예산-실사용금액 | F21: =SUM(F5:F20) -> 206183 | M21: 주차/통행료 | N21: =SUMIF($D$25:$D$1000,M21,$F$25:$F$1000) -> 0 | O21: =N21/$N$17 -> 0
B22: 총수입-총지출 | C22: =N13-D21 -> 193035
A24: 날짜 | B24: 계좌 | C24: 대분류 | D24: 소분류 | E24: 내용 | F24: 금액 | G24: 수입지출
A25: 2020-03-02 | B25: 하나카드 | C25: 건강 | D25: 병원/약국 | E25: 은파약국 | F25: 17000 | G25: 지출
A26: 2020-02-29 | B26: 하나카드 | C26: 식비 | D26: 식자재 | E26: 두배로쇼핑 | F26: 15150 | G26: 지출
A27: 2020-02-29 | B27: 하나카드 | C27: 식비 | D27: 간식비 | E27: 신일슈퍼 | F27: 27340 | G27: 지출
A28: 2020-02-29 | B28: 하나카드 | C28: 식비 | D28: 식자재 | E28: 두배로쇼핑 | F28: 34760 | G28: 지출
A29: 2020-02-28 | B29: 신한은행 | C29: 식비 | D29: 외식 | E29: 위메프커핑_피자 | F29: 14900 | G29: 지출
A30: 2020-02-27 | B30: 하나카드 | C30: 식비 | D30: 식자재 | E30: 두배로쇼핑 | F30: 21440 | G30: 지출
A31: 2020-02-27 | B31: 하나카드 | C31: 건강 | D31: 병원/약국 | E31: 은혜산부인과의원 | F31: 21900 | G31: 지출
A32: 2020-02-27 | B32: 신한은행 | C32: 생활용품 | D32: 기타용품 | E32: 토스＿쿠팡 진령 좀약 | F32: 14900 | G32: 지출
A33: 2020-02-26 | B33: 신한은행 | C33: 식비 | D33: 외식 | E33: 위메프커핑_갤치킨 | F33: 13000 | G33: 지출
A34: 2020-02-26 | B34: 하나카드 | C34: 주거 | D34: 관리비 | E34: 아파트관리비 | F34: 138680 | G34: 지출
A35: 2020-02-26 | B35: 하나카드 | C35: 식비 | D35: 식자재 | E35: 두배로쇼핑 | F35: 16260 | G35: 지출
A36: 2020-02-25 | B36: 신한은행 | C36: 수입 | D36: 기타수입 | E36: 아동수당 | F36: 100000 | G36: 수입
A37: 2020-02-25 | B37: 하나카드 | C37: 식비 | D37: 식자재 | E37: 두배로쇼핑 | F37: 9510 | G37: 지출
A38: 2020-02-25 | B38: 신한은행 | C38: 수입 | D38: 기타수입 | E38: 양육수당 | F38: 100000 | G38: 수입
A39: 2020-02-24 | B39: 신한은행 | C39: 생활용품 | D39: 기타용품 | E39: 토스＿쿠팡 아기용품 | F39: 60750 | G39: 지출
A40: 2020-02-23 | B40: 하나카드 | C40: 식비 | D40: 식자재 | E40: 경선정육점 | F40: 15000 | G40: 지출
A41: 2020-02-23 | B41: 하나카드 | C41: 식비 | D41: 식자재 | E41: 두배로쇼핑 | F41: 23630 | G41: 지출
A42: 2020-02-23 | B42: 하나카드 | C42: 식비 | D42: 식자재 | E42: 두배로쇼핑 | F42: 17830 | G42: 지출
A43: 2020-02-22 | B43: 하나카드 | C43: 자동차 | D43: 주유비 | E43: 에스제이상사국제충 | F43: 41801 | G43: 지출
A44: 2020-02-22 | B44: 신한은행 | C44: 기타 | D44: 은행수수료 | E44: 대출이자 | F44: 58 | G44: 지출
A45: 2020-02-21 | B45: 신한은행 | C45: 보험 | D45: 손해보험 | E45: DB손 | F45: 13520 | G45: 지출
A46: 2020-02-21 | B46: 신한은행 | C46: 보험 | D46: 손해보험 | E46: DB손 | F46: 14210 | G46: 지출
A47: 2020-02-20 | B47: 신한은행 | C47: 주거 | D47: 도시가스 | E47: 토스＿군산도시 | F47: 95290 | G47: 지출
A48: 2020-02-20 | B48: 하나카드 | C48: 식비 | D48: 식자재 | E48: 두배로쇼핑 | F48: 17540 | G48: 지출
A49: 2020-02-20 | B49: 하나카드 | C49: 식비 | D49: 식자재 | E49: 경선정육점 | F49: 13000 | G49: 지출
A50: 2020-02-20 | B50: 하나카드 | C50: 식비 | D50: 식자재 | E50: 두배로쇼핑 | F50: 22400 | G50: 지출
A51: 2020-02-20 | B51: 신한은행 | C51: 자기계발 | D51: 문화생활 | E51: 쿠팡 3d펜 | F51: 84500 | G51: 지출
A52: 2020-02-20 | B52: 하나카드 | C52: 주거 | D52: 렌탈비 | E52: 엘지전자(주)렌탈케 | F52: 20900 | G52: 지출
A53: 2020-02-19 | B53: 하나카드 | C53: 식비 | D53: 식자재 | E53: 두배로쇼핑 | F53: 12150 | G53: 지출
A54: 2020-02-19 | B54: 하나카드 | C54: 건강 | D54: 병원/약국 | E54: 은파약국 | F54: 7000 | G54: 지출
A55: 2020-02-19 | B55: 하나카드 | C55: 식비 | D55: 식자재 | E55: 삼거리정육점 | F55: 8000 | G55: 지출
A56: 2020-02-17 | B56: 신한은행 | C56: 생활용품 | D56: 기타용품 | E56: 쿠팡 노트8 젤리케이스 | F56: 2000 | G56: 지출
A57: 2020-02-17 | B57: 신한은행 | C57: 의복_미용 | D57: 미용/헤어 | E57: 토스＿이순화 | F57: 10000 | G57: 지출
A58: 2020-02-16 | B58: 신한은행 | C58: 식비 | D58: 외식 | E58: 요기요 족발 | F58: 35000 | G58: 지출
A59: 2020-02-16 | B59: 신한 | C59: 생활용품 | D59: 가전/가구 | E59: 11번가 제습기 ((8/12)) | F59: 27220 | G59: 지출
A60: 2020-02-16 | B60: 신한 | C60: 생활용품 | D60: 가전/가구 | E60: G마켓 재습기 ((8/12)) | F60: 26600 | G60: 지출
A61: 2020-02-16 | B61: 하나카드 | C61: 식비 | D61: 외식 | E61: 김밥명가 교회 점심 | F61: 20500 | G61: 지출
A62: 2020-02-16 | B62: 신한은행 | C62: 헌금 | D62: 십일조 | E62: 십일조 | F62: 250000 | G62: 지출
A63: 2020-02-15 | B63: 하나카드 | C63: 생활용품 | D63: 기타용품 | E63: 한길문고 건전지 | F63: 8800 | G63: 지출
A64: 2020-02-15 | B64: 하나카드 | C64: 자기계발 | D64: 도서/문구 | E64: 한길문고나운점 | F64: 16000 | G64: 지출
A65: 2020-02-15 | B65: 하나카드 | C65: 자기계발 | D65: 도서/문구 | E65: 한길문고나운점 | F65: 15000 | G65: 지출
A66: 2020-02-14 | B66: 신한은행 | C66: 기타 | D66: 기타 | E66: 토스＿권영만 빌려줌 | F66: 50000 | G66: 지출
A67: 2020-02-14 | B67: 신한은행 | C67: 주거 | D67: 대출이자 | F67: 88080 | G67: 지출
A68: 2020-02-13 | B68: 신한은행 | C68: 식비 | D68: 외식 | E68: 맥도날드_나이 | F68: 17200 | G68: 지출
A69: 2020-02-13 | B69: 신한은행 | C69: 생활용품 | D69: 기타용품 | E69: 쿠팡 | F69: 39040 | G69: 지출
A70: 2020-02-13 | B70: 하나카드 | C70: 주거 | D70: KT인터넷 | E70: KT유선상품 | F70: 28050 | G70: 지출
A71: 2020-02-13 | B71: 신한은행 | C71: 육아 | D71: 교육비 | E71: 토스＿（사）한 큐티정기구독 | F71: 60000 | G71: 지출
A72: 2020-02-12 | B72: 하나카드 | C72: 식비 | D72: 식자재 | E72: 두배로쇼핑 | F72: 30170 | G72: 지출
A73: 2020-02-12 | B73: 신한은행 | C73: 생활용품 | D73: 기타용품 | E73: 쿠팡 | F73: 61030 | G73: 지출
A74: 2020-02-12 | B74: 신한은행 | C74: 식비 | D74: 외식 | E74: 요기요 비비큐 | F74: 18000 | G74: 지출
A75: 2020-02-12 | B75: 신한은행 | C75: 생활용품 | D75: 기타용품 | E75: 쿠팡 생필픔 | F75: 28530 | G75: 지출
A76: 2020-02-12 | B76: 신한은행 | C76: 생활용품 | D76: 기타용품 | E76: 쿠팡 | F76: 40780 | G76: 지출
A77: 2020-02-12 | B77: 신한은행 | C77: 식비 | D77: 식자재 | E77: 쿠팡 | F77: 46980 | G77: 지출
A78: 2020-02-12 | B78: 신한은행 | C78: 식비 | D78: 식자재 | E78: 쿠팡 고등어 | F78: 26900 | G78: 지출
A79: 2020-02-12 | B79: 하나카드 | C79: 통신비 | E79: LGU+통신요금자동서비스번호 | F79: 86620 | G79: 지출
A80: 2020-02-12 | B80: 하나카드 | C80: 통신비 | E80: LGU+통신요금자동서비스번호 | F80: 106440 | G80: 지출
A81: 2020-02-12 | B81: 신한은행 | C81: 식비 | D81: 식자재 | E81: 토스＿전동식 신일청과 | F81: 6700 | G81: 지출
A82: 2020-02-10 | B82: 하나카드 | C82: 식비 | D82: 식자재 | E82: 두배로쇼핑 | F82: 31160 | G82: 지출
A83: 2020-02-10 | B83: 하나카드 | C83: 식비 | D83: 식자재 | E83: 경선정육점 | F83: 13300 | G83: 지출
A84: 2020-02-10 | B84: 신한은행 | C84: 수입 | D84: 월급 | E84: 엘비휴넷(주) | F84: 2559570 | G84: 수입
A85: 2020-02-10 | B85: 하나카드 | C85: 주거 | D85: 렌탈비 | E85: 엘지전자(주)렌탈 | F85: 44900 | G85: 지출
A86: 2020-02-10 | B86: 신한 | C86: 자기계발 | D86: 도서/문구 | E86: 리디북스 | F86: 6500 | G86: 지출
A87: 2020-02-10 | B87: 신한은행 | C87: 섬김비 | D87: 지인 | E87: 토스＿천신지 이레씨 | F87: 32000 | G87: 지출
A88: 2020-02-10 | B88: 신한은행 | C88: 기타 | D88: 은행수수료 | E88: SMS | F88: 1000 | G88: 지출
A89: 2020-02-14 | B89: 농협 | C89: 수입 | D89: 기타수입 | E89: 공유기 | F89: 22500 | G89: 수입
A90: 2020-02-11 | B90: 농협 | C90: 저축_투자 | D90: 저축 | E90: 3개통장 | F90: 110000 | G90: 지출
A91: 2020-02-17 | B91: 농협 | C91: 기부 | D91: CCC | E91: CCC/ 컨밴션 | F91: 95000 | G91: 지출
A92: 2020-03-09 | B92: 신한은행 | C92: 식비 | D92: 식자재 | E92: 쿠팡 고등어 20마리 | F92: 26500 | G92: 지출
A93: 2020-03-09 | B93: 하나카드 | C93: 자동차 | D93: 주유비 | E93: 에스제이상사국제 | F93: 41696 | G93: 지출
A94: 2020-03-09 | B94: 신한은행 | C94: 자기계발 | D94: 스터디 | E94: 토스＿옥션김진 youtube준비 | F94: 14880 | G94: 지출
A95: 2020-03-09 | B95: 신한은행 | C95: 식비 | D95: 식자재 | E95: 쿠팡 | F95: 36900 | G95: 지출
A96: 2020-03-09 | B96: 신한은행 | C96: 생활용품 | D96: 기타용품 | E96: 토스＿쿠팡 | F96: 37360 | G96: 지출
A97: 2020-03-08 | B97: 하나카드 | C97: 식비 | D97: 외식 | E97: 한국맥도날드(유) | F97: 19800 | G97: 지출
A98: 2020-03-08 | B98: 하나카드 | C98: 식비 | D98: 간식비 | E98: 신일슈퍼 | F98: 22250 | G98: 지출
A99: 2020-03-08 | B99: 신한은행 | C99: 수입 | E99: 쿠팡 | F99: 8300 | G99: 수입
A100: 2020-03-08 | B100: 신한은행 | C100: 식비 | D100: 식자재 | E100: 쿠팡 | F100: 8300 | G100: 지출
A101: 2020-03-05 | B101: 신한은행 | C101: 식비 | D101: 식자재 | E101: 쿠팡 | F101: 10570 | G101: 지출
A102: 2020-03-05 | B102: 하나카드 | C102: 식비 | D102: 식자재 | E102: 경선정육점 | F102: 5500 | G102: 지출
A103: 2020-03-05 | B103: 하나카드 | C103: 식비 | D103: 식자재 | E103: 두배로쇼핑 | F103: 37180 | G103: 지출
A104: 2020-03-04 | B104: 신한은행 | C104: 자기계발 | D104: 문화생활 | E104: 쿠팡 커튼 봉 | F104: 4720 | G104: 지출
A105: 2020-03-03 | B105: 하나카드 | C105: 식비 | D105: 식자재 | E105: 두배로쇼핑 | F105: 9460 | G105: 지출
A106: 2020-03-03 | B106: 하나카드 | C106: 식비 | D106: 식자재 | E106: 경선정육점 | F106: 22000 | G106: 지출

Sheet 3월
A2: 2020-03-10 | B2: 전체보기 | C2: 수입보기 | D2: 날짜내림정렬 | E2: 금액 \ 표시하기 | I2: 노트
B3: 2월 이월금 | D3: 날짜오름정렬
A4: 예산 사용 현황 | B4: 지출내역 | C4: 사용 예산 | D4: 실사용금액 | E4: 예산사용율 | F4: 예산 잔액 | G4: 초과 지출 소명
B5: 저축_투자 | C5: 410000 | D5: =SUMIF($C$25:$C$1000,B5,$F$25:$F$1000) -> 100000 | E5: =D5/C5 -> 0.243902439 | F5: =C5-D5 -> 310000
B6: 주거 | C6: 397500 | D6: 396850 | E6: 0.9983647799 | F6: 650
B7: 식비 | C7: 500000 | D7: 936608 | E7: 1.873216 | F7: -436608
B8: 생활용품 | C8: 50000 | D8: 350530 | E8: 7.0106 | F8: -300530
B9: 의복_미용 | C9: 30000 | D9: 10000 | E9: 0.3333333333 | F9: 20000 | I9: 주거 | J9: =SUMIF($C$25:$C$1000,I9,$F$25:$F$1000) -> 396850 | K9: 전체 | M9: 수입내용 | O9: 비율 | Q9: 고정지출 | S9: 비율 | U9: 육아
B10: 건강 | C10: 50000 | D10: 637190 | E10: 12.7438 | F10: -587190 | G10: 시원이심장진단 | I10: 관리비 | J10: =SUMIF($D$25:$D$1000,I10,$F$25:$F$1000) -> 128930 | K10: =J10/$J$9 -> 0.3248834572 | M10: 월급 | N10: =SUMIF($D$25:$D$1000,M10,$F$25:$F$1000) -> 3984860 | O10: =N10/N13 -> 0.8263658327 | Q10: 신한저축 | R10: =SUMIF($D$25:$D$1000,Q10,$F$25:$F$1000) -> 0 | S10: =R10/$R$17 -> 0 | U10: 육아용품 | V10: =SUMIF($D$25:$D$1000,U10,$F$25:$F$1000) -> 228840
B11: 자기계발 | C11: 50000 | D11: 6500 | E11: 0.13 | F11: 43500 | I11: 도시가스 | J11: =SUMIF($D$25:$D$297,I11,$F$25:$F$1000) -> 91670 | K11: 0.2309940784 | M11: 기타수입 | N11: =SUMIF($D$25:$D$253,M11,$F$25:$F$1000) -> 837000 | O11: =N11/N13 -> 0.1735740282 | Q11: 저축 | R11: =SUMIF($D$25:$D$1000,Q11,$F$25:$F$1000) -> 100000 | S11: 0.2965687001 | U11: 교육비 | V11: =SUMIF($D$25:$D$1000,U11,$F$25:$F$1000) -> 23000
B12: 자동차 | C12: 200000 | D12: 85092 | E12: 0.42546 | F12: 114908 | I12: 대출이자 | J12: =SUMIF($D$25:$D$1000,I12,$F$25:$F$1000) -> 82400 | K12: 0.2076351266 | M12: 이자 | N12: =SUMIF($D$25:$D$253,M12,$F$25:$F$1000) -> 290 | O12: =N12/N13 -> 6.013914955e-05 | Q12: CCC | R12: =SUMIF($D$25:$D$1000,Q12,$F$25:$F$1000) -> 50000 | S12: 0.1482843501 | U12: 장난감 | V12: =SUMIF($D$25:$D$1000,U12,$F$25:$F$1000) -> 64500
B13: 육아 | C13: 200000 | D13: 316340 | E13: 1.5817 | F13: -116340 | I13: 수리/청소 | J13: =SUMIF($D$25:$D$1000,I13,$F$25:$F$1000) -> 0 | K13: 0 | M13: 합계 | N13: =SUM(N10:N12) -> 4822150 | Q13: 손해보험 | R13: =SUMIF($D$25:$D$1000,Q13,$F$25:$F$1000) -> 27730 | S13: 0.08223850055 | V13: =SUBTOTAL(9,V10:V12) -> 316340
B14: 보험 | C14: 42718 | D14: 27730 | E14: 0.6491408774 | F14: 14988 | I14: 렌탈비 | J14: =SUMIF($D$25:$D$1000,I14,$F$25:$F$1000) -> 65800 | K14: 0.16580572 | Q14: 교육비 | R14: =SUMIF($D$25:$D$1000,Q14,$F$25:$F$1000) -> 23000 | S14: 0.06821080103
B15: 이벤트 | C15: 50000 | D15: 0 | E15: 0 | F15: 50000 | I15: KT인터넷 | J15: =SUMIF($D$25:$D$1000,I15,$F$25:$F$1000) -> 28050 | K15: 0.07068161774 | Q15: 주거 | R15: =SUMIF($C$26:$C$1000,Q15,$F$25:$F$1000) -> 91060 | S15: 0.2700554583
B16: 섬김비 | C16: 250000 | D16: 11290 | E16: 0.04516 | F16: 238710 | Q16: 자동차 | R16: =SUMIF($C$26:$C$1000,Q16,$F$25:$F$1000) -> 45400 | S16: 0.1346421899
B17: 헌금 | C17: 300000 | D17: 0 | E17: 0 | F17: 300000 | I17: 식비 | J17: =SUMIF($C$26:$C$1000,I17,$F$25:$F$1000) -> 1909190 | K17: 전체 | M17: 자동차 | N17: =SUMIF($C$26:$C$1000,M17,$F$25:$F$1000) -> 45400 | O17: 전체 | Q17: 합계 | R17: =SUM(R10:R16) -> 337190
B18: 기부 | C18: 115000 | D18: 95000 | E18: 0.8260869565 | F18: 20000 | I18: 식자재 | J18: =SUMIF($D$25:$D$1000,I18,$F$25:$F$1000) -> 656180 | K18: =J18/$J$17 -> 0.3436954939 | M18: 주유비 | N18: =SUMIF($D$25:$D$1000,M18,$F$25:$F$1000) -> 85092 | O18: =N18/$N$17 -> 1.874273128
B19: 통신비 | C19: 120000 | D19: 176330 | E19: 1.469416667 | F19: -56330 | I19: 외식 | J19: =SUMIF($D$25:$D$297,I19,$F$25:$F$1000) -> 145055 | K19: =J19/$J$17 -> 0.0759772469 | M19: 택시비 | N19: =SUMIF($D$25:$D$1000,M19,$F$25:$F$1000) -> 0 | O19: =N19/$N$17 -> 0 | Q19: 섬김비 | R19: =SUMIF($D$25:$D$1000,Q19,$F$25:$F$1000) -> 0
B20: 기타 | C20: 30000 | D20: 17729 | E20: 0.5909666667 | F20: 12271 | I20: 간식비 | J20: =SUMIF($D$25:$D$297,I20,$F$25:$F$1000) -> 91830 | K20: =J20/$J$17 -> 0.04809893201 | M20: 보험/세금 | N20: =SUMIF($D$25:$D$1000,M20,$F$25:$F$1000) -> 0 | O20: =N20/$N$17 -> 0
B21: 합계 | C21: =SUM(C5:C20) -> 2795218 | D21: =SUM(D5:D20) -> 3167189 | E21: 예산-실사용금액 | F21: =SUM(F5:F20) -> -371971 | M21: 주차/통행료 | N21: =SUMIF($D$25:$D$1000,M21,$F$25:$F$1000) -> 0 | O21: =N21/$N$17 -> 0
B22: 총수입-총지출 | C22: =N13-D21 -> 1654961
A24: 날짜 | B24: 계좌 | C24: 대분류 | D24: 소분류 | E24: 내용 | F24: 금액 | G24: 수입지출
A25: 2020-04-09 | B25: 하나카드 | C25: 식비 | D25: 간식비 | E25: 파리바게뜨군산나 상품권 +3000 | F25: 3000 | G25: 지출
A26: 2020-04-09 | B26: 하나카드 | C26: 건강 | D26: 병원/약국 | E26: 하나약국 | F26: 2000 | G26: 지출
A27: 2020-04-09 | B27: 하나카드 | C27: 식비 | D27: 외식 | E27: GS25군산스카이점 진령 두유 | F27: 15000 | G27: 지출
A28: 2020-04-09 | B28: 하나카드 | C28: 식비 | D28: 외식 | E28: 짜장면집 | F28: 5000 | G28: 지출
A29: 2020-04-09 | B29: 하나카드 | C29: 건강 | D29: 병원/약국 | E29: 하나약국 | F29: 9000 | G29: 지출
A30: 2020-04-09 | B30: 하나카드 | C30: 건강 | D30: 병원/약국 | E30: 군산우리들소아과의 | F30: 5000 | G30: 지출
A31: 2020-04-09 | B31: 하나카드 | C31: 건강 | D31: 병원/약국 | E31: 군산우리들소아과의 | F31: -1200 | G31: 지출
A32: 2020-04-09 | B32: 하나카드 | C32: 건강 | D32: 병원/약국 | E32: 군산우리들소아과의 | F32: 1200 | G32: 지출
A33: 2020-04-09 | B33: 하나카드 | C33: 식비 | D33: 식자재 | E33: 두배로쇼핑 | F33: 10200 | G33: 지출
A34: 2020-04-09 | B34: 하나카드 | C34: 육아 | D34: 육아용품 | E34: (주)와이식자재마 분유 | F34: 44100 | G34: 지출
A35: 2020-04-08 | B35: 하나카드 | C35: 건강 | D35: 병원/약국 | E35: 해맑은연합소아청소 시원이 황달 진료비 | F35: 6900 | G35: 지출
A36: 2020-04-08 | B36: 하나카드 | C36: 건강 | D36: 병원/약국 | E36: 힘찬온누리약국 손소독재 | F36: 12000 | G36: 지출
A37: 2020-04-08 | B37: 하나카드 | C37: 식비 | D37: 외식 | E37: 버거킹군산조촌DT점 | F37: 8900 | G37: 지출
A38: 2020-04-07 | B38: 신한은행 | C38: 생활용품 | D38: 가전/가구 | E38: 쿠팡 서브 모니터 | F38: 139000 | G38: 지출
A39: 2020-04-07 | B39: 신한은행 | C39: 섬김비 | D39: 가족/친지 | E39: 쿠팡 뉴텔라 1kg 아버지 ㅎ | F39: 11290 | G39: 지출
A40: 2020-04-07 | B40: 하나카드 | C40: 식비 | D40: 식자재 | E40: 경선정육점 | F40: 6000 | G40: 지출
A41: 2020-04-07 | B41: 하나카드 | C41: 식비 | D41: 식자재 | E41: 경선정육점 | F41: 11000 | G41: 지출
A42: 2020-04-07 | B42: 하나카드 | C42: 식비 | D42: 식자재 | E42: 두배로쇼핑 | F42: 6700 | G42: 지출
A43: 2020-04-07 | B43: 하나카드 | C43: 건강 | D43: 병원/약국 | E43: 은파약국 | F43: 3000 | G43: 지출
A44: 2020-04-06 | B44: 하나카드 | C44: 자동차 | D44: 주유비 | E44: 에스제이상사국제 | F44: 41450 | G44: 지출
A45: 2020-04-06 | B45: 하나카드 | C45: 식비 | D45: 식자재 | E45: 두배로쇼핑 | F45: 4000 | G45: 지출
A46: 2020-04-05 | B46: 하나카드 | C46: 식비 | D46: 외식 | E46: 아이맘편의점 | F46: 3900 | G46: 지출
A47: 2020-04-05 | B47: 하나카드 | C47: 건강 | D47: 병원/약국 | E47: 은혜산부인과의원 | F47: 100000 | G47: 지출
A48: 2020-04-04 | B48: 신한은행 | C48: 식비 | D48: 외식 | E48: 요기요 가족 치킨 | F48: 36000 | G48: 지출
A49: 2020-04-04 | B49: 신한은행 | C49: 식비 | D49: 외식 | E49: 아이맘편의점 | F49: 2750 | G49: 지출
A50: 2020-04-04 | B50: 신한은행 | C50: 건강 | D50: 병원/약국 | E50: 다정한약국 | F50: 3000 | G50: 지출
A51: 2020-04-03 | B51: 신한은행 | C51: 육아 | D51: 교육비 | E51: 햇님토이 | F51: 23000 | G51: 지출
A52: 2020-04-03 | B52: 신한은행 | C52: 생활용품 | D52: 가전/가구 | E52: 쿠첸군산서비 수리비 | F52: 40000 | G52: 지출
A53: 2020-04-02 | B53: 신한은행 | C53: 건강 | D53: 병원/약국 | E53: 은파약국 | F53: 9000 | G53: 지출
A54: 2020-04-02 | B54: 하나카드 | C54: 육아 | D54: 장난감 | E54: 탑오피스 | F54: 17200 | G54: 지출
A55: 2020-04-02 | B55: 신한은행 | C55: 식비 | D55: 식자재 | E55: 두배로쇼핑 | F55: 6000 | G55: 지출
A56: 2020-04-02 | B56: 신한은행 | C56: 식비 | D56: 간식비 | E56: 빵지순례 | F56: 4000 | G56: 지출
A57: 2020-04-02 | B57: 신한은행 | C57: 식비 | D57: 식자재 | E57: 두배로쇼핑 | F57: 3900 | G57: 지출
A58: 2020-04-02 | B58: 하나카드 | C58: 건강 | D58: 병원/약국 | E58: 은혜산부인과의원 | F58: 31100 | G58: 지출
A59: 2020-04-02 | B59: 신한은행 | C59: 육아 | D59: 육아용품 | E59: 토스＿쿠팡 | F59: 20700 | G59: 지출
A60: 2020-04-01 | B60: 신한은행 | C60: 식비 | D60: 간식비 | E60: 신일슈퍼 | F60: 5350 | G60: 지출
A61: 2020-03-31 | B61: 신한은행 | C61: 건강 | D61: 병원/약국 | E61: 중부약국 | F61: 3000 | G61: 지출
A62: 2020-03-31 | B62: 신한은행 | C62: 건강 | D62: 병원/약국 | E62: 은파약국 | F62: 3000 | G62: 지출
A63: 2020-03-30 | B63: 신한은행 | C63: 식비 | D63: 식자재 | E63: 두배로쇼핑 | F63: 8240 | G63: 지출
A64: 2020-03-30 | B64: 신한은행 | C64: 육아 | D64: 장난감 | E64: 토스＿쿠팡 상원예원 선물 (셋째 출산) | F64: 47300 | G64: 지출
A65: 2020-03-29 | B65: 신한은행 | C65: 식비 | D65: 식자재 | E65: 두배로쇼핑 | F65: 13500 | G65: 지출
A66: 2020-03-29 | B66: 신한은행 | C66: 식비 | D66: 식자재 | E66: 군산엑스마트 | F66: 81350 | G66: 지출
A67: 2020-03-29 | B67: 하나카드 | C67: 식비 | D67: 식자재 | E67: 두배로쇼핑 | F67: -8080 | G67: 지출
A68: 2020-03-29 | B68: 하나카드 | C68: 식비 | D68: 식자재 | E68: 두배로쇼핑 | F68: 5100 | G68: 지출
A69: 2020-03-29 | B69: 하나카드 | C69: 식비 | D69: 식자재 | E69: 두배로쇼핑 | F69: 8080 | G69: 지출
A70: 2020-03-29 | B70: 신한은행 | C70: 식비 | D70: 간식비 | E70: 신일슈퍼 | F70: 17800 | G70: 지출
A71: 2020-03-28 | B71: 신한은행 | C71: 식비 | D71: 식자재 | E71: 쿠팡 | F71: 3360 | G71: 지출
A72: 2020-03-28 | B72: 신한은행 | C72: 식비 | D72: 식자재 | E72: 두배로쇼핑 | F72: 7780 | G72: 지출
A73: 2020-03-27 | B73: 신한은행 | C73: 식비 | D73: 식자재 | E73: 두배로쇼핑 | F73: 5100 | G73: 지출
A74: 2020-03-27 | B74: 신한은행 | C74: 육아 | D74: 육아용품 | E74: 토스＿쿠팡 | F74: 72910 | G74: 지출
A75: 2020-03-27 | B75: 하나카드 | C75: 식비 | D75: 식자재 | E75: 두배로쇼핑 | F75: 8100 | G75: 지출
A76: 2020-03-26 | B76: 하나카드 | C76: 식비 | D76: 간식비 | E76: 빵지순례 | F76: 6500 | G76: 지출
A77: 2020-03-26 | B77: 하나카드 | C77: 식비 | D77: 식자재 | E77: 경선정육점 | F77: 6000 | G77: 지출
A78: 2020-03-26 | B78: 하나카드 | C78: 식비 | D78: 식자재 | E78: 두배로쇼핑 | F78: 23650 | G78: 지출
A79: 2020-03-26 | B79: 하나카드 | C79: 의복_미용 | D79: 미용/헤어 | E79: 싹뚝 | F79: 10000 | G79: 지출
A80: 2020-03-26 | B80: 하나카드 | C80: 건강 | D80: 병원/약국 | E80: 은혜산부인과의원 | F80: 36600 | G80: 지출
A81: 2020-03-26 | B81: 하나카드 | C81: 건강 | D81: 병원/약국 | E81: 우주영상의학과의원 | F81: 2500 | G81: 지출
A82: 2020-03-26 | B82: 하나카드 | C82: 기타 | D82: 택배비 | E82: (주)한진 | F82: 3500 | G82: 지출
A83: 2020-03-26 | B83: 하나카드 | C83: 주거 | D83: 관리비 | E83: 아파트관리비 | F83: 128930 | G83: 지출
A84: 2020-03-25 | B84: 하나카드 | C84: 식비 | D84: 간식비 | E84: 신일슈퍼 | F84: 2250 | G84: 지출
A85: 2020-03-25 | B85: 하나카드 | C85: 식비 | D85: 식자재 | E85: 두배로쇼핑 | F85: 10500 | G85: 지출
A86: 2020-03-25 | B86: 신한은행 | C86: 기타 | D86: 기타 | E86: 토스＿박주일 로또 꽝 | F86: 5500 | G86: 지출
A87: 2020-03-25 | B87: 신한은행 | C87: 수입 | D87: 기타수입 | E87: 아동수당 | F87: 100000 | G87: 수입
A88: 2020-03-24 | B88: 신한은행 | C88: 식비 | D88: 외식 | E88: 위메프커핑_갤 똑복기 | F88: 15905 | G88: 지출
A89: 2020-03-24 | B89: 하나카드 | C89: 식비 | D89: 식자재 | E89: 경선정육점 | F89: 9000 | G89: 지출
A90: 2020-03-23 | B90: 신한은행 | C90: 보험 | D90: 손해보험 | E90: DB손 | F90: 14210 | G90: 지출
A91: 2020-03-23 | B91: 신한은행 | C91: 보험 | D91: 손해보험 | E91: DB손 | F91: 13520 | G91: 지출
A92: 2020-03-22 | B92: 하나카드 | C92: 식비 | D92: 식자재 | E92: 두배로쇼핑 | F92: 5180 | G92: 지출
A93: 2020-03-22 | B93: 하나카드 | C93: 식비 | D93: 식자재 | E93: 경선정육점 | F93: 6000 | G93: 지출
A94: 2020-03-22 | B94: 하나카드 | C94: 식비 | D94: 간식비 | E94: 신일슈퍼 | F94: 4400 | G94: 지출
A95: 2020-03-22 | B95: 하나카드 | C95: 식비 | D95: 식자재 | E95: 두배로쇼핑 | F95: 35000 | G95: 지출
A96: 2020-03-22 | B96: 신한은행 | C96: 육아 | D96: 육아용품 | E96: 토스＿쿠팡 | F96: 34730 | G96: 지출
A97: 2020-03-22 | B97: 신한은행 | C97: 육아 | D97: 육아용품 | E97: 토스＿쿠팡 | F97: 42400 | G97: 지출
A98: 2020-03-21 | B98: 하나카드 | C98: 자동차 | D98: 주유비 | E98: 에스제이상사국제 | F98: 43642 | G98: 지출
A99: 2020-03-21 | B99: 신한은행 | C99: 식비 | D99: 간식비 | E99: 신일슈퍼 | F99: 2250 | G99: 지출
A100: 2020-03-21 | B100: 하나카드 | C100: 식비 | D100: 식자재 | E100: 두배로쇼핑 | F100: 3750 | G100: 지출
A101: 2020-03-21 | B101: 신한은행 | C101: 기타 | D101: 은행수수료 | E101: 대출이자 | F101: 1329 | G101: 지출
A102: 2020-03-21 | B102: 신한은행 | C102: 수입 | D102: 이자 | E102: 예금이자 | F102: 290 | G102: 수입
A103: 2020-03-20 | B103: 신한은행 | C103: 생활용품 | D103: 기타용품 | E103: 토스＿11번가, 욕실매트 | F103: 89760 | G103: 지출
A104: 2020-03-20 | B104: 신한은행 | C104: 생활용품 | D104: 기타용품 | E104: 쿠팡 테이프 | F104: 10000 | G104: 지출
A105: 2020-03-20 | B105: 신한은행 | C105: 기타 | D105: 기타 | E105: 쿠팡와우월회비 | F105: 2900 | G105: 지출
A106: 2020-03-20 | B106: 신한은행 | C106: 생활용품 | D106: 기타용품 | E106: 쿠팡 | F106: 20150 | G106: 지출
A107: 2020-03-20 | B107: 신한은행 | C107: 생활용품 | D107: 기타용품 | E107: 쿠팡 | F107: 15900 | G107: 지출
A108: 2020-03-20 | B108: 신한은행 | C108: 생활용품 | D108: 기타용품 | E108: 쿠팡 | F108: 62320 | G108: 지출
A109: 2020-03-20 | B109: 하나카드 | C109: 주거 | D109: 렌탈비 | E109: 엘지전자(주)렌탈 | F109: 20900 | G109: 지출
A110: 2020-03-20 | B110: 하나카드 | C110: 식비 | D110: 식자재 | E110: 두배로쇼핑 | F110: 7500 | G110: 지출
A111: 2020-03-19 | B111: 하나카드 | C111: 식비 | D111: 식자재 | E111: 두배로쇼핑 | F111: 13730 | G111: 지출
A112: 2020-03-19 | B112: 하나카드 | C112: 식비 | D112: 간식비 | E112: 빵지순례 | F112: 3000 | G112: 지출
A113: 2020-03-19 | B113: 하나카드 | C113: 식비 | E113: 우리들소아청소년과 | F113: 4800 | G113: 지출
A114: 2020-03-19 | B114: 하나카드 | C114: 건강 | D114: 병원/약국 | E114: 은혜산부인과의원 | F114: 10600 | G114: 지출
A115: 2020-03-19 | B115: 신한은행 | C115: 주거 | D115: 도시가스 | E115: 토스＿군산도시 | F115: 91670 | G115: 지출
A116: 2020-03-19 | B116: 하나카드 | C116: 식비 | D116: 간식비 | E116: 이마트24군산미공군 | F116: 1200 | G116: 지출
A117: 2020-03-19 | B117: 하나카드 | C117: 기타 | D117: 택배비 | E117: (주)한진 | F117: 3500 | G117: 지출
A118: 2020-03-18 | B118: 하나카드 | C118: 식비 | D118: 식자재 | E118: 경선정육점 | F118: 11000 | G118: 지출
A119: 2020-03-18 | B119: 하나카드 | C119: 식비 | D119: 간식비 | E119: 신일슈퍼 | F119: 9000 | G119: 지출
A120: 2020-03-18 | B120: 하나카드 | C120: 식비 | D120: 간식비 | E120: 빵지순례 | F120: 7000 | G120: 지출
A121: 2020-03-18 | B121: 하나카드 | C121: 건강 | D121: 병원/약국 | E121: 원광대학교병원 | F121: 68500 | G121: 지출
A122: 2020-03-18 | B122: 하나카드 | C122: 건강 | D122: 병원/약국 | E122: 원광대학교병원 | F122: 23600 | G122: 지출
A123: 2020-03-18 | B123: 하나카드 | C123: 건강 | D123: 병원/약국 | E123: 전북대학교병원컬러 | F123: 12800 | G123: 지출
A124: 2020-03-18 | B124: 하나카드 | C124: 건강 | D124: 병원/약국 | E124: 전북대학교병원 | F124: 48800 | G124: 지출
A125: 2020-03-18 | B125: 하나카드 | C125: 식비 | D125: 외식 | E125: 한국맥도날드(유)군 | F125: 29100 | G125: 지출
A126: 2020-03-18 | B126: 신한은행 | C126: 육아 | D126: 육아용품 | E126: 토스＿이소연 젖병 | F126: 14000 | G126: 지출
A127: 2020-03-17 | B127: 하나카드 | C127: 식비 | D127: 간식비 | E127: 빵지순례 | F127: 7500 | G127: 지출
A128: 2020-03-17 | B128: 하나카드 | C128: 식비 | D128: 식자재 | E128: 두배로쇼핑 | F128: 3980 | G128: 지출
A129: 2020-03-17 | B129: 하나카드 | C129: 식비 | D129: 간식비 | E129: 신일슈퍼 | F129: 2280 | G129: 지출
A130: 2020-03-16 | B130: 신한은행 | C130: 주거 | D130: 대출이자 | F130: 82400 | G130: 지출
A131: 2020-03-16 | B131: 신한 | C131: 식비 | E131: 11번가 제습기 ((9/12)) | F131: 27220 | G131: 지출
A132: 2020-03-16 | B132: 신한 | C132: 생활용품 | D132: 가전/가구 | E132: G마켓 재습기 ((9/12)) | F132: -26600 | G132: 지출
A133: 2020-03-15 | B133: 하나카드 | C133: 식비 | D133: 식자재 | E133: 경선정육점 | F133: 12000 | G133: 지출
A134: 2020-03-15 | B134: 하나카드 | C134: 식비 | D134: 간식비 | E134: 신일슈퍼 | F134: 2250 | G134: 지출
A135: 2020-03-15 | B135: 하나카드 | C135: 식비 | D135: 외식 | E135: 한국맥도날드(유)군 | F135: 28500 | G135: 지출
A136: 2020-03-14 | B136: 하나카드 | C136: 식비 | D136: 식자재 | E136: 두배로쇼핑 | F136: 70000 | G136: 지출
A137: 2020-03-14 | B137: 신한은행 | C137: 식비 | D137: 식자재 | E137: 쿠팡 | F137: 13300 | G137: 지출
A138: 2020-03-14 | B138: 하나카드 | C138: 식비 | D138: 간식비 | E138: 신일슈퍼 | F138: 10250 | G138: 지출
A139: 2020-03-14 | B139: 하나카드 | C139: 식비 | D139: 간식비 | E139: 신일슈퍼 | F139: 3800 | G139: 지출
A140: 2020-03-14 | B140: 하나카드 | C140: 식비 | D140: 식자재 | E140: 두배로쇼핑 | F140: 43240 | G140: 지출
A141: 2020-03-14 | B141: 신한은행 | C141: 식비 | D141: 식자재 | E141: 쿠팡 | F141: 9400 | G141: 지출
A142: 2020-03-13 | B142: 신한은행 | C142: 식비 | D142: 식자재 | E142: 쿠팡 | F142: 20320 | G142: 지출
A143: 2020-03-13 | B143: 신한은행 | C143: 식비 | D143: 식자재 | E143: 쿠팡 | F143: 13020 | G143: 지출
A144: 2020-03-13 | B144: 신한은행 | C144: 식비 | E144: 토스＿김인철 | F144: 163 | G144: 지출
A145: 2020-03-13 | B145: 신한은행 | C145: 식비 | E145: 토스＿김시윤 | F145: 11360 | G145: 지출
A146: 2020-03-13 | B146: 하나카드 | C146: 주거 | D146: KT인터넷 | E146: KT유선상품 | F146: 28050 | G146: 지출
A147: 2020-03-12 | B147: 하나카드 | C147: 식비 | D147: 식자재 | E147: 경선정육점 | F147: 12800 | G147: 지출
A148: 2020-03-12 | B148: 하나카드 | C148: 식비 | D148: 식자재 | E148: 두배로쇼핑 | F148: 1200 | G148: 지출
A149: 2020-03-12 | B149: 하나카드 | C149: 식비 | D149: 식자재 | E149: 두배로쇼핑 | F149: 2880 | G149: 지출
A150: 2020-03-12 | B150: 하나카드 | C150: 건강 | D150: 병원/약국 | E150: 은혜산부인과의원 | F150: 80600 | G150: 지출
A151: 2020-03-12 | B151: 하나카드 | C151: 식비 | D151: 식자재 | E151: 두배로쇼핑 | F151: 28740 | G151: 지출
A152: 2020-03-11 | B152: 신한은행 | C152: 식비 | D152: 식자재 | E152: 카드 | F152: 74100 | G152: 지출
A153: 2020-03-11 | B153: 하나카드 | C153: 통신비 | E153: LGU+통신요금자동서비스번호 | F153: 62830 | G153: 지출
A154: 2020-03-11 | B154: 하나카드 | C154: 통신비 | E154: LGU+통신요금자동서비스번호 | F154: 113500 | G154: 지출
A155: 2020-03-10 | B155: 신한은행 | C155: 수입 | D155: 월급 | E155: 엘비휴넷㈜ 연말정산 | F155: 3984860 | G155: 수입
A156: 2020-03-10 | B156: 신한 | C156: 자기계발 | D156: 도서/문구 | E156: 리디북스 | F156: 6500 | G156: 지출
A157: 2020-03-10 | B157: 신한은행 | C157: 기타 | D157: 은행수수료 | E157: SMS | F157: 1000 | G157: 지출
A158: 2020-03-10 | B158: 하나카드 | C158: 주거 | D158: 렌탈비 | E158: 엘지전자(주)렌탈 | F158: 44900 | G158: 지출
A159: 2020-03-10 | B159: 하나카드 | C159: 식비 | D159: 식자재 | E159: 경선정육점 | F159: 5500 | G159: 지출
A160: 2020-03-10 | B160: 하나카드 | C160: 식비 | D160: 식자재 | E160: 두배로쇼핑 | F160: 8160 | G160: 지출
A161: 2020-03-10 | B161: 하나카드 | C161: 식비 | D161: 식자재 | E161: 경선정육점 | F161: 12500 | G161: 지출
A162: 2020-03-11 | B162: 농협 | C162: 저축_투자 | D162: 저축 | E162: 3개통장 | F162: 100000 | G162: 지출
A163: 2020-03-16 | B163: 농협 | C163: 기부 | D163: CCC | E163: ccc | F163: 50000 | G163: 지출
A164: 2020-03-16 | B164: 농협 | C164: 기부 | D164: 컨패션 | E164: 컨팬션 | F164: 45000 | G164: 지출
A165: 2020-03-19 | B165: 농협 | C165: 수입 | D165: 기타수입 | E165: 공유기 | F165: 37000 | G165: 수입
A166: 2020-04-03 | B166: 농협 | C166: 수입 | D166: 기타수입 | E166: 출산축하, 김광수 | F166: 300000 | G166: 수입
A167: 2020-04-04 | B167: 농협 | C167: 수입 | D167: 기타수입 | E167: 출산축하, 박시형 | F167: 100000 | G167: 수입
A168: 2020-04-05 | B168: 농협 | C168: 수입 | D168: 기타수입 | E168: 출산축하, 김현철 | F168: 300000 | G168: 수입
A169: 2020-04-08 | B169: 군산사랑 | C169: 식비 | D169: 식자재 | E169: 두배로쇼핑 | F169: 13400 | G169: 지출
A170: 2020-04-08 | B170: 군산사랑 | C170: 건강 | D170: 병원/약국 | E170: 은혜산부인과의원 | F170: 166190 | G170: 지출

Sheet 4월
A2: 2020-04-10 | B2: 전체보기 | C2: 수입보기 | D2: 날짜내림정렬 | E2: 금액 \ 표시하기 | I2: 노트
B3: 3월 이월금 | D3: 날짜오름정렬
A4: 예산 사용 현황 | B4: 지출내역 | C4: 사용 예산 | D4: 실사용금액 | E4: 예산사용율 | F4: 예산 잔액 | G4: 초과 지출 소명
B5: 저축_투자 | C5: 410000 | D5: =SUMIF($C$25:$C$999,B5,$F$25:$F$999) -> 0 | E5: =D5/C5 -> 0 | F5: =C5-D5 -> 410000
B6: 주거 | C6: 397500 | D6: 322220 | E6: 0.8106163522 | F6: 75280
B7: 식비 | C7: 500000 | D7: 652840 | E7: 1.30568 | F7: -152840
B8: 생활용품 | C8: 50000 | D8: 25820 | E8: 0.5164 | F8: 24180
B9: 의복_미용 | C9: 30000 | D9: 135900 | E9: 4.53 | F9: -105900 | G9: 시원이 출산 | I9: 주거 | J9: =SUMIF($C$25:$C$999,I9,$F$25:$F$999) -> 322220 | K9: 전체 | M9: 수입내용 | O9: 비율 | Q9: 고정지출 | S9: 비율 | U9: 육아
B10: 건강 | C10: 50000 | D10: 20100 | E10: 0.402 | F10: 29900 | I10: 관리비 | J10: =SUMIF($D$25:$D$999,I10,$F$25:$F$999) -> 139470 | K10: =J10/$J$9 -> 0.4328409161 | M10: 월급 | N10: =SUMIF($D$25:$D$999,M10,$F$25:$F$999) -> 2559570 | O10: =N10/N13 -> 0.7466504476 | Q10: 신한저축 | R10: =SUMIF($D$25:$D$999,Q10,$F$25:$F$999) -> 0 | S10: =R10/$R$17 -> 0 | U10: 육아용품 | V10: =SUMIF($D$25:$D$999,U10,$F$25:$F$999) -> 181590
B11: 자기계발 | C11: 50000 | D11: 6500 | E11: 0.13 | F11: 43500 | I11: 도시가스 | J11: =SUMIF($D$25:$D$296,I11,$F$25:$F$999) -> 820 | K11: 0.002544845137 | M11: 기타수입 | N11: =SUMIF($D$25:$D$252,M11,$F$25:$F$999) -> 868500 | O11: =N11/N13 -> 0.2533495524 | Q11: 저축 | R11: =SUMIF($D$25:$D$999,Q11,$F$25:$F$999) -> 0 | S11: 0 | U11: 교육비 | V11: =SUMIF($D$25:$D$999,U11,$F$25:$F$999) -> 74000
B12: 자동차 | C12: 200000 | D12: 41036 | E12: 0.20518 | F12: 158964 | I12: 대출이자 | J12: =SUMIF($D$25:$D$999,I12,$F$25:$F$999) -> 88080 | K12: 0.2733536093 | M12: 이자 | N12: =SUMIF($D$25:$D$252,M12,$F$25:$F$999) -> 0 | O12: =N12/N13 -> 0 | Q12: CCC | R12: =SUMIF($D$25:$D$999,Q12,$F$25:$F$999) -> 0 | S12: 0 | U12: 장난감 | V12: =SUMIF($D$25:$D$999,U12,$F$25:$F$999) -> 83000
B13: 육아 | C13: 200000 | D13: 338590 | E13: 1.69295 | F13: -138590 | I13: 수리/청소 | J13: =SUMIF($D$25:$D$999,I13,$F$25:$F$999) -> 0 | K13: 0 | M13: 합계 | N13: =SUM(N10:N12) -> 3428070 | Q13: 손해보험 | R13: =SUMIF($D$25:$D$999,Q13,$F$25:$F$999) -> 27730 | S13: 0.1614556041 | V13: =SUBTOTAL(9,V10:V12) -> 338590
B14: 보험 | C14: 42718 | D14: 27730 | E14: 0.6491408774 | F14: 14988 | I14: 렌탈비 | J14: =SUMIF($D$25:$D$999,I14,$F$25:$F$999) -> 65800 | K14: 0.2042083049 | Q14: 교육비 | R14: =SUMIF($D$25:$D$999,Q14,$F$25:$F$999) -> 74000 | S14: 0.4308588064
B15: 이벤트 | C15: 50000 | D15: 0 | E15: 0 | F15: 50000 | I15: KT인터넷 | J15: =SUMIF($D$25:$D$999,I15,$F$25:$F$999) -> 28050 | K15: 0.0870523245 | Q15: 주거 | R15: =SUMIF($C$26:$C$999,Q15,$F$25:$F$999) -> 41420 | S15: 0.2411644833
B16: 섬김비 | C16: 250000 | D16: 660500 | E16: 2.642 | F16: -410500 | Q16: 자동차 | R16: =SUMIF($C$26:$C$999,Q16,$F$25:$F$999) -> 28600 | S16: 0.1665211063
B17: 헌금 | C17: 300000 | D17: 200000 | E17: 0.6666666667 | F17: 100000 | I17: 식비 | J17: =SUMIF($C$26:$C$999,I17,$F$25:$F$999) -> 1259772 | K17: 전체 | M17: 자동차 | N17: =SUMIF($C$26:$C$999,M17,$F$25:$F$999) -> 28600 | O17: 전체 | Q17: 합계 | R17: =SUM(R10:R16) -> 171750
B18: 기부 | C18: 115000 | D18: 0 | E18: 0 | F18: 115000 | I18: 식자재 | J18: =SUMIF($D$25:$D$999,I18,$F$25:$F$999) -> 493600 | K18: =J18/$J$17 -> 0.391816932 | M18: 주유비 | N18: =SUMIF($D$25:$D$999,M18,$F$25:$F$999) -> 41036 | O18: =N18/$N$17 -> 1.434825175
B19: 통신비 | C19: 120000 | D19: 137680 | E19: 1.147333333 | F19: -17680 | I19: 외식 | J19: =SUMIF($D$25:$D$296,I19,$F$25:$F$999) -> 135600 | K19: =J19/$J$17 -> 0.1076385251 | M19: 택시비 | N19: =SUMIF($D$25:$D$999,M19,$F$25:$F$999) -> 0 | O19: =N19/$N$17 -> 0 | Q19: 섬김비 | R19: =SUMIF($D$25:$D$999,Q19,$F$25:$F$999) -> 0
B20: 기타 | C20: 30000 | D20: 14822 | E20: 0.4940666667 | F20: 15178 | I20: 간식비 | J20: =SUMIF($D$25:$D$296,I20,$F$25:$F$999) -> 23640 | K20: =J20/$J$17 -> 0.01876530039 | M20: 보험/세금 | N20: =SUMIF($D$25:$D$999,M20,$F$25:$F$999) -> 0 | O20: =N20/$N$17 -> 0
B21: 합계 | C21: =SUM(C5:C20) -> 2795218 | D21: =SUM(D5:D20) -> 2583738 | E21: 예산-실사용금액 | F21: =SUM(F5:F20) -> 211480 | M21: 주차/통행료 | N21: =SUMIF($D$25:$D$999,M21,$F$25:$F$999) -> 0 | O21: =N21/$N$17 -> 0
B22: 총수입-총지출 | C22: =N13-D21 -> 844332
A24: 날짜 | B24: 계좌 | C24: 대분류 | D24: 소분류 | E24: 내용 | F24: 금액 | G24: 수입지출
A25: 2020-05-06 | B25: 신한은행 | C25: 육아 | D25: 육아용품 | E25: 토스＿쿠팡 예원이 쉬통 | F25: 39380 | G25: 지출
A26: 2020-05-06 | B26: 하나카드 | C26: 식비 | D26: 식자재 | E26: 두배로쇼핑 | F26: 26350 | G26: 지출
A27: 2020-05-06 | B27: 하나카드 | C27: 식비 | D27: 식자재 | E27: 경선정육점 | F27: 6700 | G27: 지출
A28: 2020-05-05 | B28: 신한은행 | C28: 식비 | D28: 외식 | E28: 요기요 | F28: 26500 | G28: 지출
A29: 2020-05-03 | B29: 하나카드 | C29: 식비 | D29: 식자재 | E29: 두배로쇼핑 | F29: 24090 | G29: 지출
A30: 2020-05-02 | B30: 신한은행 | C30: 육아 | D30: 육아용품 | E30: 토스＿쿠팡 예원이 선캡 | F30: 8500 | G30: 지출
A31: 2020-05-02 | B31: 하나카드 | C31: 식비 | D31: 식자재 | E31: 경선정육점 | F31: 17000 | G31: 지출
A32: 2020-05-01 | B32: 하나카드 | C32: 식비 | D32: 식자재 | E32: 두배로쇼핑 | F32: 19860 | G32: 지출
A33: 2020-04-30 | B33: 신한은행 | C33: 육아 | D33: 육아용품 | E33: 쿠팡 보솜이 기저귀2단계 | F33: 39800 | G33: 지출
A34: 2020-04-30 | B34: 하나카드 | C34: 식비 | D34: 식자재 | E34: 두배로쇼핑 | F34: 28090 | G34: 지출
A35: 2020-04-30 | B35: 하나카드 | C35: 식비 | D35: 식자재 | E35: 두배로쇼핑 | F35: 4050 | G35: 지출
A36: 2020-04-28 | B36: 신한은행 | C36: 육아 | D36: 장난감 | E36: 쿠팡 상원이 레고 5월5일 용 | F36: 47500 | G36: 지출
A37: 2020-04-28 | B37: 하나카드 | C37: 식비 | D37: 식자재 | E37: 두배로쇼핑 | F37: 5050 | G37: 지출
A38: 2020-04-28 | B38: 하나카드 | C38: 식비 | D38: 식자재 | E38: 경선정육점 | F38: 28600 | G38: 지출
A39: 2020-04-28 | B39: 하나카드 | C39: 자동차 | D39: 주유비 | E39: 에스제이상사국제충 | F39: 41036 | G39: 지출
A40: 2020-04-28 | B40: 신한은행 | C40: 육아 | D40: 장난감 | E40: 쿠팡 예원이 콩순이 냉장고 | F40: 35500 | G40: 지출
A41: 2020-04-27 | B41: 신한은행 | C41: 육아 | D41: 육아용품 | E41: 쿠팡 손세정네 | F41: 10300 | G41: 지출
A42: 2020-04-27 | B42: 하나카드 | C42: 식비 | D42: 외식 | E42: 한국맥도날드(유)군 | F42: 17100 | G42: 지출
A43: 2020-04-27 | B43: 하나카드 | C43: 주거 | D43: 관리비 | E43: 아파트관리비 | F43: 139470 | G43: 지출
A44: 2020-04-26 | B44: 하나카드 | C44: 식비 | D44: 식자재 | E44: 두배로쇼핑 | F44: 25260 | G44: 지출
A45: 2020-04-26 | B45: 하나카드 | C45: 식비 | D45: 식자재 | E45: 두배로쇼핑 | F45: 7960 | G45: 지출
A46: 2020-04-26 | B46: 신한은행 | C46: 식비 | D46: 식자재 | E46: 경선정육점 | F46: 22800 | G46: 지출
A47: 2020-04-25 | B47: 신한은행 | C47: 식비 | D47: 식자재 | E47: 두배로쇼핑 | F47: 7800 | G47: 지출
A48: 2020-04-25 | B48: 신한은행 | C48: 육아 | D48: 육아용품 | E48: 토스＿정세희 아기띠 중고나라 | F48: 33000 | G48: 지출
A49: 2020-04-25 | B49: 신한은행 | C49: 식비 | D49: 외식 | E49: 요기요 | F49: 19900 | G49: 지출
A50: 2020-04-25 | B50: 신한은행 | C50: 건강 | D50: 병원/약국 | E50: 하나약국 | F50: 6000 | G50: 지출
A51: 2020-04-25 | B51: 신한은행 | C51: 건강 | D51: 병원/약국 | E51: 군산우리들소아 | F51: 1100 | G51: 지출
A52: 2020-04-24 | B52: 신한은행 | C52: 식비 | D52: 식자재 | E52: 두배로쇼핑 | F52: 9180 | G52: 지출
A53: 2020-04-24 | B53: 신한은행 | C53: 의복_미용 | D53: 미용/헤어 | E53: 싹뚝 | F53: 7000 | G53: 지출
A54: 2020-04-24 | B54: 신한은행 | C54: 식비 | D54: 식자재 | E54: 삼거리정육점 | F54: 6000 | G54: 지출
A55: 2020-04-24 | B55: 신한은행 | C55: 수입 | D55: 기타수입 | E55: 아동수당 | F55: 100000 | G55: 수입
A56: 2020-04-23 | B56: 신한은행 | C56: 식비 | D56: 식자재 | E56: 두배로쇼핑 | F56: 12250 | G56: 지출
A57: 2020-04-23 | B57: 신한은행 | C57: 식비 | D57: 간식비 | E57: 정읍떡집 | F57: 9000 | G57: 지출
A58: 2020-04-23 | B58: 신한은행 | C58: 주거 | D58: 도시가스 | E58: 토스＿군산도시 | F58: 820 | G58: 지출
A59: 2020-04-21 | B59: 신한은행 | C59: 보험 | D59: 손해보험 | E59: DB손 | F59: 13520 | G59: 지출
A60: 2020-04-21 | B60: 신한은행 | C60: 보험 | D60: 손해보험 | E60: DB손 | F60: 14210 | G60: 지출
A61: 2020-04-21 | B61: 신한은행 | C61: 의복_미용 | D61: 의류/잡화 | E61: 네이버페이결제 운동화 | F61: 118900 | G61: 지출
A62: 2020-04-21 | B62: 신한은행 | C62: 기타 | D62: 택배비 | E62: (주)한진 | F62: 3500 | G62: 지출
A63: 2020-04-20 | B63: 신한은행 | C63: 기타 | D63: 기타 | E63: 쿠팡와우월회비 | F63: 2900 | G63: 지출
A64: 2020-04-20 | B64: 하나카드 | C64: 주거 | D64: 렌탈비 | E64: 엘지전자(주)렌탈케 | F64: 20900 | G64: 지출
A65: 2020-04-18 | B65: 신한은행 | C65: 기타 | D65: 은행수수료 | E65: 대출이자 | F65: 5122 | G65: 지출
A66: 2020-04-17 | B66: 신한은행 | C66: 식비 | D66: 외식 | E66: 요기요 | F66: 18000 | G66: 지출
A67: 2020-04-17 | B67: 신한은행 | C67: 의복_미용 | D67: 미용/헤어 | E67: 토스＿이순화 | F67: 10000 | G67: 지출
A68: 2020-04-17 | B68: 신한은행 | C68: 섬김비 | D68: 지인 | E68: 떡향 상원이 출생기념 | F68: 60000 | G68: 지출
A69: 2020-04-17 | B69: 신한은행 | C69: 식비 | D69: 식자재 | E69: 두배로쇼핑 | F69: 32300 | G69: 지출
A70: 2020-04-17 | B70: 신한은행 | C70: 식비 | D70: 식자재 | E70: ㈜이마트에브리 | F70: 9900 | G70: 지출
A71: 2020-04-17 | B71: 신한은행 | C71: 육아 | D71: 육아용품 | E71: 쿠팡 분유 | F71: 50610 | G71: 지출
A72: 2020-04-16 | B72: 신한은행 | C72: 식비 | D72: 식자재 | E72: 두배로쇼핑 | F72: 21410 | G72: 지출
A73: 2020-04-16 | B73: 신한은행 | C73: 식비 | D73: 식자재 | E73: 두배로쇼핑 | F73: 6250 | G73: 지출
A74: 2020-04-16 | B74: 하나카드 | C74: 주거 | D74: 렌탈비 | E74: 엘지전자(주)렌탈케 | F74: 44900 | G74: 지출
A75: 2020-04-16 | B75: 신한 | C75: 생활용품 | D75: 가전/가구 | E75: 11번가 제습기 ((10/12)) | F75: 27220 | G75: 지출
A76: 2020-04-16 | B76: 신한 | C76: 생활용품 | D76: 가전/가구 | E76: G마켓 재습기 ((10/12)) | F76: -26600 | G76: 지출
A77: 2020-04-16 | B77: 하나카드 | C77: 주거 | D77: KT인터넷 | E77: KT유선상품 | F77: 28050 | G77: 지출
A78: 2020-04-16 | B78: 신한은행 | C78: 기타 | D78: 기타 | E78: GS25소룡상떼 바운서 나눔 과장 | F78: 3300 | G78: 지출
A79: 2020-04-15 | B79: 신한은행 | C79: 식비 | D79: 식자재 | E79: 두배로쇼핑 | F79: 32770 | G79: 지출
A80: 2020-04-14 | B80: 신한은행 | C80: 주거 | D80: 대출이자 | E80: 대출이자 | F80: 88080 | G80: 지출
A81: 2020-04-14 | B81: 신한은행 | C81: 식비 | D81: 식자재 | E81: 두배로쇼핑 | F81: 3900 | G81: 지출
A82: 2020-04-13 | B82: 신한은행 | C82: 식비 | D82: 식자재 | E82: 카드 ??? | F82: 40400 | G82: 지출
A83: 2020-04-13 | B83: 신한은행 | C83: 식비 | D83: 외식 | E83: 요기요 | F83: 18000 | G83: 지출
A84: 2020-04-13 | B84: 신한은행 | C84: 식비 | D84: 간식비 | E84: 신일슈퍼 | F84: 8340 | G84: 지출
A85: 2020-04-13 | B85: 신한은행 | C85: 식비 | D85: 외식 | E85: 한국맥도날드 | F85: 13600 | G85: 지출
A86: 2020-04-13 | B86: 하나카드 | C86: 통신비 | D86: 김인철 | E86: LGU+통신요금자동서비스번호 | F86: 103100 | G86: 지출
A87: 2020-04-13 | B87: 하나카드 | C87: 통신비 | D87: 김진령 | E87: LGU+통신요금자동서비스번호 | F87: 34580 | G87: 지출
A88: 2020-04-12 | B88: 신한은행 | C88: 식비 | D88: 식자재 | E88: 두배로쇼핑 | F88: 4010 | G88: 지출
A89: 2020-04-12 | B89: 신한은행 | C89: 육아 | D89: 교육비 | E89: 햇님토이 상워니 예워니 선물 | F89: 74000 | G89: 지출
A90: 2020-04-11 | B90: 신한은행 | C90: 건강 | D90: 병원/약국 | E90: 하나약국 | F90: 3000 | G90: 지출
A91: 2020-04-11 | B91: 신한은행 | C91: 생활용품 | D91: 기타용품 | E91: 쿠팡 케이블 | F91: 6700 | G91: 지출
A92: 2020-04-11 | B92: 신한은행 | C92: 생활용품 | D92: 기타용품 | E92: 쿠팡 | F92: 18500 | G92: 지출
A93: 2020-04-11 | B93: 신한은행 | C93: 식비 | D93: 간식비 | E93: 주식회사와이 303호 과자 | F93: 6300 | G93: 지출
A94: 2020-04-11 | B94: 신한은행 | C94: 식비 | D94: 외식 | E94: 한국맥도날드 303호 점심 | F94: 22500 | G94: 지출
A95: 2020-04-11 | B95: 하나카드 | C95: 건강 | D95: 병원/약국 | E95: 군산우리들소아과의 | F95: 5000 | G95: 지출
A96: 2020-04-10 | B96: 신한 | C96: 수입 | D96: 월급 | E96: 월급 | F96: 2559570 | G96: 수입
A97: 2020-04-10 | B97: 신한 | C97: 자기계발 | D97: 도서/문구 | E97: 리디북스 | F97: 6500 | G97: 지출
A98: 2020-04-10 | B98: 하나카드 | C98: 건강 | D98: 병원/약국 | E98: 군산우리들소아과의 | F98: 5000 | G98: 지출
A99: 2020-04-17 | B99: 농협 | C99: 수입 | D99: 기타수입 | E99: 출산축하, 큰형님 | F99: 300000 | G99: 수입
A100: 2020-04-21 | B100: 농협 | C100: 수입 | D100: 기타수입 | E100: 공유기 | F100: 18500 | G100: 수입
A101: 2020-04-24 | B101: 농협 | C101: 수입 | D101: 기타수입 | E101: 아동수당 | F101: 100000 | G101: 수입
A102: 2020-04-24 | B102: 농협 | C102: 수입 | D102: 기타수입 | E102: 양육수당 | F102: 200000 | G102: 수입
A103: 2020-05-05 | B103: 농협 | C103: 수입 | D103: 기타수입 | E103: 김현철-어린이날선물비 | F103: 100000 | G103: 수입
A104: 2020-05-07 | B104: 농협 | C104: 섬김비 | D104: 가족/친지 | E104: 어버이날-처가 | F104: 200500 | G104: 지출
A105: 2020-05-07 | B105: 농협 | C105: 섬김비 | D105: 가족/친지 | E105: 어버이날-친가 | F105: 400000 | G105: 지출
A106: 2020-05-03 | B106: 현금 | C106: 헌금 | D106: 기타헌금 | E106: 감사헌금 | F106: 200000 | G106: 지출
A107: 2020-04-21 | B107: 군산사랑 | C107: 식비 | D107: 식자재 | E107: 두배로쇼핑 | F107: 20880 | G107: 지출
A108: 2020-04-21 | B108: 군산사랑 | C108: 식비 | D108: 식자재 | E108: 경선정육점 | F108: 5800 | G108: 지출
A109: 2020-04-19 | B109: 군산사랑 | C109: 식비 | D109: 식자재 | E109: 두배로쇼핑 | F109: 19060 | G109: 지출
A110: 2020-04-15 | B110: 군산사랑 | C110: 식비 | D110: 식자재 | E110: 두배로쇼핑 | F110: 3980 | G110: 지출
A111: 2020-04-15 | B111: 군산사랑 | C111: 식비 | D111: 식자재 | E111: 두배로쇼핑 | F111: 9800 | G111: 지출
A112: 2020-04-14 | B112: 군산사랑 | C112: 식비 | D112: 식자재 | E112: 두배로쇼핑 | F112: 5400 | G112: 지출
A113: 2020-04-14 | B113: 군산사랑 | C113: 식비 | D113: 식자재 | E113: 두배로쇼핑 | F113: 26700 | G113: 지출
A114: 2020-04-12 | B114: 군산사랑 | C114: 수입 | D114: 기타수입 | E114: 출산축하, 이동건집사님 | F114: 50000 | G114: 수입

Sheet 5월
A2: 2020-05-10 | B2: 전체보기 | C2: 수입보기 | D2: 날짜내림정렬 | E2: 금액 \ 표시하기 | I2: 노트
B3: 4월 이월금 | D3: 날짜오름정렬
A4: 예산 사용 현황 | B4: 지출내역 | C4: 사용 예산 | D4: 실사용금액 | E4: 예산사용율 | F4: 예산 잔액 | G4: 초과 지출 소명
B5: 저축_투자 | C5: 410000 | D5: =SUMIF($C$25:$C$999,B5,$F$25:$F$999) -> 110000 | E5: =D5/C5 -> 0.2682926829 | F5: =C5-D5 -> 300000
B6: 주거 | C6: 397500 | D6: 447590 | E6: 1.126012579 | F6: -50090
B7: 식비 | C7: 500000 | D7: 628440 | E7: 1.25688 | F7: -128440
B8: 생활용품 | C8: 50000 | D8: 114130 | E8: 2.2826 | F8: -64130
B9: 의복_미용 | C9: 30000 | D9: 17000 | E9: 0.5666666667 | F9: 13000 | I9: 주거 | J9: =SUMIF($C$25:$C$999,I9,$F$25:$F$999) -> 447590 | K9: 전체 | M9: 수입내용 | O9: 비율 | Q9: 고정지출 | S9: 비율 | U9: 육아
B10: 건강 | C10: 50000 | D10: 200300 | E10: 4.006 | F10: -150300 | I10: 관리비 | J10: =SUMIF($D$25:$D$999,I10,$F$25:$F$999) -> 151050 | K10: =J10/$J$9 -> 0.3374740276 | M10: 월급 | N10: =SUMIF($D$25:$D$999,M10,$F$25:$F$999) -> 2516970 | O10: =N10/N13 -> 0.5389115014 | Q10: 신한저축 | R10: =SUMIF($D$25:$D$999,Q10,$F$25:$F$999) -> 0 | S10: =R10/$R$17 -> 0 | U10: 육아용품 | V10: =SUMIF($D$25:$D$999,U10,$F$25:$F$999) -> 490680
B11: 자기계발 | C11: 50000 | D11: 6500 | E11: 0.13 | F11: 43500 | I11: 도시가스 | J11: =SUMIF($D$25:$D$296,I11,$F$25:$F$999) -> 117450 | K11: 0.2624053263 | M11: 기타수입 | N11: =SUMIF($D$25:$D$252,M11,$F$25:$F$999) -> 2153500 | O11: =N11/N13 -> 0.4610884986 | Q11: 저축 | R11: =SUMIF($D$25:$D$999,Q11,$F$25:$F$999) -> 110000 | S11: 0.2250349316 | U11: 교육비 | V11: =SUMIF($D$25:$D$999,U11,$F$25:$F$999) -> 65000
B12: 자동차 | C12: 200000 | D12: 86686 | E12: 0.43343 | F12: 113314 | I12: 대출이자 | J12: =SUMIF($D$25:$D$999,I12,$F$25:$F$999) -> 85240 | K12: 0.1904421457 | M12: 이자 | N12: =SUMIF($D$25:$D$252,M12,$F$25:$F$999) -> 0 | O12: =N12/N13 -> 0 | Q12: CCC | R12: =SUMIF($D$25:$D$999,Q12,$F$25:$F$999) -> 0 | S12: 0 | U12: 장난감 | V12: =SUMIF($D$25:$D$999,U12,$F$25:$F$999) -> 30733
B13: 육아 | C13: 200000 | D13: 586413 | E13: 2.932065 | F13: -386413 | I13: 수리/청소 | J13: =SUMIF($D$25:$D$999,I13,$F$25:$F$999) -> 0 | K13: 0 | M13: 합계 | N13: =SUM(N10:N12) -> 4670470 | Q13: 손해보험 | R13: =SUMIF($D$25:$D$999,Q13,$F$25:$F$999) -> 25540 | S13: 0.05224901956 | V13: =SUBTOTAL(9,V10:V12) -> 586413
B14: 보험 | C14: 42718 | D14: 25540 | E14: 0.5978744323 | F14: 17178 | I14: 렌탈비 | J14: =SUMIF($D$25:$D$999,I14,$F$25:$F$999) -> 65800 | K14: 0.14700954 | Q14: 교육비 | R14: =SUMIF($D$25:$D$999,Q14,$F$25:$F$999) -> 65000 | S14: 0.1329751868
B15: 이벤트 | C15: 50000 | D15: 0 | E15: 0 | F15: 50000 | I15: KT인터넷 | J15: =SUMIF($D$25:$D$999,I15,$F$25:$F$999) -> 28050 | K15: 0.06266896043 | Q15: 주거 | R15: =SUMIF($C$26:$C$999,Q15,$F$25:$F$999) -> 80333 | S15: 0.1643430105
B16: 섬김비 | C16: 250000 | D16: 200050 | E16: 0.8002 | F16: 49950 | Q16: 자동차 | R16: =SUMIF($C$26:$C$999,Q16,$F$25:$F$999) -> 207940 | S16: 0.4253978515
B17: 헌금 | C17: 300000 | D17: 0 | E17: 0 | F17: 300000 | I17: 식비 | J17: =SUMIF($C$26:$C$999,I17,$F$25:$F$999) -> 1078265 | K17: 전체 | M17: 자동차 | N17: =SUMIF($C$26:$C$999,M17,$F$25:$F$999) -> 207940 | O17: 전체 | Q17: 합계 | R17: =SUM(R10:R16) -> 488813
B18: 기부 | C18: 115000 | D18: 0 | E18: 0 | F18: 115000 | I18: 식자재 | J18: =SUMIF($D$25:$D$999,I18,$F$25:$F$999) -> 395360 | K18: =J18/$J$17 -> 0.3666631116 | M18: 주유비 | N18: =SUMIF($D$25:$D$999,M18,$F$25:$F$999) -> 86686 | O18: =N18/$N$17 -> 0.4168798692
B19: 통신비 | C19: 120000 | D19: 247360 | E19: 2.061333333 | F19: -127360 | I19: 외식 | J19: =SUMIF($D$25:$D$296,I19,$F$25:$F$999) -> 160000 | K19: =J19/$J$17 -> 0.1483865284 | M19: 택시비 | N19: =SUMIF($D$25:$D$999,M19,$F$25:$F$999) -> 0 | O19: =N19/$N$17 -> 0 | Q19: 섬김비 | R19: =SUMIF($D$25:$D$999,Q19,$F$25:$F$999) -> 0
B20: 기타 | C20: 30000 | D20: 54218 | E20: 1.807266667 | F20: -24218 | I20: 간식비 | J20: =SUMIF($D$25:$D$296,I20,$F$25:$F$999) -> 73080 | K20: =J20/$J$17 -> 0.06777554683 | M20: 보험/세금 | N20: =SUMIF($D$25:$D$999,M20,$F$25:$F$999) -> 0 | O20: =N20/$N$17 -> 0
B21: 합계 | C21: =SUM(C5:C20) -> 2795218 | D21: =SUM(D5:D20) -> 2724227 | E21: 예산-실사용금액 | F21: =SUM(F5:F20) -> 70991 | M21: 주차/통행료 | N21: =SUMIF($D$25:$D$999,M21,$F$25:$F$999) -> 0 | O21: =N21/$N$17 -> 0
B22: 총수입-총지출 | C22: =N13-D21 -> 1946243
A24: 날짜 | B24: 계좌 | C24: 대분류 | D24: 소분류 | E24: 내용 | F24: 금액 | G24: 수입지출
A25: 2020-06-08 | B25: 하나카드 | C25: 식비 | D25: 간식비 | E25: 신일슈퍼 | F25: 8550 | G25: 지출
A26: 2020-06-08 | B26: 하나카드 | C26: 기타 | D26: 기타 | E26: 엑스세대서점??? | F26: 1000 | G26: 지출
A27: 2020-06-07 | B27: 하나카드 | C27: 식비 | D27: 식자재 | E27: 두배로쇼핑 | F27: 5980 | G27: 지출
A28: 2020-06-07 | B28: 하나카드 | C28: 식비 | D28: 간식비 | E28: 빵지순례 | F28: 2000 | G28: 지출
A29: 2020-06-07 | B29: 하나카드 | C29: 식비 | D29: 간식비 | E29: 빵지순례 | F29: 13000 | G29: 지출
A30: 2020-06-07 | B30: 하나카드 | C30: 생활용품 | D30: 기타용품 | E30: 창조철물공고 싱크대 꼭지 | F30: 10000 | G30: 지출
A31: 2020-06-07 | B31: 하나카드 | C31: 자동차 | D31: 주유비 | E31: 에스제이상사국제충 | F31: 23820 | G31: 지출
A32: 2020-06-06 | B32: 하나카드 | C32: 식비 | D32: 식자재 | E32: 경선정육점 | F32: 6000 | G32: 지출
A33: 2020-06-06 | B33: 하나카드 | C33: 식비 | D33: 식자재 | E33: 두배로쇼핑 | F33: 16860 | G33: 지출
A34: 2020-06-06 | B34: 하나카드 | C34: 식비 | D34: 외식 | E34: 전설의스테이크갈비 시형네 | F34: 66000 | G34: 지출
A35: 2020-06-05 | B35: 신한 | C35: 식비 | D35: 식자재 | E35: 긴급재난지원금두배로쇼핑 | F35: 17800 | G35: 지출
A36: 2020-06-05 | B36: 하나카드 | C36: 기타 | D36: 택배비 | E36: 우정사업본부(우체국) 세승이 옷 | F36: 4500 | G36: 지출
A37: 2020-06-04 | B37: 신한 | C37: 건강 | D37: 병원/약국 | E37: 군산우리들시원이 예방 | F37: 130000 | G37: 지출
A38: 2020-06-03 | B38: 신한은행 | C38: 육아 | D38: 육아용품 | E38: 쿠팡 | F38: 40800 | G38: 지출
A39: 2020-06-03 | B39: 신한은행 | C39: 육아 | D39: 육아용품 | E39: 쿠팡 | F39: 26600 | G39: 지출
A40: 2020-06-03 | B40: 신한 | C40: 식비 | D40: 식자재 | E40: 두배로쇼핑 | F40: 14000 | G40: 지출
A41: 2020-06-03 | B41: 신한은행 | C41: 수입 | E41: 삼성카드 | F41: 17369 | G41: 수입
A42: 2020-06-02 | B42: 신한 | C42: 식비 | D42: 식자재 | E42: 두배로쇼핑 | F42: 3580 | G42: 지출
A43: 2020-06-01 | B43: 신한 | C43: 식비 | D43: 간식비 | E43: 이마트24군 | F43: 2500 | G43: 지출
A44: 2020-06-01 | B44: 신한은행 | C44: 생활용품 | D44: 가전/가구 | E44: 스마일페이 | F44: 4750 | G44: 지출
A45: 2020-06-01 | B45: 신한 | C45: 식비 | D45: 간식비 | E45: 신일슈퍼 | F45: 2850 | G45: 지출
A46: 2020-06-01 | B46: 신한은행 | C46: 육아 | D46: 육아용품 | E46: 김유진 젖병 | F46: 10000 | G46: 지출
A47: 2020-05-31 | B47: 신한 | C47: 식비 | D47: 식자재 | E47: 경선정육점 | F47: 12000 | G47: 지출
A48: 2020-05-31 | B48: 신한 | C48: 식비 | D48: 식자재 | E48: 두배로쇼핑 | F48: 27970 | G48: 지출
A49: 2020-05-31 | B49: 신한 | C49: 식비 | D49: 간식비 | E49: 신일슈퍼 | F49: 12950 | G49: 지출
A50: 2020-05-30 | B50: 신한 | C50: 식비 | D50: 식자재 | E50: 두배로쇼핑 | F50: 43700 | G50: 지출
A51: 2020-05-30 | B51: 신한은행 | C51: 기타 | D51: 기타 | E51: 씨브이에스넷?? | F51: 2600 | G51: 지출
A52: 2020-05-30 | B52: 신한 | C52: 건강 | D52: 건강용품 | E52: 긴급재난지원금안경나라군 | F52: 60000 | G52: 지출
A53: 2020-05-30 | B53: 신한 | C53: 식비 | D53: 외식 | E53: 긴급재난지원금한국맥도날 | F53: 22800 | G53: 지출
A54: 2020-05-30 | B54: 신한 | C54: 생활용품 | E54: 긴급재난지원금다이소나 정리하 | F54: 31000 | G54: 지출
A55: 2020-05-29 | B55: 신한 | C55: 식비 | D55: 외식 | E55: 긴급재난지원금슈퍼떡볶킹 | F55: 20000 | G55: 지출
A56: 2020-05-29 | B56: 신한 | C56: 식비 | D56: 외식 | E56: 긴급재난지원금CU변산해 | F56: 10200 | G56: 지출
A57: 2020-05-29 | B57: 신한 | C57: 자동차 | D57: 주유비 | E57: 긴급재난지원금변산대박 | F57: 34656 | G57: 지출
A58: 2020-05-29 | B58: 신한 | C58: 식비 | D58: 외식 | E58: 긴급재난지원금솜리닭집 | F58: 18000 | G58: 지출
A59: 2020-05-29 | B59: 신한 | C59: 생활용품 | D59: 기타용품 | E59: 긴급재난지원금쿠첸군산 | F59: 2000 | G59: 지출
A60: 2020-05-28 | B60: 신한 | C60: 식비 | D60: 식자재 | E60: 긴급재난지원금신일슈퍼 | F60: 7700 | G60: 지출
A61: 2020-05-28 | B61: 신한 | C61: 식비 | D61: 식자재 | E61: 긴급재난지원금신일슈퍼 | F61: 1700 | G61: 지출
A62: 2020-05-28 | B62: 하나카드 | C62: 육아 | D62: 장난감 | E62: MojangABStockholmS 마크던전 | F62: 24900 | G62: 지출
A63: 2020-05-27 | B63: 신한 | C63: 의복_미용 | D63: 미용/헤어 | E63: 긴급재난지원금싹뚝 상원 | F63: 7000 | G63: 지출
A64: 2020-05-27 | B64: 하나카드 | C64: 주거 | D64: 관리비 | E64: 아파트관리비 | F64: 151050 | G64: 지출
A65: 2020-05-27 | B65: 신한 | C65: 식비 | D65: 식자재 | E65: 긴급재난지원금두배로쇼핑 | F65: 3980 | G65: 지출
A66: 2020-05-27 | B66: 신한은행 | C66: 육아 | D66: 육아용품 | E66: 쿠팡 | F66: 4890 | G66: 지출
A67: 2020-05-26 | B67: 신한 | C67: 기타 | D67: 기타 | E67: 긴급재난지원금엑스세대서 | F67: 12500 | G67: 지출
A68: 2020-05-26 | B68: 신한 | C68: 식비 | D68: 식자재 | E68: 긴급재난지원금두배로쇼핑 | F68: 2500 | G68: 지출
A69: 2020-05-26 | B69: 신한 | C69: 식비 | D69: 식자재 | E69: 긴급재난지원금경선정육점 | F69: 19300 | G69: 지출
A70: 2020-05-26 | B70: 신한 | C70: 기타 | D70: 기타 | E70: 긴급재난지원금엑스세대서 | F70: 19300 | G70: 지출
A71: 2020-05-26 | B71: 신한은행 | C71: 의복_미용 | D71: 미용/헤어 | E71: 토스＿이순화 | F71: 10000 | G71: 지출
A72: 2020-05-25 | B72: 신한은행 | C72: 수입 | E72: 양육수당 | F72: 100000 | G72: 수입
A73: 2020-05-25 | B73: 신한은행 | C73: 수입 | D73: 기타수입 | E73: 아동수당 | F73: 100000 | G73: 수입
A74: 2020-05-25 | B74: 하나카드 | C74: 식비 | D74: 식자재 | E74: 경선정육점 | F74: 6080 | G74: 지출
A75: 2020-05-25 | B75: 신한 | C75: 식비 | D75: 식자재 | E75: 긴급재난지원금두배로쇼핑 | F75: 9500 | G75: 지출
A76: 2020-05-25 | B76: 신한 | C76: 식비 | D76: 식자재 | E76: 긴급재난지원금두배로쇼핑 | F76: 13860 | G76: 지출
A77: 2020-05-24 | B77: 신한 | C77: 식비 | D77: 식자재 | E77: 긴급재난지원금두배로쇼핑 | F77: 8700 | G77: 지출
A78: 2020-05-24 | B78: 신한 | C78: 식비 | D78: 간식비 | E78: 긴급재난지원금빵지순례 | F78: 3500 | G78: 지출
A79: 2020-05-24 | B79: 신한 | C79: 식비 | D79: 식자재 | E79: 긴급재난지원금두배로쇼핑 | F79: 17230 | G79: 지출
A80: 2020-05-23 | B80: 신한 | C80: 식비 | D80: 식자재 | E80: 긴급재난지원금두배로쇼핑 | F80: 3540 | G80: 지출
A81: 2020-05-23 | B81: 신한 | C81: 식비 | D81: 식자재 | E81: 긴급재난지원금경선정육점 | F81: 16300 | G81: 지출
A82: 2020-05-23 | B82: 하나카드 | C82: 식비 | D82: 식자재 | E82: 두배로쇼핑 | F82: 7960 | G82: 지출
A83: 2020-05-23 | B83: 신한 | C83: 기타 | D83: 기타 | E83: 긴급재난지원금엑스세대서 | F83: 5000 | G83: 지출
A84: 2020-05-23 | B84: 신한 | C84: 식비 | D84: 식자재 | E84: 긴급재난지원금좋은마트 | F84: 9420 | G84: 지출
A85: 2020-05-23 | B85: 신한은행 | C85: 기타 | D85: 은행수수료 | E85: 대출이자 | F85: 5418 | G85: 지출
A86: 2020-05-22 | B86: 신한은행 | C86: 육아 | D86: 육아용품 | E86: 쿠팡 | F86: 8870 | G86: 지출
A87: 2020-05-22 | B87: 신한 | C87: 식비 | D87: 식자재 | E87: 긴급재난지원금신일슈퍼 | F87: 12950 | G87: 지출
A88: 2020-05-22 | B88: 신한 | C88: 식비 | D88: 식자재 | E88: 긴급재난지원금신일슈퍼 | F88: 11130 | G88: 지출
A89: 2020-05-22 | B89: 신한 | C89: 건강 | D89: 병원/약국 | E89: 긴급재난지원금으뜸정형외 | F89: 10300 | G89: 지출
A90: 2020-05-22 | B90: 신한 | C90: 생활용품 | E90: 티머니개인 | F90: 3300 | G90: 지출
A91: 2020-05-21 | B91: 신한은행 | C91: 주거 | D91: 도시가스 | E91: 토스＿군산도시 | F91: 117450 | G91: 지출
A92: 2020-05-21 | B92: 신한 | C92: 식비 | D92: 간식비 | E92: 긴급재난지원금파리바게뜨 | F92: 14150 | G92: 지출
A93: 2020-05-21 | B93: 신한은행 | C93: 보험 | D93: 손해보험 | E93: DB손 | F93: 11330 | G93: 지출
A94: 2020-05-21 | B94: 신한은행 | C94: 보험 | D94: 손해보험 | E94: DB손 | F94: 14210 | G94: 지출
A95: 2020-05-21 | B95: 신한 | C95: 식비 | D95: 간식비 | E95: 긴급재난지원금이마트24군 | F95: 1200 | G95: 지출
A96: 2020-05-21 | B96: 신한 | C96: 식비 | D96: 식자재 | E96: 긴급재난지원금두배로쇼핑 | F96: 6960 | G96: 지출
A97: 2020-05-21 | B97: 신한은행 | C97: 육아 | D97: 육아용품 | E97: 쿠팡 | F97: 27500 | G97: 지출
A98: 2020-05-20 | B98: 신한은행 | C98: 육아 | D98: 육아용품 | E98: 쿠팡 | F98: 11500 | G98: 지출
A99: 2020-05-20 | B99: 신한 | C99: 식비 | D99: 식자재 | E99: 긴급재난지원금경선정육점 | F99: 17000 | G99: 지출
A100: 2020-05-20 | B100: 신한은행 | C100: 육아 | D100: 육아용품 | E100: 토스＿쿠팡 | F100: 65060 | G100: 지출
A101: 2020-05-20 | B101: 신한 | C101: 육아 | D101: 교육비 | E101: 긴급재난지원금나운스포츠 태권도 하복 | F101: 65000 | G101: 지출
A102: 2020-05-20 | B102: 신한은행 | C102: 기타 | D102: 기타 | E102: 쿠팡와우월회비 | F102: 2900 | G102: 지출
A103: 2020-05-20 | B103: 삼성 | C103: 육아 | D103: 장난감 | E103: WWWROBLOXCOM | F103: 5833 | G103: 지출
A104: 2020-05-20 | B104: 하나카드 | C104: 주거 | D104: 렌탈비 | E104: 엘지전자(주)렌탈케 | F104: 20900 | G104: 지출
A105: 2020-05-20 | B105: 신한은행 | C105: 육아 | D105: 육아용품 | E105: 쿠팡 분유 | F105: 55710 | G105: 지출
A106: 2020-05-18 | B106: 하나카드 | C106: 식비 | D106: 식자재 | E106: 두배로쇼핑 | F106: 3790 | G106: 지출
A107: 2020-05-18 | B107: 신한은행 | C107: 육아 | D107: 육아용품 | E107: 쿠팡 | F107: 70310 | G107: 지출
A108: 2020-05-16 | B108: 신한 | C108: 생활용품 | D108: 가전/가구 | E108: 11번가 제습기 ((11/12)) | F108: 27220 | G108: 지출
A109: 2020-05-16 | B109: 신한 | C109: 생활용품 | D109: 가전/가구 | E109: G마켓 재습기 ((11/12)) | F109: -26600 | G109: 지출
A110: 2020-05-16 | B110: 하나카드 | C110: 식비 | D110: 식자재 | E110: 두배로쇼핑 | F110: 16540 | G110: 지출
A111: 2020-05-15 | B111: 하나카드 | C111: 식비 | D111: 간식비 | E111: 이마트24군산미공군점 | F111: 1100 | G111: 지출
A112: 2020-05-15 | B112: 하나카드 | C112: 식비 | D112: 간식비 | E112: 신일슈퍼 | F112: 9880 | G112: 지출
A113: 2020-05-14 | B113: 신한은행 | C113: 육아 | D113: 육아용품 | E113: 쿠팡 | F113: 22800 | G113: 지출
A114: 2020-05-14 | B114: 신한은행 | C114: 육아 | D114: 육아용품 | E114: 토스＿쿠팡 | F114: 26620 | G114: 지출
A115: 2020-05-14 | B115: 신한은행 | C115: 주거 | D115: 대출이자 | F115: 85240 | G115: 지출
A116: 2020-05-13 | B116: 신한은행 | C116: 육아 | D116: 육아용품 | E116: 쿠팡 | F116: 36580 | G116: 지출
A117: 2020-05-13 | B117: 하나카드 | C117: 주거 | D117: KT인터넷 | E117: KT유선상품 | F117: 28050 | G117: 지출
A118: 2020-05-13 | B118: 하나카드 | C118: 통신비 | D118: 김진령 | E118: LGU+통신요금자동서비스번호 | F118: 59620 | G118: 지출
A119: 2020-05-13 | B119: 하나카드 | C119: 통신비 | D119: 김인철 | E119: LGU+통신요금자동서비스번호 | F119: 187740 | G119: 지출
A120: 2020-05-12 | B120: 하나카드 | C120: 자동차 | D120: 주유비 | E120: 에스제이상사국제 | F120: 28210 | G120: 지출
A121: 2020-05-12 | B121: 농협 | C121: 수입 | D121: 기타수입 | E121: 장모님 / 시원이 축하금^^ | F121: 300000 | G121: 수입
A122: 2020-05-12 | B122: 신한은행 | C122: 육아 | D122: 육아용품 | E122: 토스＿쿠팡 | F122: 31500 | G122: 지출
A123: 2020-05-11 | B123: 하나카드 | C123: 식비 | D123: 외식 | E123: 원조나포순대 | F123: 23000 | G123: 지출
A124: 2020-05-11 | B124: 신한은행 | C124: 육아 | D124: 육아용품 | E124: 토스＿쿠팡 | F124: 51940 | G124: 지출
A125: 2020-05-11 | B125: 신한은행 | C125: 식비 | D125: 식자재 | E125: 카드 | F125: 33400 | G125: 지출
A126: 2020-05-11 | B126: 하나카드 | C126: 식비 | D126: 간식비 | E126: 신일슈퍼 | F126: 1400 | G126: 지출
A127: 2020-05-11 | B127: 신한은행 | C127: 기타 | D127: 은행수수료 | E127: SMS | F127: 1000 | G127: 지출
A128: 2020-05-11 | B128: 하나카드 | C128: 주거 | D128: 렌탈비 | E128: 엘지전자(주)렌탈 | F128: 44900 | G128: 지출
A129: 2020-05-10 | B129: 신한 | C129: 자기계발 | D129: 도서/문구 | E129: 리디북스 | F129: 6500 | G129: 지출
A130: 2020-05-09 | B130: 하나카드 | C130: 식비 | D130: 식자재 | E130: 두배로쇼핑 | F130: 17930 | G130: 지출
A131: 2020-05-08 | B131: 신한은행 | C131: 수입 | D131: 월급 | E131: 엘비휴넷(주) | F131: 2516970 | G131: 수입
A132: 2020-05-08 | B132: 신한은행 | C132: 생활용품 | D132: 기타용품 | E132: 쿠팡 | F132: 9880 | G132: 지출
A133: 2020-06-17 | B133: 농협 | C133: 생활용품 | D133: 기타용품 | E133: 이불정리함 | F133: 52580 | G133: 지출
A134: 2020-06-06 | B134: 농협 | C134: 수입 | D134: 기타수입 | E134: 박시형 군산 방문 후 용돈 | F134: 200000 | G134: 수입
A135: 2020-05-29 | B135: 농협 | C135: 수입 | D135: 기타수입 | E135: 최하늘 | F135: 23500 | G135: 수입
A136: 2020-05-31 | B136: 농협 | C136: 수입 | D136: 기타수입 | E136: 임정화 | F136: 30000 | G136: 수입
A137: 2020-05-19 | B137: 농협 | C137: 수입 | D137: 기타수입 | E137: 보건소산후조리 | F137: 500000 | G137: 수입
A138: 2020-05-15 | B138: 농협 | C138: 수입 | D138: 기타수입 | E138: 여성가족과 | F138: 1000000 | G138: 수입
A139: 2020-05-11 | B139: 농협 | C139: 저축_투자 | D139: 저축 | E139: 저축 | F139: 110000 | G139: 지출
A140: 2020-05-07 | B140: 농협 | C140: 섬김비 | D140: 가족/친지 | E140: 장모님 장인 | F140: 200050 | G140: 지출

Sheet 6월
A2: 2020-06-10 | B2: 전체보기 | C2: 수입보기 | D2: 날짜내림정렬 | E2: 금액 \ 표시하기 | I2: 노트
B3: 5월 이월금 | D3: 날짜오름정렬
A4: 예산 사용 현황 | B4: 지출내역 | C4: 사용 예산 | D4: 실사용금액 | E4: 예산사용율 | F4: 예산 잔액 | G4: 초과 지출 소명
B5: 저축_투자 | C5: 410000 | D5: =SUMIF($C$25:$C$997,B5,$F$25:$F$997) -> 0 | E5: =D5/C5 -> 0 | F5: =C5-D5 -> 410000
B6: 주거 | C6: 397500 | D6: 407170 | E6: 1.024327044 | F6: -9670
B7: 식비 | C7: 500000 | D7: 849340 | E7: 1.69868 | F7: -349340
B8: 생활용품 | C8: 50000 | D8: 437525 | E8: 8.7505 | F8: -387525
B9: 의복_미용 | C9: 30000 | D9: 17000 | E9: 0.5666666667 | F9: 13000 | I9: 주거 | J9: =SUMIF($C$25:$C$997,I9,$F$25:$F$997) -> 407170 | K9: 전체 | M9: 수입내용 | O9: 비율 | Q9: 고정지출 | S9: 비율 | U9: 육아
B10: 건강 | C10: 50000 | D10: 228044 | E10: 4.56088 | F10: -178044 | I10: 관리비 | J10: =SUMIF($D$25:$D$997,I10,$F$25:$F$997) -> 145270 | K10: =J10/$J$9 -> 0.3567797235 | M10: 월급 | N10: =SUMIF($D$25:$D$997,M10,$F$25:$F$997) -> 2700640 | O10: =N10/N13 -> 0.9642701187 | Q10: 신한저축 | R10: =SUMIF($D$25:$D$997,Q10,$F$25:$F$997) -> 0 | S10: =R10/$R$17 -> 0 | U10: 육아용품 | V10: =SUMIF($D$25:$D$997,U10,$F$25:$F$997) -> 131290
B11: 자기계발 | C11: 50000 | D11: 24143 | E11: 0.48286 | F11: 25857 | I11: 도시가스 | J11: =SUMIF($D$25:$D$294,I11,$F$25:$F$997) -> 58660 | K11: 0.1440675885 | M11: 기타수입 | N11: =SUMIF($D$25:$D$250,M11,$F$25:$F$997) -> 100000 | O11: =N11/N13 -> 0.03570524464 | Q11: 저축 | R11: =SUMIF($D$25:$D$997,Q11,$F$25:$F$997) -> 0 | S11: 0 | U11: 교육비 | V11: =SUMIF($D$25:$D$997,U11,$F$25:$F$997) -> 0
B12: 자동차 | C12: 200000 | D12: 35466 | E12: 0.17733 | F12: 164534 | I12: 대출이자 | J12: =SUMIF($D$25:$D$997,I12,$F$25:$F$997) -> 82170 | K12: 0.2018075988 | M12: 이자 | N12: =SUMIF($D$25:$D$250,M12,$F$25:$F$997) -> 69 | O12: =N12/N13 -> 2.46366188e-05 | Q12: CCC | R12: =SUMIF($D$25:$D$997,Q12,$F$25:$F$997) -> 0 | S12: 0 | U12: 장난감 | V12: =SUMIF($D$25:$D$997,U12,$F$25:$F$997) -> 240348
B13: 육아 | C13: 200000 | D13: 371638 | E13: 1.85819 | F13: -171638 | I13: 수리/청소 | J13: =SUMIF($D$25:$D$997,I13,$F$25:$F$997) -> 0 | K13: 0 | M13: 합계 | N13: =SUM(N10:N12) -> 2800709 | Q13: 손해보험 | R13: =SUMIF($D$25:$D$997,Q13,$F$25:$F$997) -> 137999 | S13: 0.3014664922 | V13: =SUBTOTAL(9,V10:V12) -> 371638
B14: 보험 | C14: 42718 | D14: 137999 | E14: 3.230464909 | F14: -95281 | I14: 렌탈비 | J14: =SUMIF($D$25:$D$997,I14,$F$25:$F$997) -> 93020 | K14: 0.2284549451 | Q14: 교육비 | R14: =SUMIF($D$25:$D$997,Q14,$F$25:$F$997) -> 0 | S14: 0
B15: 이벤트 | C15: 50000 | D15: 0 | E15: 0 | F15: 50000 | I15: KT인터넷 | J15: =SUMIF($D$25:$D$997,I15,$F$25:$F$997) -> 28050 | K15: 0.06889014417 | Q15: 주거 | R15: =SUMIF($C$26:$C$997,Q15,$F$25:$F$997) -> 305560 | S15: 0.6675128179
B16: 섬김비 | C16: 250000 | D16: 130900 | E16: 0.5236 | F16: 119100 | Q16: 자동차 | R16: =SUMIF($C$26:$C$997,Q16,$F$25:$F$997) -> 14200 | S16: 0.03102068993
B17: 헌금 | C17: 300000 | D17: 0 | E17: 0 | F17: 300000 | I17: 식비 | J17: =SUMIF($C$26:$C$997,I17,$F$25:$F$997) -> 1081938 | K17: 전체 | M17: 자동차 | N17: =SUMIF($C$26:$C$997,M17,$F$25:$F$997) -> 14200 | O17: 전체 | Q17: 합계 | R17: =SUM(R10:R16) -> 457759
B18: 기부 | C18: 115000 | D18: 0 | E18: 0 | F18: 115000 | I18: 식자재 | J18: =SUMIF($D$25:$D$997,I18,$F$25:$F$997) -> 649930 | K18: =J18/$J$17 -> 0.6007090979 | M18: 주유비 | N18: =SUMIF($D$25:$D$997,M18,$F$25:$F$997) -> 35466 | O18: =N18/$N$17 -> 2.497605634
B19: 통신비 | C19: 120000 | D19: 120120 | E19: 1.001 | F19: -120 | I19: 외식 | J19: =SUMIF($D$25:$D$294,I19,$F$25:$F$997) -> 53100 | K19: =J19/$J$17 -> 0.04907859785 | M19: 택시비 | N19: =SUMIF($D$25:$D$997,M19,$F$25:$F$997) -> 4000 | O19: =N19/$N$17 -> 0.2816901408 | Q19: 섬김비 | R19: =SUMIF($D$25:$D$997,Q19,$F$25:$F$997) -> 0
B20: 기타 | C20: 30000 | D20: 48916 | E20: 1.630533333 | F20: -18916 | I20: 간식비 | J20: =SUMIF($D$25:$D$294,I20,$F$25:$F$997) -> 143010 | K20: =J20/$J$17 -> 0.1321794779 | M20: 보험/세금 | N20: =SUMIF($D$25:$D$997,M20,$F$25:$F$997) -> 0 | O20: =N20/$N$17 -> 0
B21: 합계 | C21: =SUM(C5:C20) -> 2795218 | D21: =SUM(D5:D20) -> 2808261 | E21: 예산-실사용금액 | F21: =SUM(F5:F20) -> -13043 | M21: 주차/통행료 | N21: =SUMIF($D$25:$D$997,M21,$F$25:$F$997) -> 0 | O21: =N21/$N$17 -> 0
B22: 총수입-총지출 | C22: =N13-D21 -> -7552
A24: 날짜 | B24: 계좌 | C24: 대분류 | D24: 소분류 | E24: 내용 | F24: 금액 | G24: 수입지출
A25: 2020-07-08 | B25: 삼성 | C25: 육아 | D25: 장난감 | E25: Xsolla 로블록스 결제 | F25: 24641 | G25: 지출
A26: 2020-07-08 | B26: 신한은행 | C26: 기타 | D26: 기타 | E26: 엑스세대서점 | F26: 4000 | G26: 지출
A27: 2020-07-08 | B27: 신한은행 | C27: 기타 | D27: 기타 | E27: 엑스세대서점 | F27: 2000 | G27: 지출
A28: 2020-07-08 | B28: 신한은행 | C28: 육아 | D28: 장난감 | E28: 쿠팡 예원이 핑크 머리핀 | F28: 7900 | G28: 지출
A29: 2020-07-08 | B29: 신한은행 | C29: 육아 | D29: 장난감 | E29: 정지원 예원이 머리 띠 | F29: 15560 | G29: 지출
A30: 2020-07-08 | B30: 신한은행 | C30: 육아 | D30: 장난감 | E30: 쿠팡 머리핑 | F30: 10000 | G30: 지출
A31: 2020-07-08 | B31: 신한은행 | C31: 육아 | D31: 장난감 | E31: 쿠팡 머리띠 헤어 | F31: 8900 | G31: 지출
A32: 2020-07-08 | B32: 신한은행 | C32: 육아 | D32: 장난감 | E32: 쿠팡 상원이 포켓몬 피규어 | F32: 70000 | G32: 지출
A33: 2020-07-08 | B33: 신한은행 | C33: 식비 | D33: 식자재 | E33: 두배로쇼핑 | F33: 6970 | G33: 지출
A34: 2020-07-06 | B34: 신한은행 | C34: 육아 | D34: 장난감 | E34: 쿠팡 크로마키 천 | F34: 55837 | G34: 지출
A35: 2020-07-06 | B35: 삼성 | C35: 자기계발 | D35: 문화생활 | E35: BINARYFORTRESS 바탕화면 프로그램 | F35: 17643 | G35: 지출
A36: 2020-07-05 | B36: 신한은행 | C36: 섬김비 | D36: 지인 | E36: 요기요 피자 | F36: 29900 | G36: 지출
A37: 2020-07-05 | B37: 신한은행 | C37: 생활용품 | D37: 기타용품 | E37: 쿠팡정기배송 | F37: 86175 | G37: 지출
A38: 2020-07-04 | B38: 신한은행 | C38: 육아 | D38: 육아용품 | E38: 쿠팡 모이스쳐/ 세타필 | F38: 51680 | G38: 지출
A39: 2020-07-04 | B39: 신한은행 | C39: 생활용품 | D39: 기타용품 | E39: 쿠팡 초강력 실리콘 | F39: 5600 | G39: 지출
A40: 2020-07-04 | B40: 신한은행 | C40: 식비 | D40: 식자재 | E40: 쿠팡 멸치/굵은거 잔거 | F40: 48300 | G40: 지출
A41: 2020-07-04 | B41: 하나카드 | C41: 식비 | D41: 식자재 | E41: 경선정육점 | F41: 10000 | G41: 지출
A42: 2020-07-04 | B42: 신한은행 | C42: 의복_미용 | D42: 미용/헤어 | E42: 싹뚝 | F42: 7000 | G42: 지출
A43: 2020-07-04 | B43: 신한은행 | C43: 식비 | D43: 식자재 | E43: 두배로쇼핑 | F43: 17420 | G43: 지출
A44: 2020-07-03 | B44: 신한은행 | C44: 식비 | D44: 간식비 | E44: 명랑시대쌀핫도 | F44: 3600 | G44: 지출
A45: 2020-07-02 | B45: 신한은행 | C45: 식비 | D45: 식자재 | E45: 쿠팡 김치 | F45: 19900 | G45: 지출
A46: 2020-07-02 | B46: 신한은행 | C46: 식비 | D46: 간식비 | E46: 신일슈퍼 | F46: 41300 | G46: 지출
A47: 2020-07-02 | B47: 신한은행 | C47: 건강 | D47: 병원/약국 | E47: 서현약국 | F47: 2400 | G47: 지출
A48: 2020-07-02 | B48: 신한은행 | C48: 건강 | D48: 병원/약국 | E48: 양지산부인과 | F48: 56900 | G48: 지출
A49: 2020-07-02 | B49: 신한은행 | C49: 기타 | D49: 택시비 | E49: 이비카드택시법 | F49: 4000 | G49: 지출
A50: 2020-06-29 | B50: 신한은행 | C50: 육아 | D50: 장난감 | E50: 쿠팡헬로키티 핑크 큐션 | F50: 17900 | G50: 지출
A51: 2020-06-29 | B51: 하나카드 | C51: 식비 | D51: 식자재 | E51: 두배로쇼핑 | F51: 15000 | G51: 지출
A52: 2020-06-29 | B52: 하나카드 | C52: 식비 | D52: 식자재 | E52: 두배로쇼핑 | F52: 19210 | G52: 지출
A53: 2020-06-27 | B53: 신한은행 | C53: 의복_미용 | D53: 미용/헤어 | E53: 이순화 | F53: 10000 | G53: 지출
A54: 2020-06-27 | B54: 신한은행 | C54: 생활용품 | D54: 기타용품 | E54: 쿠팡 침대 방수 메트리스 커버 | F54: 35800 | G54: 지출
A55: 2020-06-26 | B55: 하나카드 | C55: 식비 | D55: 식자재 | E55: 두배로쇼핑 | F55: 22120 | G55: 지출
A56: 2020-06-26 | B56: 하나카드 | C56: 식비 | D56: 식자재 | E56: 경선정육점 | F56: 11000 | G56: 지출
A57: 2020-06-26 | B57: 신한 | C57: 식비 | D57: 간식비 | E57: 신일슈퍼 | F57: 13750 | G57: 지출
A58: 2020-06-26 | B58: 신한 | C58: 건강 | D58: 병원/약국 | E58: 다정한약국 | F58: 58500 | G58: 지출
A59: 2020-06-26 | B59: 신한 | C59: 건강 | D59: 병원/약국 | E59: 다정한약국 | F59: 13644 | G59: 지출
A60: 2020-06-26 | B60: 신한은행 | C60: 섬김비 | D60: 지인 | E60: 요기요 | F60: 19000 | G60: 지출
A61: 2020-06-25 | B61: 신한은행 | C61: 식비 | D61: 간식비 | E61: 쿠팡 누탤라 | F61: 10110 | G61: 지출
A62: 2020-06-25 | B62: 신한은행 | C62: 수입 | D62: 기타수입 | E62: 아동수당 | F62: 100000 | G62: 수입
A63: 2020-06-25 | B63: 하나카드 | C63: 주거 | D63: 관리비 | E63: 아파트관리비 | F63: 145270 | G63: 지출
A64: 2020-06-25 | B64: 신한은행 | C64: 수입 | E64: 양육수당 | F64: 100000 | G64: 수입
A65: 2020-06-24 | B65: 하나카드 | C65: 식비 | D65: 간식비 | E65: 이마트24군산미공군점 | F65: 4700 | G65: 지출
A66: 2020-06-24 | B66: 현금 | C66: 생활용품 | D66: 가전/가구 | E66: 2층침대 | F66: 200000 | G66: 지출
A67: 2020-06-24 | B67: 신한은행 | C67: 생활용품 | D67: 기타용품 | E67: 쿠팡 수세미 | F67: 14200 | G67: 지출
A68: 2020-06-23 | B68: 하나카드 | C68: 자동차 | D68: 주유비 | E68: 에스제이상사국제충 | F68: 35466 | G68: 지출
A69: 2020-06-23 | B69: 삼성 | C69: 보험 | D69: 손해보험 | E69: DB손해보험 ((1/10)) | F69: 112459 | G69: 지출
A70: 2020-06-23 | B70: 하나카드 | C70: 식비 | D70: 식자재 | E70: 군산엑스마트 | F70: 172430 | G70: 지출
A71: 2020-06-22 | B71: 신한 | C71: 식비 | D71: 식자재 | E71: 두배로쇼핑 | F71: 29180 | G71: 지출
A72: 2020-06-22 | B72: 신한 | C72: 식비 | D72: 식자재 | E72: 경선정육점 | F72: 11000 | G72: 지출
A73: 2020-06-22 | B73: 신한은행 | C73: 생활용품 | D73: 기타용품 | E73: 쿠팡방향제 | F73: 16650 | G73: 지출
A74: 2020-06-22 | B74: 신한은행 | C74: 보험 | D74: 손해보험 | E74: DB손 | F74: 11330 | G74: 지출
A75: 2020-06-22 | B75: 신한은행 | C75: 보험 | D75: 손해보험 | E75: DB손 | F75: 14210 | G75: 지출
A76: 2020-06-22 | B76: 하나카드 | C76: 주거 | D76: 렌탈비 | E76: 엘지전자(주)렌탈케 | F76: 20900 | G76: 지출
A77: 2020-06-20 | B77: 하나카드 | C77: 식비 | D77: 식자재 | E77: 두배로쇼핑 | F77: 11280 | G77: 지출
A78: 2020-06-20 | B78: 하나카드 | C78: 식비 | E78: 카페오라(CAFEORA) | F78: 3300 | G78: 지출
A79: 2020-06-20 | B79: 신한은행 | C79: 기타 | D79: 기타 | E79: 쿠팡와우월회비 | F79: 2900 | G79: 지출
A80: 2020-06-20 | B80: 하나카드 | C80: 식비 | D80: 식자재 | E80: 두배로쇼핑 | F80: 8230 | G80: 지출
A81: 2020-06-20 | B81: 신한은행 | C81: 기타 | D81: 은행수수료 | E81: 대출이자 | F81: 16 | G81: 지출
A82: 2020-06-20 | B82: 신한은행 | C82: 수입 | D82: 이자 | E82: 예금이자 | F82: 69 | G82: 수입
A83: 2020-06-19 | B83: 신한 | C83: 식비 | D83: 식자재 | E83: 경선정육점 | F83: 26800 | G83: 지출
A84: 2020-06-19 | B84: 신한은행 | C84: 주거 | D84: 도시가스 | E84: 군산도시가스 | F84: 58660 | G84: 지출
A85: 2020-06-18 | B85: 신한은행 | C85: 생활용품 | D85: 기타용품 | E85: 쿠팡 스마트폰 거치대 | F85: 24400 | G85: 지출
A86: 2020-06-18 | B86: 신한은행 | C86: 육아 | D86: 장난감 | E86: 쿠팡 | F86: 20710 | G86: 지출
A87: 2020-06-18 | B87: 신한은행 | C87: 식비 | D87: 간식비 | E87: 버거킹 (영재와) | F87: 44100 | G87: 지출
A88: 2020-06-18 | B88: 하나카드 | C88: 건강 | D88: 병원/약국 | E88: 코로나 검사 | F88: 84600 | G88: 지출
A89: 2020-06-17 | B89: 신한은행 | C89: 섬김비 | D89: 지인 | E89: 요기요 | F89: 14000 | G89: 지출
A90: 2020-06-17 | B90: 신한은행 | C90: 섬김비 | D90: 지인 | E90: 요기요 | F90: 28000 | G90: 지출
A91: 2020-06-17 | B91: 하나카드 | C91: 기타 | D91: 택배비 | E91: 우정사업본부(우체국) | F91: 3500 | G91: 지출
A92: 2020-06-17 | B92: 신한은행 | C92: 생활용품 | D92: 기타용품 | E92: 쿠팡 공청 필터 2개 | F92: 54300 | G92: 지출
A93: 2020-06-17 | B93: 신한은행 | C93: 식비 | D93: 식자재 | E93: 쿠팡 고등어 20마리 | F93: 28500 | G93: 지출
A94: 2020-06-16 | B94: 신한 | C94: 주거 | D94: 렌탈비 | E94: 11번가 제습기 ((12/12)) | F94: 27220 | G94: 지출
A95: 2020-06-16 | B95: 신한 | C95: 생활용품 | D95: 가전/가구 | E95: G마켓 재습기 ((12/12)) | F95: -26600 | G95: 지출
A96: 2020-06-15 | B96: 신한은행 | C96: 육아 | D96: 육아용품 | E96: 쿠팡 쪽쪽이 | F96: 10900 | G96: 지출
A97: 2020-06-15 | B97: 신한 | C97: 건강 | D97: 병원/약국 | E97: 다정한약국 진령 담 | F97: 12000 | G97: 지출
A98: 2020-06-15 | B98: 하나카드 | C98: 주거 | D98: KT인터넷 | E98: KT유선상품 | F98: 28050 | G98: 지출
A99: 2020-06-15 | B99: 신한은행 | C99: 주거 | D99: 대출이자 | F99: 82170 | G99: 지출
A100: 2020-06-14 | B100: 신한 | C100: 기타 | D100: 기타 | E100: 주식회사?? | F100: 28000 | G100: 지출
A101: 2020-06-14 | B101: 신한 | C101: 식비 | D101: 간식비 | E101: 신일슈퍼 | F101: 8000 | G101: 지출
A102: 2020-06-14 | B102: 신한은행 | C102: 섬김비 | D102: 지인 | E102: 요기요 명길 집사님댁과 함께 | F102: 40000 | G102: 지출
A103: 2020-06-13 | B103: 신한 | C103: 식비 | D103: 외식 | E103: 비에이치씨 치킨 | F103: 18000 | G103: 지출
A104: 2020-06-13 | B104: 신한은행 | C104: 육아 | D104: 육아용품 | E104: 쿠팡 올리브 기름 | F104: 9210 | G104: 지출
A105: 2020-06-13 | B105: 신한 | C105: 식비 | D105: 식자재 | E105: 두배로쇼핑 | F105: 3950 | G105: 지출
A106: 2020-06-13 | B106: 신한 | C106: 식비 | D106: 간식비 | E106: 신일슈퍼 | F106: 13000 | G106: 지출
A107: 2020-06-13 | B107: 신한은행 | C107: 생활용품 | D107: 기타용품 | E107: 쿠팡 비대 | F107: 27000 | G107: 지출
A108: 2020-06-12 | B108: 신한은행 | C108: 육아 | D108: 장난감 | E108: 쿠팡 식충식물 | F108: 8900 | G108: 지출
A109: 2020-06-12 | B109: 신한은행 | C109: 육아 | D109: 육아용품 | E109: 쿠팡 분유 | F109: 59500 | G109: 지출
A110: 2020-06-11 | B110: 신한 | C110: 식비 | D110: 간식비 | E110: 이마트24군 | F110: 2200 | G110: 지출
A111: 2020-06-11 | B111: 신한은행 | C111: 기타 | D111: 택배비 | E111: (주)한진 | F111: 3500 | G111: 지출
A112: 2020-06-11 | B112: 신한은행 | C112: 식비 | D112: 식자재 | E112: 카드 | F112: 36700 | G112: 지출
A113: 2020-06-11 | B113: 신한은행 | C113: 식비 | D113: 식자재 | E113: 쿠팡 진령 식빵재료 | F113: 26240 | G113: 지출
A114: 2020-06-11 | B114: 하나카드 | C114: 통신비 | E114: LGU+통신요금자동서비스번호 | F114: 90510 | G114: 지출
A115: 2020-06-11 | B115: 하나카드 | C115: 통신비 | E115: LGU+통신요금자동서비스번호 | F115: 29610 | G115: 지출
A116: 2020-06-10 | B116: 신한 | C116: 식비 | D116: 외식 | E116: 한국맥도날 | F116: 17100 | G116: 지출
A117: 2020-06-10 | B117: 신한 | C117: 식비 | D117: 외식 | E117: 비에이치씨 치킨 | F117: 18000 | G117: 지출
A118: 2020-06-10 | B118: 현금 | C118: 식비 | D118: 식자재 | E118: 식자재 혜택 초기부담금 | F118: 96000 | G118: 지출
A119: 2020-06-10 | B119: 하나카드 | C119: 주거 | D119: 렌탈비 | E119: 엘지전자(주)렌탈 | F119: 44900 | G119: 지출
A120: 2020-06-10 | B120: 신한은행 | C120: 수입 | D120: 월급 | E120: 엘비휴넷(주) | F120: 2700640 | G120: 수입
A121: 2020-06-10 | B121: 신한 | C121: 자기계발 | D121: 도서/문구 | E121: 리디북스 | F121: 6500 | G121: 지출
A122: 2020-06-10 | B122: 신한 | C122: 식비 | D122: 식자재 | E122: 경선정육점 | F122: 12000 | G122: 지출
A123: 2020-06-10 | B123: 신한 | C123: 식비 | D123: 식자재 | E123: 두배로쇼핑 | F123: 17700 | G123: 지출
A124: 2020-06-10 | B124: 신한은행 | C124: 기타 | D124: 은행수수료 | E124: SMS | F124: 1000 | G124: 지출
A125: 2020-06-10 | B125: 신한 | C125: 식비 | D125: 간식비 | E125: 신일슈퍼 | F125: 2250 | G125: 지출

Sheet 7월
A2: 2020-07-10 | B2: 전체보기 | C2: 수입보기 | D2: 날짜내림정렬 | E2: 금액 \ 표시하기 | I2: 노트
B3: 6월 이월금 | D3: 날짜오름정렬
A4: 예산 사용 현황 | B4: 지출내역 | C4: 사용 예산 | D4: 실사용금액 | E4: 예산사용율 | F4: 예산 잔액 | G4: 초과 지출 소명
B5: 저축_투자 | C5: 410000 | D5: =SUMIF($C$25:$C$1000,B5,$F$25:$F$1000) -> 0 | E5: =D5/C5 -> 0 | F5: =C5-D5 -> 410000
B6: 주거 | C6: 397500 | D6: 0 | E6: 0 | F6: 397500
B7: 식비 | C7: 500000 | D7: 0 | E7: 0 | F7: 500000
B8: 생활용품 | C8: 50000 | D8: 0 | E8: 0 | F8: 50000
B9: 의복_미용 | C9: 30000 | D9: 0 | E9: 0 | F9: 30000 | I9: 주거 | J9: =SUMIF($C$25:$C$1000,I9,$F$25:$F$1000) -> 0 | K9: 전체 | M9: 수입내용 | O9: 비율 | Q9: 고정지출 | S9: 비율 | U9: 육아
B10: 건강 | C10: 50000 | D10: 0 | E10: 0 | F10: 50000 | I10: 관리비 | J10: =SUMIF($D$25:$D$1000,I10,$F$25:$F$1000) -> 0 | K10: =J10/$J$9 ->  | M10: 월급 | N10: =SUMIF($D$25:$D$1000,M10,$F$25:$F$1000) -> 0 | O10: =N10/N13 ->  | Q10: 신한저축 | R10: =SUMIF($D$25:$D$1000,Q10,$F$25:$F$1000) -> 0 | S10: =R10/$R$17 ->  | U10: 육아용품 | V10: =SUMIF($D$25:$D$1000,U10,$F$25:$F$1000) -> 0
B11: 자기계발 | C11: 50000 | D11: 0 | E11: 0 | F11: 50000 | I11: 도시가스 | J11: =SUMIF($D$25:$D$297,I11,$F$25:$F$1000) -> 0 | M11: 기타수입 | N11: =SUMIF($D$25:$D$253,M11,$F$25:$F$1000) -> 0 | O11: =N11/N13 ->  | Q11: 저축 | R11: =SUMIF($D$25:$D$1000,Q11,$F$25:$F$1000) -> 0 | U11: 교육비 | V11: =SUMIF($D$25:$D$1000,U11,$F$25:$F$1000) -> 0
B12: 자동차 | C12: 200000 | D12: 0 | E12: 0 | F12: 200000 | I12: 대출이자 | J12: =SUMIF($D$25:$D$1000,I12,$F$25:$F$1000) -> 0 | M12: 이자 | N12: =SUMIF($D$25:$D$253,M12,$F$25:$F$1000) -> 0 | O12: =N12/N13 ->  | Q12: CCC | R12: =SUMIF($D$25:$D$1000,Q12,$F$25:$F$1000) -> 0 | U12: 장난감 | V12: =SUMIF($D$25:$D$1000,U12,$F$25:$F$1000) -> 0
B13: 육아 | C13: 200000 | D13: 0 | E13: 0 | F13: 200000 | I13: 수리/청소 | J13: =SUMIF($D$25:$D$1000,I13,$F$25:$F$1000) -> 0 | M13: 합계 | N13: =SUM(N10:N12) -> 0 | Q13: 손해보험 | R13: =SUMIF($D$25:$D$1000,Q13,$F$25:$F$1000) -> 0 | V13: =SUBTOTAL(9,V10:V12) -> 0
B14: 보험 | C14: 42718 | D14: 0 | E14: 0 | F14: 42718 | I14: 렌탈비 | J14: =SUMIF($D$25:$D$1000,I14,$F$25:$F$1000) -> 0 | Q14: 교육비 | R14: =SUMIF($D$25:$D$1000,Q14,$F$25:$F$1000) -> 0
B15: 이벤트 | C15: 50000 | D15: 0 | E15: 0 | F15: 50000 | I15: KT인터넷 | J15: =SUMIF($D$25:$D$1000,I15,$F$25:$F$1000) -> 0 | Q15: 주거 | R15: =SUMIF($C$26:$C$1000,Q15,$F$25:$F$1000) -> 0
B16: 섬김비 | C16: 250000 | D16: 0 | E16: 0 | F16: 250000 | Q16: 자동차 | R16: =SUMIF($C$26:$C$1000,Q16,$F$25:$F$1000) -> 0
B17: 헌금 | C17: 300000 | D17: 0 | E17: 0 | F17: 300000 | I17: 식비 | J17: =SUMIF($C$26:$C$1000,I17,$F$25:$F$1000) -> 0 | K17: 전체 | M17: 자동차 | N17: =SUMIF($C$26:$C$1000,M17,$F$25:$F$1000) -> 0 | O17: 전체 | Q17: 합계 | R17: =SUM(R10:R16) -> 0
B18: 기부 | C18: 115000 | D18: 0 | E18: 0 | F18: 115000 | I18: 식자재 | J18: =SUMIF($D$25:$D$1000,I18,$F$25:$F$1000) -> 0 | K18: =J18/$J$17 ->  | M18: 주유비 | N18: =SUMIF($D$25:$D$1000,M18,$F$25:$F$1000) -> 0 | O18: =N18/$N$17 -> 
B19: 통신비 | C19: 120000 | D19: 0 | E19: 0 | F19: 120000 | I19: 외식 | J19: =SUMIF($D$25:$D$297,I19,$F$25:$F$1000) -> 0 | K19: =J19/$J$17 ->  | M19: 택시비 | N19: =SUMIF($D$25:$D$1000,M19,$F$25:$F$1000) -> 0 | O19: =N19/$N$17 ->  | Q19: 섬김비 | R19: =SUMIF($D$25:$D$1000,Q19,$F$25:$F$1000) -> 0
B20: 기타 | C20: 30000 | E20: 0 | F20: 30000 | I20: 간식비 | J20: =SUMIF($D$25:$D$297,I20,$F$25:$F$1000) -> 0 | K20: =J20/$J$17 ->  | M20: 보험/세금 | N20: =SUMIF($D$25:$D$1000,M20,$F$25:$F$1000) -> 0 | O20: =N20/$N$17 -> 
B21: 합계 | C21: =SUM(C5:C20) -> 2795218 | D21: =SUM(D5:D20) -> 0 | E21: 예산-실사용금액 | F21: =SUM(F5:F20) -> 2795218 | M21: 주차/통행료 | N21: =SUMIF($D$25:$D$1000,M21,$F$25:$F$1000) -> 0 | O21: =N21/$N$17 -> 
B22: 총수입-총지출 | C22: =N13-D21 -> 0
A24: 날짜 | B24: 계좌 | C24: 대분류 | D24: 소분류 | E24: 내용 | F24: 금액 | G24: 수입지출

Sheet 8월
A2: 2020-08-10 | B2: 전체보기 | C2: 수입보기 | D2: 날짜내림정렬 | E2: 금액 \ 표시하기 | I2: 노트
B3: 7월 이월금 | D3: 날짜오름정렬
A4: 예산 사용 현황 | B4: 지출내역 | C4: 사용 예산 | D4: 실사용금액 | E4: 예산사용율 | F4: 예산 잔액 | G4: 초과 지출 소명
B5: 저축_투자 | C5: 410000 | D5: =SUMIF($C$25:$C$1000,B5,$F$25:$F$1000) -> 0 | E5: =D5/C5 -> 0 | F5: =C5-D5 -> 410000
B6: 주거 | C6: 397500 | D6: 0 | E6: 0 | F6: 397500
B7: 식비 | C7: 500000 | D7: 0 | E7: 0 | F7: 500000
B8: 생활용품 | C8: 50000 | D8: 0 | E8: 0 | F8: 50000
B9: 의복_미용 | C9: 30000 | D9: 0 | E9: 0 | F9: 30000 | I9: 주거 | J9: =SUMIF($C$25:$C$1000,I9,$F$25:$F$1000) -> 0 | K9: 전체 | M9: 수입내용 | O9: 비율 | Q9: 고정지출 | S9: 비율 | U9: 육아
B10: 건강 | C10: 50000 | D10: 0 | E10: 0 | F10: 50000 | I10: 관리비 | J10: =SUMIF($D$25:$D$1000,I10,$F$25:$F$1000) -> 0 | K10: =J10/$J$9 ->  | M10: 월급 | N10: =SUMIF($D$25:$D$1000,M10,$F$25:$F$1000) -> 0 | O10: =N10/N13 ->  | Q10: 신한저축 | R10: =SUMIF($D$25:$D$1000,Q10,$F$25:$F$1000) -> 0 | S10: =R10/$R$17 ->  | U10: 육아용품 | V10: =SUMIF($D$25:$D$1000,U10,$F$25:$F$1000) -> 0
B11: 자기계발 | C11: 50000 | D11: 0 | E11: 0 | F11: 50000 | I11: 도시가스 | J11: =SUMIF($D$25:$D$297,I11,$F$25:$F$1000) -> 0 | M11: 기타수입 | N11: =SUMIF($D$25:$D$253,M11,$F$25:$F$1000) -> 0 | O11: =N11/N13 ->  | Q11: 저축 | R11: =SUMIF($D$25:$D$1000,Q11,$F$25:$F$1000) -> 0 | U11: 교육비 | V11: =SUMIF($D$25:$D$1000,U11,$F$25:$F$1000) -> 0
B12: 자동차 | C12: 200000 | D12: 0 | E12: 0 | F12: 200000 | I12: 대출이자 | J12: =SUMIF($D$25:$D$1000,I12,$F$25:$F$1000) -> 0 | M12: 이자 | N12: =SUMIF($D$25:$D$253,M12,$F$25:$F$1000) -> 0 | O12: =N12/N13 ->  | Q12: CCC | R12: =SUMIF($D$25:$D$1000,Q12,$F$25:$F$1000) -> 0 | U12: 장난감 | V12: =SUMIF($D$25:$D$1000,U12,$F$25:$F$1000) -> 0
B13: 육아 | C13: 200000 | D13: 0 | E13: 0 | F13: 200000 | I13: 수리/청소 | J13: =SUMIF($D$25:$D$1000,I13,$F$25:$F$1000) -> 0 | M13: 합계 | N13: =SUM(N10:N12) -> 0 | Q13: 손해보험 | R13: =SUMIF($D$25:$D$1000,Q13,$F$25:$F$1000) -> 0 | V13: =SUBTOTAL(9,V10:V12) -> 0
B14: 보험 | C14: 42718 | D14: 0 | E14: 0 | F14: 42718 | I14: 렌탈비 | J14: =SUMIF($D$25:$D$1000,I14,$F$25:$F$1000) -> 0 | Q14: 교육비 | R14: =SUMIF($D$25:$D$1000,Q14,$F$25:$F$1000) -> 0
B15: 이벤트 | C15: 50000 | D15: 0 | E15: 0 | F15: 50000 | I15: KT인터넷 | J15: =SUMIF($D$25:$D$1000,I15,$F$25:$F$1000) -> 0 | Q15: 주거 | R15: =SUMIF($C$26:$C$1000,Q15,$F$25:$F$1000) -> 0
B16: 섬김비 | C16: 250000 | D16: 0 | E16: 0 | F16: 250000 | Q16: 자동차 | R16: =SUMIF($C$26:$C$1000,Q16,$F$25:$F$1000) -> 0
B17: 헌금 | C17: 300000 | D17: 0 | E17: 0 | F17: 300000 | I17: 식비 | J17: =SUMIF($C$26:$C$1000,I17,$F$25:$F$1000) -> 0 | K17: 전체 | M17: 자동차 | N17: =SUMIF($C$26:$C$1000,M17,$F$25:$F$1000) -> 0 | O17: 전체 | Q17: 합계 | R17: =SUM(R10:R16) -> 0
B18: 기부 | C18: 115000 | D18: 0 | E18: 0 | F18: 115000 | I18: 식자재 | J18: =SUMIF($D$25:$D$1000,I18,$F$25:$F$1000) -> 0 | K18: =J18/$J$17 ->  | M18: 주유비 | N18: =SUMIF($D$25:$D$1000,M18,$F$25:$F$1000) -> 0 | O18: =N18/$N$17 -> 
B19: 통신비 | C19: 120000 | D19: 0 | E19: 0 | F19: 120000 | I19: 외식 | J19: =SUMIF($D$25:$D$297,I19,$F$25:$F$1000) -> 0 | K19: =J19/$J$17 ->  | M19: 택시비 | N19: =SUMIF($D$25:$D$1000,M19,$F$25:$F$1000) -> 0 | O19: =N19/$N$17 ->  | Q19: 섬김비 | R19: =SUMIF($D$25:$D$1000,Q19,$F$25:$F$1000) -> 0
B20: 기타 | C20: 30000 | D20: 0 | E20: 0 | F20: 30000 | I20: 간식비 | J20: =SUMIF($D$25:$D$297,I20,$F$25:$F$1000) -> 0 | K20: =J20/$J$17 ->  | M20: 보험/세금 | N20: =SUMIF($D$25:$D$1000,M20,$F$25:$F$1000) -> 0 | O20: =N20/$N$17 -> 
B21: 합계 | C21: =SUM(C5:C20) -> 2795218 | D21: =SUM(D5:D20) -> 0 | E21: 예산-실사용금액 | F21: =SUM(F5:F20) -> 2795218 | M21: 주차/통행료 | N21: =SUMIF($D$25:$D$1000,M21,$F$25:$F$1000) -> 0 | O21: =N21/$N$17 -> 
B22: 총수입-총지출 | C22: =N13-D21 -> 0
A24: 날짜 | B24: 계좌 | C24: 대분류 | D24: 소분류 | E24: 내용 | F24: 금액 | G24: 수입지출

Sheet 9월
A2: 2020-09-10 | B2: 전체보기 | C2: 수입보기 | D2: 날짜내림정렬 | E2: 금액 \ 표시하기 | I2: 노트
B3: 8월 이월금 | D3: 날짜오름정렬
A4: 예산 사용 현황 | B4: 지출내역 | C4: 사용 예산 | D4: 실사용금액 | E4: 예산사용율 | F4: 예산 잔액 | G4: 초과 지출 소명
B5: 저축_투자 | C5: 410000 | D5: =SUMIF($C$25:$C$1000,B5,$F$25:$F$1000) -> 0 | E5: =D5/C5 -> 0 | F5: =C5-D5 -> 410000
B6: 주거 | C6: 397500 | D6: 0 | E6: 0 | F6: 397500
B7: 식비 | C7: 500000 | D7: 0 | E7: 0 | F7: 500000
B8: 생활용품 | C8: 50000 | D8: 0 | E8: 0 | F8: 50000
B9: 의복_미용 | C9: 30000 | D9: 0 | E9: 0 | F9: 30000 | I9: 주거 | J9: =SUMIF($C$25:$C$1000,I9,$F$25:$F$1000) -> 0 | K9: 전체 | M9: 수입내용 | O9: 비율 | Q9: 고정지출 | S9: 비율 | U9: 육아
B10: 건강 | C10: 50000 | D10: 0 | E10: 0 | F10: 50000 | I10: 관리비 | J10: =SUMIF($D$25:$D$1000,I10,$F$25:$F$1000) -> 0 | K10: =J10/$J$9 ->  | M10: 월급 | N10: =SUMIF($D$25:$D$1000,M10,$F$25:$F$1000) -> 0 | O10: =N10/N13 ->  | Q10: 신한저축 | R10: =SUMIF($D$25:$D$1000,Q10,$F$25:$F$1000) -> 0 | S10: =R10/$R$17 ->  | U10: 육아용품 | V10: =SUMIF($D$25:$D$1000,U10,$F$25:$F$1000) -> 0
B11: 자기계발 | C11: 50000 | D11: 0 | E11: 0 | F11: 50000 | I11: 도시가스 | J11: =SUMIF($D$25:$D$297,I11,$F$25:$F$1000) -> 0 | M11: 기타수입 | N11: =SUMIF($D$25:$D$253,M11,$F$25:$F$1000) -> 0 | O11: =N11/N13 ->  | Q11: 저축 | R11: =SUMIF($D$25:$D$1000,Q11,$F$25:$F$1000) -> 0 | U11: 교육비 | V11: =SUMIF($D$25:$D$1000,U11,$F$25:$F$1000) -> 0
B12: 자동차 | C12: 200000 | D12: 0 | E12: 0 | F12: 200000 | I12: 대출이자 | J12: =SUMIF($D$25:$D$1000,I12,$F$25:$F$1000) -> 0 | M12: 이자 | N12: =SUMIF($D$25:$D$253,M12,$F$25:$F$1000) -> 0 | O12: =N12/N13 ->  | Q12: CCC | R12: =SUMIF($D$25:$D$1000,Q12,$F$25:$F$1000) -> 0 | U12: 장난감 | V12: =SUMIF($D$25:$D$1000,U12,$F$25:$F$1000) -> 0
B13: 육아 | C13: 200000 | D13: 0 | E13: 0 | F13: 200000 | I13: 수리/청소 | J13: =SUMIF($D$25:$D$1000,I13,$F$25:$F$1000) -> 0 | M13: 합계 | N13: =SUM(N10:N12) -> 0 | Q13: 손해보험 | R13: =SUMIF($D$25:$D$1000,Q13,$F$25:$F$1000) -> 0 | V13: =SUBTOTAL(9,V10:V12) -> 0
B14: 보험 | C14: 42718 | D14: 0 | E14: 0 | F14: 42718 | I14: 렌탈비 | J14: =SUMIF($D$25:$D$1000,I14,$F$25:$F$1000) -> 0 | Q14: 교육비 | R14: =SUMIF($D$25:$D$1000,Q14,$F$25:$F$1000) -> 0
B15: 이벤트 | C15: 50000 | D15: 0 | E15: 0 | F15: 50000 | I15: KT인터넷 | J15: =SUMIF($D$25:$D$1000,I15,$F$25:$F$1000) -> 0 | Q15: 주거 | R15: =SUMIF($C$26:$C$1000,Q15,$F$25:$F$1000) -> 0
B16: 섬김비 | C16: 250000 | D16: 0 | E16: 0 | F16: 250000 | Q16: 자동차 | R16: =SUMIF($C$26:$C$1000,Q16,$F$25:$F$1000) -> 0
B17: 헌금 | C17: 300000 | D17: 0 | E17: 0 | F17: 300000 | I17: 식비 | J17: =SUMIF($C$26:$C$1000,I17,$F$25:$F$1000) -> 0 | K17: 전체 | M17: 자동차 | N17: =SUMIF($C$26:$C$1000,M17,$F$25:$F$1000) -> 0 | O17: 전체 | Q17: 합계 | R17: =SUM(R10:R16) -> 0
B18: 기부 | C18: 115000 | D18: 0 | E18: 0 | F18: 115000 | I18: 식자재 | J18: =SUMIF($D$25:$D$1000,I18,$F$25:$F$1000) -> 0 | K18: =J18/$J$17 ->  | M18: 주유비 | N18: =SUMIF($D$25:$D$1000,M18,$F$25:$F$1000) -> 0 | O18: =N18/$N$17 -> 
B19: 통신비 | C19: 120000 | D19: 0 | E19: 0 | F19: 120000 | I19: 외식 | J19: =SUMIF($D$25:$D$297,I19,$F$25:$F$1000) -> 0 | K19: =J19/$J$17 ->  | M19: 택시비 | N19: =SUMIF($D$25:$D$1000,M19,$F$25:$F$1000) -> 0 | O19: =N19/$N$17 ->  | Q19: 섬김비 | R19: =SUMIF($D$25:$D$1000,Q19,$F$25:$F$1000) -> 0
B20: 기타 | C20: 30000 | D20: 0 | E20: 0 | F20: 30000 | I20: 간식비 | J20: =SUMIF($D$25:$D$297,I20,$F$25:$F$1000) -> 0 | K20: =J20/$J$17 ->  | M20: 보험/세금 | N20: =SUMIF($D$25:$D$1000,M20,$F$25:$F$1000) -> 0 | O20: =N20/$N$17 -> 
B21: 합계 | C21: =SUM(C5:C20) -> 2795218 | D21: =SUM(D5:D20) -> 0 | E21: 예산-실사용금액 | F21: =SUM(F5:F20) -> 2795218 | M21: 주차/통행료 | N21: =SUMIF($D$25:$D$1000,M21,$F$25:$F$1000) -> 0 | O21: =N21/$N$17 -> 
B22: 총수입-총지출 | C22: =N13-D21 -> 0
A24: 날짜 | B24: 계좌 | C24: 대분류 | D24: 소분류 | E24: 내용 | F24: 금액 | G24: 수입지출

Sheet 10월
A2: 2020-10-10 | B2: 전체보기 | C2: 수입보기 | D2: 날짜내림정렬 | E2: 금액 \ 표시하기 | I2: 노트
B3: 9월 이월금 | D3: 날짜오름정렬
A4: 예산 사용 현황 | B4: 지출내역 | C4: 사용 예산 | D4: 실사용금액 | E4: 예산사용율 | F4: 예산 잔액 | G4: 초과 지출 소명
B5: 저축_투자 | C5: 410000 | D5: =SUMIF($C$25:$C$1000,B5,$F$25:$F$1000) -> 0 | E5: =D5/C5 -> 0 | F5: =C5-D5 -> 410000
B6: 주거 | C6: 397500 | D6: 0 | E6: 0 | F6: 397500
B7: 식비 | C7: 500000 | D7: 0 | E7: 0 | F7: 500000
B8: 생활용품 | C8: 50000 | D8: 0 | E8: 0 | F8: 50000
B9: 의복_미용 | C9: 30000 | D9: 0 | E9: 0 | F9: 30000 | I9: 주거 | J9: =SUMIF($C$25:$C$1000,I9,$F$25:$F$1000) -> 0 | K9: 전체 | M9: 수입내용 | O9: 비율 | Q9: 고정지출 | S9: 비율 | U9: 육아
B10: 건강 | C10: 50000 | D10: 0 | E10: 0 | F10: 50000 | I10: 관리비 | J10: =SUMIF($D$25:$D$1000,I10,$F$25:$F$1000) -> 0 | K10: =J10/$J$9 ->  | M10: 월급 | N10: =SUMIF($D$25:$D$1000,M10,$F$25:$F$1000) -> 0 | O10: =N10/N13 ->  | Q10: 신한저축 | R10: =SUMIF($D$25:$D$1000,Q10,$F$25:$F$1000) -> 0 | S10: =R10/$R$17 ->  | U10: 육아용품 | V10: =SUMIF($D$25:$D$1000,U10,$F$25:$F$1000) -> 0
B11: 자기계발 | C11: 50000 | D11: 0 | E11: 0 | F11: 50000 | I11: 도시가스 | J11: =SUMIF($D$25:$D$297,I11,$F$25:$F$1000) -> 0 | M11: 기타수입 | N11: =SUMIF($D$25:$D$253,M11,$F$25:$F$1000) -> 0 | O11: =N11/N13 ->  | Q11: 저축 | R11: =SUMIF($D$25:$D$1000,Q11,$F$25:$F$1000) -> 0 | U11: 교육비 | V11: =SUMIF($D$25:$D$1000,U11,$F$25:$F$1000) -> 0
B12: 자동차 | C12: 200000 | D12: 0 | E12: 0 | F12: 200000 | I12: 대출이자 | J12: =SUMIF($D$25:$D$1000,I12,$F$25:$F$1000) -> 0 | M12: 이자 | N12: =SUMIF($D$25:$D$253,M12,$F$25:$F$1000) -> 0 | O12: =N12/N13 ->  | Q12: CCC | R12: =SUMIF($D$25:$D$1000,Q12,$F$25:$F$1000) -> 0 | U12: 장난감 | V12: =SUMIF($D$25:$D$1000,U12,$F$25:$F$1000) -> 0
B13: 육아 | C13: 200000 | D13: 0 | E13: 0 | F13: 200000 | I13: 수리/청소 | J13: =SUMIF($D$25:$D$1000,I13,$F$25:$F$1000) -> 0 | M13: 합계 | N13: =SUM(N10:N12) -> 0 | Q13: 손해보험 | R13: =SUMIF($D$25:$D$1000,Q13,$F$25:$F$1000) -> 0 | V13: =SUBTOTAL(9,V10:V12) -> 0
B14: 보험 | C14: 42718 | D14: 0 | E14: 0 | F14: 42718 | I14: 렌탈비 | J14: =SUMIF($D$25:$D$1000,I14,$F$25:$F$1000) -> 0 | Q14: 교육비 | R14: =SUMIF($D$25:$D$1000,Q14,$F$25:$F$1000) -> 0
B15: 이벤트 | C15: 50000 | D15: 0 | E15: 0 | F15: 50000 | I15: KT인터넷 | J15: =SUMIF($D$25:$D$1000,I15,$F$25:$F$1000) -> 0 | Q15: 주거 | R15: =SUMIF($C$26:$C$1000,Q15,$F$25:$F$1000) -> 0
B16: 섬김비 | C16: 250000 | D16: 0 | E16: 0 | F16: 250000 | Q16: 자동차 | R16: =SUMIF($C$26:$C$1000,Q16,$F$25:$F$1000) -> 0
B17: 헌금 | C17: 300000 | D17: 0 | E17: 0 | F17: 300000 | I17: 식비 | J17: =SUMIF($C$26:$C$1000,I17,$F$25:$F$1000) -> 0 | K17: 전체 | M17: 자동차 | N17: =SUMIF($C$26:$C$1000,M17,$F$25:$F$1000) -> 0 | O17: 전체 | Q17: 합계 | R17: =SUM(R10:R16) -> 0
B18: 기부 | C18: 115000 | D18: 0 | E18: 0 | F18: 115000 | I18: 식자재 | J18: =SUMIF($D$25:$D$1000,I18,$F$25:$F$1000) -> 0 | K18: =J18/$J$17 ->  | M18: 주유비 | N18: =SUMIF($D$25:$D$1000,M18,$F$25:$F$1000) -> 0 | O18: =N18/$N$17 -> 
B19: 통신비 | C19: 120000 | D19: 0 | E19: 0 | F19: 120000 | I19: 외식 | J19: =SUMIF($D$25:$D$297,I19,$F$25:$F$1000) -> 0 | K19: =J19/$J$17 ->  | M19: 택시비 | N19: =SUMIF($D$25:$D$1000,M19,$F$25:$F$1000) -> 0 | O19: =N19/$N$17 ->  | Q19: 섬김비 | R19: =SUMIF($D$25:$D$1000,Q19,$F$25:$F$1000) -> 0
B20: 기타 | C20: 30000 | D20: 0 | E20: 0 | F20: 30000 | I20: 간식비 | J20: =SUMIF($D$25:$D$297,I20,$F$25:$F$1000) -> 0 | K20: =J20/$J$17 ->  | M20: 보험/세금 | N20: =SUMIF($D$25:$D$1000,M20,$F$25:$F$1000) -> 0 | O20: =N20/$N$17 -> 
B21: 합계 | C21: =SUM(C5:C20) -> 2795218 | D21: =SUM(D5:D20) -> 0 | E21: 예산-실사용금액 | F21: =SUM(F5:F20) -> 2795218 | M21: 주차/통행료 | N21: =SUMIF($D$25:$D$1000,M21,$F$25:$F$1000) -> 0 | O21: =N21/$N$17 -> 
B22: 총수입-총지출 | C22: =N13-D21 -> 0
A24: 날짜 | B24: 계좌 | C24: 대분류 | D24: 소분류 | E24: 내용 | F24: 금액 | G24: 수입지출

Sheet 11월
A2: 2020-11-10 | B2: 전체보기 | C2: 수입보기 | D2: 날짜내림정렬 | E2: 금액 \ 표시하기 | I2: 노트
B3: 10월 이월금 | D3: 날짜오름정렬
A4: 예산 사용 현황 | B4: 지출내역 | C4: 사용 예산 | D4: 실사용금액 | E4: 예산사용율 | F4: 예산 잔액 | G4: 초과 지출 소명
B5: 저축_투자 | C5: 410000 | D5: =SUMIF($C$25:$C$999,B5,$F$25:$F$999) -> 0 | E5: =D5/C5 -> 0 | F5: =C5-D5 -> 410000
B6: 주거 | C6: 397500 | D6: =SUMIF($C$25:$C$999,B6,$F$25:$F$999) -> 302080 | E6: 0.7599496855 | F6: 95420
B7: 식비 | C7: 500000 | D7: =SUMIF($C$25:$C$999,B7,$F$25:$F$999) -> 720821 | E7: 1.441642 | F7: -220821
B8: 생활용품 | C8: 50000 | D8: =SUMIF($C$25:$C$999,B8,$F$25:$F$999) -> 166080 | E8: 3.3216 | F8: -116080
B9: 의복_미용 | C9: 30000 | D9: =SUMIF($C$25:$C$999,B9,$F$25:$F$999) -> 0 | E9: 0 | F9: 30000 | I9: 주거 | J9: =SUMIF($C$25:$C$999,I9,$F$25:$F$999) -> 302080 | K9: 전체 | M9: 수입내용 | O9: 비율 | Q9: 고정지출 | S9: 비율 | U9: 육아
B10: 건강 | C10: 50000 | D10: =SUMIF($C$25:$C$999,B10,$F$25:$F$999) -> 34020 | E10: 0.6804 | F10: 15980 | I10: 관리비 | J10: =SUMIF($D$25:$D$999,I10,$F$25:$F$999) -> 147260 | K10: =J10/$J$9 -> 0.4874867585 | M10: 월급 | N10: =SUMIF($D$25:$D$999,M10,$F$25:$F$999) -> 2686050 | O10: =N10/N13 -> 0.9641068897 | Q10: 신한저축 | R10: =SUMIF($D$25:$D$999,Q10,$F$25:$F$999) -> 0 | S10: =R10/$R$17 -> 0 | U10: 육아용품 | V10: =SUMIF($D$25:$D$999,U10,$F$25:$F$999) -> 150350
B11: 자기계발 | C11: 50000 | D11: =SUMIF($C$25:$C$999,B11,$F$25:$F$999) -> 6500 | E11: 0.13 | F11: 43500 | I11: 도시가스 | J11: =SUMIF($D$25:$D$296,I11,$F$25:$F$999) -> 17880 | K11: 0.05918961864 | M11: 기타수입 | N11: =SUMIF($D$25:$D$252,M11,$F$25:$F$999) -> 100000 | O11: =N11/N13 -> 0.03589311032 | Q11: 저축 | R11: =SUMIF($D$25:$D$999,Q11,$F$25:$F$999) -> 0 | S11: 0 | U11: 교육비 | V11: =SUMIF($D$25:$D$999,U11,$F$25:$F$999) -> 170300
B12: 자동차 | C12: 200000 | D12: =SUMIF($C$25:$C$999,B12,$F$25:$F$999) -> 71260 | E12: 0.3563 | F12: 128740 | I12: 대출이자 | J12: =SUMIF($D$25:$D$999,I12,$F$25:$F$999) -> 71140 | K12: 0.2355005297 | M12: 이자 | N12: =SUMIF($D$25:$D$252,M12,$F$25:$F$999) -> 0 | O12: =N12/N13 -> 0 | Q12: CCC | R12: =SUMIF($D$25:$D$999,Q12,$F$25:$F$999) -> 0 | S12: 0 | U12: 장난감 | V12: =SUMIF($D$25:$D$999,U12,$F$25:$F$999) -> 54000
B13: 육아 | C13: 200000 | D13: =SUMIF($C$25:$C$999,B13,$F$25:$F$999) -> 374650 | E13: 1.87325 | F13: -174650 | I13: 수리/청소 | J13: =SUMIF($D$25:$D$999,I13,$F$25:$F$999) -> 0 | K13: 0 | M13: 합계 | N13: =SUM(N10:N12) -> 2786050 | Q13: 손해보험 | R13: =SUMIF($D$25:$D$999,Q13,$F$25:$F$999) -> 25540 | S13: 0.05135195998 | V13: =SUBTOTAL(9,V10:V12) -> 374650
B14: 보험 | C14: 42718 | D14: =SUMIF($C$25:$C$999,B14,$F$25:$F$999) -> 25540 | E14: 0.5978744323 | F14: 17178 | I14: 렌탈비 | J14: =SUMIF($D$25:$D$999,I14,$F$25:$F$999) -> 65800 | K14: 0.2178230932 | Q14: 교육비 | R14: =SUMIF($D$25:$D$999,Q14,$F$25:$F$999) -> 170300 | S14: 0.3424134215
B15: 이벤트 | C15: 50000 | D15: =SUMIF($C$25:$C$999,B15,$F$25:$F$999) -> 0 | E15: 0 | F15: 50000 | I15: KT인터넷 | J15: =SUMIF($D$25:$D$999,I15,$F$25:$F$999) -> 0 | K15: 0 | Q15: 주거 | R15: =SUMIF($C$26:$C$999,Q15,$F$25:$F$999) -> 195512 | S15: 0.3931058888
B16: 섬김비 | C16: 250000 | D16: =SUMIF($C$25:$C$999,B16,$F$25:$F$999) -> 359170 | E16: 1.43668 | F16: -109170 | Q16: 자동차 | R16: =SUMIF($C$26:$C$999,Q16,$F$25:$F$999) -> 106000 | S16: 0.2131287298
B17: 헌금 | C17: 300000 | D17: =SUMIF($C$25:$C$999,B17,$F$25:$F$999) -> 350000 | E17: 1.166666667 | F17: -50000 | I17: 식비 | J17: =SUMIF($C$26:$C$999,I17,$F$25:$F$999) -> 1510775 | K17: 전체 | M17: 자동차 | N17: =SUMIF($C$26:$C$999,M17,$F$25:$F$999) -> 106000 | O17: 전체 | Q17: 합계 | R17: =SUM(R10:R16) -> 497352
B18: 기부 | C18: 115000 | D18: =SUMIF($C$25:$C$999,B18,$F$25:$F$999) -> 0 | E18: 0 | F18: 115000 | I18: 식자재 | J18: =SUMIF($D$25:$D$999,I18,$F$25:$F$999) -> 411430 | K18: =J18/$J$17 -> 0.2723304264 | M18: 주유비 | N18: =SUMIF($D$25:$D$999,M18,$F$25:$F$999) -> 71260 | O18: =N18/$N$17 -> 0.6722641509
B19: 통신비 | C19: 120000 | D19: =SUMIF($C$25:$C$999,B19,$F$25:$F$999) -> 0 | E19: 0 | F19: 120000 | I19: 외식 | J19: =SUMIF($D$25:$D$296,I19,$F$25:$F$999) -> 170132 | K19: =J19/$J$17 -> 0.1126124009 | M19: 택시비 | N19: =SUMIF($D$25:$D$999,M19,$F$25:$F$999) -> 0 | O19: =N19/$N$17 -> 0 | Q19: 섬김비 | R19: =SUMIF($D$25:$D$999,Q19,$F$25:$F$999) -> 0
B20: 기타 | C20: 30000 | D20: =SUMIF($C$25:$C$999,B20,$F$25:$F$999) -> 3900 | E20: 0.13 | F20: 26100 | I20: 간식비 | J20: =SUMIF($D$25:$D$296,I20,$F$25:$F$999) -> 26800 | K20: =J20/$J$17 -> 0.01773923979 | M20: 보험/세금 | N20: =SUMIF($D$25:$D$999,M20,$F$25:$F$999) -> 0 | O20: =N20/$N$17 -> 0
B21: 합계 | C21: =SUM(C5:C20) -> 2795218 | D21: =SUM(D5:D20) -> 2414021 | E21: 예산-실사용금액 | F21: =SUM(F5:F20) -> 381197 | M21: 주차/통행료 | N21: =SUMIF($D$25:$D$999,M21,$F$25:$F$999) -> 0 | O21: =N21/$N$17 -> 0
B22: 총수입-총지출 | C22: =N13-D21 -> 372029
A24: 날짜 | B24: 계좌 | C24: 대분류 | D24: 소분류 | E24: 내용 | F24: 금액 | G24: 수입지출
A25: 2020-12-03 | B25: 하나카드 | C25: 섬김비 | D25: 가족/친지 | E25: 쿠팡(쿠페이) | F25: 12500 | G25: 지출
A26: 2020-12-03 | B26: 하나카드 | C26: 육아 | D26: 육아용품 | E26: 쿠팡(쿠페이) 예원이 소파베드 | F26: 49000 | G26: 지출
A27: 2020-12-02 | B27: 하나카드 | C27: 육아 | D27: 육아용품 | E27: 쿠팡(쿠페이) 예원이 캐노피 | F27: 32980 | G27: 지출
A28: 2020-12-02 | B28: 하나카드 | C28: 생활용품 | D28: 기타용품 | E28: 창조철물공고 미니 드라이버 | F28: 4500 | G28: 지출
A29: 2020-12-01 | B29: 하나카드 | C29: 식비 | D29: 간식비 | E29: 이마트24군산미공군 | F29: 1200 | G29: 지출
A30: 2020-11-30 | B30: 하나카드 | C30: 섬김비 | D30: 가족/친지 | E30: 쿠팡(쿠페이) | F30: 41410 | G30: 지출
A31: 2020-11-30 | B31: 하나카드 | C31: 식비 | D31: 식자재 | E31: 신일슈퍼 | F31: 3700 | G31: 지출
A32: 2020-11-30 | B32: 하나카드 | C32: 식비 | D32: 간식비 | E32: 신일슈퍼 | F32: -4000 | G32: 지출
A33: 2020-11-30 | B33: 하나카드 | C33: 식비 | D33: 식자재 | E33: 두배로쇼핑 | F33: 2000 | G33: 지출
A34: 2020-11-30 | B34: 하나카드 | C34: 식비 | D34: 식자재 | E34: 경선정육점 | F34: 19000 | G34: 지출
A35: 2020-11-30 | B35: 하나카드 | C35: 식비 | D35: 식자재 | E35: 두배로쇼핑 | F35: 5370 | G35: 지출
A36: 2020-11-30 | B36: 하나카드 | C36: 식비 | D36: 간식비 | E36: 신일슈퍼 | F36: 1700 | G36: 지출
A37: 2020-11-30 | B37: 하나카드 | C37: 식비 | D37: 간식비 | E37: 신일슈퍼 | F37: 4000 | G37: 지출
A38: 2020-11-29 | B38: 하나카드 | C38: 육아 | D38: 육아용품 | E38: 햇님토이 아이들 열쇠 | F38: 4000 | G38: 지출
A39: 2020-11-29 | B39: 하나카드 | C39: 식비 | D39: 식자재 | E39: 신일슈퍼 | F39: 1100 | G39: 지출
A40: 2020-11-29 | B40: 하나카드 | C40: 식비 | D40: 식자재 | E40: 두배로쇼핑 | F40: 24220 | G40: 지출
A41: 2020-11-29 | B41: 하나카드 | C41: 식비 | D41: 식자재 | E41: 경선정육점 | F41: 13800 | G41: 지출
A42: 2020-11-28 | B42: 하나카드 | C42: 식비 | D42: 식자재 | E42: (주)이마트에브리 | F42: 115240 | G42: 지출
A43: 2020-11-27 | B43: 하나카드 | C43: 식비 | D43: 식자재 | E43: 두배로쇼핑 | F43: 6000 | G43: 지출
A44: 2020-11-27 | B44: 신한은행 | C44: 식비 | D44: 외식 | E44: 강민영 족발주문 | F44: 37000 | G44: 지출
A45: 2020-11-26 | B45: 하나카드 | C45: 식비 | D45: 간식비 | E45: 이마트24군산미공군 | F45: 2400 | G45: 지출
A46: 2020-11-26 | B46: 하나카드 | C46: 섬김비 | D46: 가족/친지 | E46: 쿠팡(쿠페이) | F46: 41000 | G46: 지출
A47: 2020-11-26 | B47: 하나카드 | C47: 생활용품 | D47: 기타용품 | E47: 쿠팡(쿠페이) 시계줄 3개 | F47: 7580 | G47: 지출
A48: 2020-11-26 | B48: 하나카드 | C48: 식비 | D48: 식자재 | E48: 두배로쇼핑 | F48: 15210 | G48: 지출
A49: 2020-11-26 | B49: 하나카드 | C49: 식비 | D49: 식자재 | E49: 경선정육점 | F49: 6000 | G49: 지출
A50: 2020-11-25 | B50: 하나카드 | C50: 자동차 | D50: 주유비 | E50: 에스제이상사국제 | F50: 33666 | G50: 지출
A51: 2020-11-25 | B51: 하나카드 | C51: 식비 | D51: 간식비 | E51: 이마트24군산미공군 | F51: 1200 | G51: 지출
A52: 2020-11-25 | B52: 하나카드 | C52: 생활용품 | D52: 기타용품 | E52: 쿠팡(쿠페이) 패드 보호필름 | F52: 10300 | G52: 지출
A53: 2020-11-25 | B53: 하나카드 | C53: 주거 | D53: 관리비 | E53: 아파트관리비 | F53: 147260 | G53: 지출
A54: 2020-11-25 | B54: 신한은행 | C54: 주거 | D54: 도시가스 | E54: 군산도시가스 | F54: 17880 | G54: 지출
A55: 2020-11-25 | B55: 신한은행 | C55: 수입 | D55: 기타수입 | E55: 아동수당 | F55: 100000 | G55: 수입
A56: 2020-11-24 | B56: 현금 | C56: 생활용품 | D56: 기타용품 | E56: 쿠팡 립케어 4개 | F56: 9500 | G56: 지출
A57: 2020-11-24 | B57: 하나카드 | C57: 식비 | D57: 식자재 | E57: 두배로쇼핑 | F57: 12800 | G57: 지출
A58: 2020-11-24 | B58: 하나카드 | C58: 식비 | D58: 식자재 | E58: 두배로쇼핑 | F58: 4500 | G58: 지출
A59: 2020-11-24 | B59: 하나카드 | C59: 식비 | D59: 식자재 | E59: 경선정육점 | F59: 4000 | G59: 지출
A60: 2020-11-23 | B60: 현금 | C60: 생활용품 | D60: 기타용품 | E60: 휠타수세미 30개 | F60: 14200 | G60: 지출
A61: 2020-11-23 | B61: 신한은행 | C61: 보험 | D61: 손해보험 | E61: DB손 | F61: 11330 | G61: 지출
A62: 2020-11-23 | B62: 신한은행 | C62: 보험 | D62: 손해보험 | E62: DB손 | F62: 14210 | G62: 지출
A63: 2020-11-23 | B63: 하나카드 | C63: 섬김비 | D63: 가족/친지 | E63: 쿠팡(쿠페이) | F63: 14200 | G63: 지출
A64: 2020-11-23 | B64: 하나카드 | C64: 식비 | D64: 식자재 | E64: 두배로쇼핑 | F64: 3600 | G64: 지출
A65: 2020-11-23 | B65: 하나카드 | C65: 식비 | D65: 식자재 | E65: 두배로쇼핑 | F65: 11550 | G65: 지출
A66: 2020-11-23 | B66: 삼성 | C66: 식비 | E66: DB손해보험 ((6/10)) | F66: 112459 | G66: 지출
A67: 2020-11-22 | B67: 하나카드 | C67: 식비 | D67: 간식비 | E67: 신일슈퍼 | F67: 2500 | G67: 지출
A68: 2020-11-22 | B68: 하나카드 | C68: 식비 | D68: 식자재 | E68: 경선정육점 | F68: 19400 | G68: 지출
A69: 2020-11-22 | B69: 하나카드 | C69: 육아 | D69: 육아용품 | E69: 쿠팡(쿠페이) 아기과자 | F69: 12000 | G69: 지출
A70: 2020-11-22 | B70: 하나카드 | C70: 식비 | D70: 식자재 | E70: 두배로쇼핑 | F70: 6900 | G70: 지출
A71: 2020-11-22 | B71: 하나카드 | C71: 육아 | D71: 육아용품 | E71: 쿠팡(쿠페이) 분유3통 | F71: 45470 | G71: 지출
A72: 2020-11-21 | B72: 하나카드 | C72: 식비 | D72: 외식 | E72: 유한회사알지피코리 | F72: 16000 | G72: 지출
A73: 2020-11-21 | B73: 하나카드 | C73: 식비 | D73: 간식비 | E73: 파리바게뜨(제일점) | F73: 3300 | G73: 지출
A74: 2020-11-21 | B74: 하나카드 | C74: 건강 | D74: 병원/약국 | E74: 백제약국 | F74: 2200 | G74: 지출
A75: 2020-11-21 | B75: 하나카드 | C75: 건강 | D75: 병원/약국 | E75: 전종율소아과 | F75: 3000 | G75: 지출
A76: 2020-11-20 | B76: 하나카드 | C76: 식비 | D76: 간식비 | E76: 신일슈퍼 | F76: 2700 | G76: 지출
A77: 2020-11-20 | B77: 삼성 | C77: 식비 | D77: 외식 | E77: AAFESKUNSANANTHONYS 피자 사감 | F77: 19832 | G77: 지출
A78: 2020-11-20 | B78: 하나카드 | C78: 주거 | D78: 렌탈비 | E78: 엘지전자(주)렌탈케 | F78: 20900 | G78: 지출
A79: 2020-11-20 | B79: 신한은행 | C79: 기타 | D79: 기타 | E79: 쿠팡와우월회비 | F79: 2900 | G79: 지출
A80: 2020-11-19 | B80: 삼성 | C80: 섬김비 | D80: 지인 | E80: AAFESKUNSANANTHONYS 회사 사람들과 피자 | F80: 47830 | G80: 지출
A81: 2020-11-18 | B81: 하나카드 | C81: 식비 | D81: 식자재 | E81: 두배로쇼핑 | F81: 10680 | G81: 지출
A82: 2020-11-18 | B82: 하나카드 | C82: 생활용품 | D82: 기타용품 | E82: 쿠팡(쿠페이) 미밴드 잘못 구매함 | F82: 3200 | G82: 지출
A83: 2020-11-17 | B83: 하나카드 | C83: 생활용품 | D83: 기타용품 | E83: 쿠팡(쿠페이) 납흡입기 | F83: 6900 | G83: 지출
A84: 2020-11-17 | B84: 하나카드 | C84: 건강 | D84: 병원/약국 | E84: 백제약국 | F84: 2700 | G84: 지출
A85: 2020-11-17 | B85: 하나카드 | C85: 건강 | D85: 병원/약국 | E85: 전종율소아과 | F85: 4400 | G85: 지출
A86: 2020-11-16 | B86: 신한은행 | C86: 전월카드지출 | E86: 삼성카드주식회 | F86: 112400 | G86: 지출
A87: 2020-11-16 | B87: 하나카드 | C87: 건강 | D87: 건강용품 | E87: 쿠팡(쿠페이)푸쉬업 바 | F87: 8220 | G87: 지출
A88: 2020-11-16 | B88: 신한은행 | C88: 주거 | D88: 대출이자 | F88: 71140 | G88: 지출
A89: 2020-11-15 | B89: 하나카드 | C89: 식비 | D89: 외식 | E89: 유한회사알지피코리 | F89: 52000 | G89: 지출
A90: 2020-11-15 | B90: 하나카드 | C90: 건강 | D90: 병원/약국 | E90: 아이약국 | F90: 3600 | G90: 지출
A91: 2020-11-15 | B91: 하나카드 | C91: 건강 | D91: 병원/약국 | E91: 군산메디베베소아청소 | F91: 6000 | G91: 지출
A92: 2020-11-14 | B92: 하나카드 | C92: 식비 | D92: 식자재 | E92: 두배로쇼핑 | F92: 19260 | G92: 지출
A93: 2020-11-14 | B93: 하나카드 | C93: 식비 | D93: 외식 | E93: 유한회사알지피코리요기요 | F93: 29700 | G93: 지출
A94: 2020-11-14 | B94: 하나카드 | C94: 식비 | D94: 간식비 | E94: 신일슈퍼 | F94: 5500 | G94: 지출
A95: 2020-11-13 | B95: 신한은행 | C95: 전월카드지출 | E95: 하나카드 | F95: 1217664 | G95: 지출
A96: 2020-11-13 | B96: 하나카드 | C96: 육아 | D96: 교육비 | E96: 햇님토이 | F96: 79000 | G96: 지출
A97: 2020-11-13 | B97: 하나카드 | C97: 식비 | D97: 간식비 | E97: 이마트24군산미공군 | F97: 1300 | G97: 지출
A98: 2020-11-13 | B98: 하나카드 | C98: 섬김비 | D98: 가족/친지 | E98: 쿠팡(쿠페이) | F98: 8500 | G98: 지출
A99: 2020-11-12 | B99: 하나카드 | C99: 식비 | D99: 간식비 | E99: 이마트24군산미공군 | F99: 5000 | G99: 지출
A100: 2020-11-11 | B100: 신한은행 | C100: 생활용품 | D100: 기타용품 | E100: 최가영 놀이매트 맘카페 | F100: 100000 | G100: 지출
A101: 2020-11-11 | B101: 하나카드 | C101: 자동차 | D101: 주유비 | E101: 에스제이상사국제 | F101: 37594 | G101: 지출
A102: 2020-11-11 | B102: 신한은행 | C102: 전월카드지출 | E102: 우리00 | F102: 566670 | G102: 지출
A103: 2020-11-11 | B103: 신한은행 | C103: 식비 | D103: 식자재 | E103: 카드 | F103: 56500 | G103: 지출
A104: 2020-11-11 | B104: 신한은행 | C104: 육아 | D104: 교육비 | E104: 해나라유치원 | F104: 91300 | G104: 지출
A105: 2020-11-10 | B105: 신한은행 | C105: 수입 | D105: 월급 | E105: 엘비휴넷(주) | F105: 2686050 | G105: 수입
A106: 2020-11-10 | B106: 현금 | C106: 헌금 | D106: 십일조 | E106: 십일조 | F106: 350000 | G106: 지출
A107: 2020-11-10 | B107: 신한 | C107: 자기계발 | D107: 도서/문구 | E107: 리디북스 | F107: 6500 | G107: 지출
A108: 2020-11-10 | B108: 하나카드 | C108: 식비 | D108: 식자재 | E108: 쿠팡(쿠페이) 김치 | F108: 35900 | G108: 지출
A109: 2020-11-10 | B109: 하나카드 | C109: 육아 | D109: 육아용품 | E109: 쿠팡(쿠페이) 유기농 쌀과자 | F109: 6900 | G109: 지출
A110: 2020-11-10 | B110: 하나카드 | C110: 생활용품 | D110: 기타용품 | E110: 쿠팡(쿠페이) 고속충전케이블 3개 | F110: 9900 | G110: 지출
A111: 2020-11-10 | B111: 하나카드 | C111: 주거 | D111: 렌탈비 | E111: 엘지전자(주)렌탈 | F111: 44900 | G111: 지출
A112: 2020-11-10 | B112: 신한은행 | C112: 기타 | D112: 은행수수료 | E112: SMS | F112: 1000 | G112: 지출
A113: 2020-12-09 | B113: 신한은행 | C113: 미분류 | E113: 군산시청선유2 | F113: 1900 | G113: 지출
A114: 2020-12-08 | B114: 하나카드 | C114: 식비 | D114: 외식 | E114: 맥도날드군산나운D | F114: 13600 | G114: 지출
A115: 2020-12-08 | B115: 하나카드 | C115: 식비 | D115: 외식 | E115: 맥도날드군산나운DT | F115: 2000 | G115: 지출
A116: 2020-12-07 | B116: 하나카드 | C116: 섬김비 | D116: 가족/친지 | E116: 쿠팡(쿠페이) | F116: 9730 | G116: 지출
A117: 2020-12-07 | B117: 하나카드 | C117: 육아 | D117: 장난감 | E117: 햇님토이 | F117: 54000 | G117: 지출
A118: 2020-12-07 | B118: 하나카드 | C118: 건강 | D118: 병원/약국 | E118: 백제약국 | F118: 1400 | G118: 지출
A119: 2020-12-07 | B119: 하나카드 | C119: 건강 | D119: 병원/약국 | E119: 전종율소아과 | F119: 2500 | G119: 지출
A120: 2020-12-07 | B120: 하나카드 | C120: 섬김비 | D120: 가족/친지 | E120: 쿠팡(쿠페이) | F120: 29900 | G120: 지출
A121: 2020-12-06 | B121: 하나카드 | C121: 섬김비 | D121: 가족/친지 | E121: 쿠팡(쿠페이) | F121: 78900 | G121: 지출
A122: 2020-12-06 | B122: 하나카드 | C122: 식비 | D122: 식자재 | E122: 두배로쇼핑 | F122: 14700 | G122: 지출
A123: 2020-12-05 | B123: 하나카드 | C123: 섬김비 | D123: 가족/친지 | E123: 쿠팡(쿠페이) | F123: 49200 | G123: 지출
A124: 2020-12-04 | B124: 하나카드 | C124: 미분류 | E124: 유한회사알지피코 | F124: 18000 | G124: 지출
A125: 2020-12-04 | B125: 하나카드 | C125: 섬김비 | D125: 지인 | E125: 신풍인삼면옥(백양원과 공주) | F125: 26000 | G125: 지출

Sheet 12월
A2: 2020-12-10 | B2: 전체보기 | C2: 수입보기 | D2: 날짜내림정렬 | E2: 금액 \ 표시하기 | I2: 노트
B3: 11월 이월금 | D3: 날짜오름정렬
A4: 예산 사용 현황 | B4: 지출내역 | C4: 사용 예산 | D4: 실사용금액 | E4: 예산사용율 | F4: 예산 잔액 | G4: 초과 지출 소명
B5: 저축_투자 | C5: 410000 | D5: =SUMIF($C$25:$C$1000,B5,$F$25:$F$1000) -> 0 | E5: =D5/C5 -> 0 | F5: =C5-D5 -> 410000
B6: 주거 | C6: 397500 | D6: 261920 | E6: 0.658918239 | F6: 135580
B7: 식비 | C7: 500000 | D7: 268299 | E7: 0.536598 | F7: 231701
B8: 생활용품 | C8: 50000 | D8: 38070 | E8: 0.7614 | F8: 11930
B9: 의복_미용 | C9: 30000 | D9: 0 | E9: 0 | F9: 30000 | I9: 주거 | J9: =SUMIF($C$25:$C$1000,I9,$F$25:$F$1000) -> 261920 | K9: 전체 | M9: 수입내용 | O9: 비율 | Q9: 고정지출 | S9: 비율 | U9: 육아
B10: 건강 | C10: 50000 | D10: 0 | E10: 0 | F10: 50000 | I10: 관리비 | J10: =SUMIF($D$25:$D$1000,I10,$F$25:$F$1000) -> 150940 | K10: =J10/$J$9 -> 0.5762828345 | M10: 월급 | N10: =SUMIF($D$25:$D$1000,M10,$F$25:$F$1000) -> 2650150 | O10: =N10/N13 -> 0.963638347 | Q10: 신한저축 | R10: =SUMIF($D$25:$D$1000,Q10,$F$25:$F$1000) -> 0 | S10: =R10/$R$17 -> 0 | U10: 육아용품 | V10: =SUMIF($D$25:$D$1000,U10,$F$25:$F$1000) -> 191230
B11: 자기계발 | C11: 50000 | D11: 32300 | E11: 0.646 | F11: 17700 | I11: 도시가스 | J11: =SUMIF($D$25:$D$297,I11,$F$25:$F$1000) -> 45180 | K11: 0.1724954184 | M11: 기타수입 | N11: =SUMIF($D$25:$D$253,M11,$F$25:$F$1000) -> 100000 | O11: =N11/N13 -> 0.036361653 | Q11: 저축 | R11: =SUMIF($D$25:$D$1000,Q11,$F$25:$F$1000) -> 0 | S11: 0 | U11: 교육비 | V11: =SUMIF($D$25:$D$1000,U11,$F$25:$F$1000) -> 124500
B12: 자동차 | C12: 200000 | D12: 181810 | E12: 0.90905 | F12: 18190 | I12: 대출이자 | J12: =SUMIF($D$25:$D$1000,I12,$F$25:$F$1000) -> 0 | K12: 0 | M12: 이자 | N12: =SUMIF($D$25:$D$253,M12,$F$25:$F$1000) -> 0 | O12: =N12/N13 -> 0 | Q12: CCC | R12: =SUMIF($D$25:$D$1000,Q12,$F$25:$F$1000) -> 0 | S12: 0 | U12: 장난감 | V12: =SUMIF($D$25:$D$1000,U12,$F$25:$F$1000) -> 41000
B13: 육아 | C13: 200000 | D13: 356730 | E13: 1.78365 | F13: -156730 | I13: 수리/청소 | J13: =SUMIF($D$25:$D$1000,I13,$F$25:$F$1000) -> 0 | K13: 0 | M13: 합계 | N13: =SUM(N10:N12) -> 2750150 | Q13: 손해보험 | R13: =SUMIF($D$25:$D$1000,Q13,$F$25:$F$1000) -> 25540 | S13: 0.01306074525 | V13: =SUBTOTAL(9,V10:V12) -> 356730
B14: 보험 | C14: 42718 | D14: 25540 | E14: 0.5978744323 | F14: 17178 | I14: 렌탈비 | J14: =SUMIF($D$25:$D$1000,I14,$F$25:$F$1000) -> 65800 | K14: 0.2512217471 | Q14: 교육비 | R14: =SUMIF($D$25:$D$1000,Q14,$F$25:$F$1000) -> 124500 | S14: 0.06366729771
B15: 이벤트 | C15: 50000 | D15: 0 | E15: 0 | F15: 50000 | I15: KT인터넷 | J15: =SUMIF($D$25:$D$1000,I15,$F$25:$F$1000) -> 0 | K15: 0 | Q15: 주거 | R15: =SUMIF($C$26:$C$1000,Q15,$F$25:$F$1000) -> 263588 | S15: 0.134794664
B16: 섬김비 | C16: 250000 | D16: 0 | E16: 0 | F16: 250000 | Q16: 자동차 | R16: =SUMIF($C$26:$C$1000,Q16,$F$25:$F$1000) -> 1541850 | S16: 0.788477293
B17: 헌금 | C17: 300000 | D17: 0 | E17: 0 | F17: 300000 | I17: 식비 | J17: =SUMIF($C$26:$C$1000,I17,$F$25:$F$1000) -> 1137377 | K17: 전체 | M17: 자동차 | N17: =SUMIF($C$26:$C$1000,M17,$F$25:$F$1000) -> 1541850 | O17: 전체 | Q17: 합계 | R17: =SUM(R10:R16) -> 1955478
B18: 기부 | C18: 115000 | D18: 0 | E18: 0 | F18: 115000 | I18: 식자재 | J18: =SUMIF($D$25:$D$1000,I18,$F$25:$F$1000) -> 108340 | K18: =J18/$J$17 -> 0.09525425606 | M18: 주유비 | N18: =SUMIF($D$25:$D$1000,M18,$F$25:$F$1000) -> 0 | O18: =N18/$N$17 -> 0
B19: 통신비 | C19: 120000 | D19: 0 | E19: 0 | F19: 120000 | I19: 외식 | J19: =SUMIF($D$25:$D$297,I19,$F$25:$F$1000) -> 43000 | K19: =J19/$J$17 -> 0.03780628587 | M19: 택시비 | N19: =SUMIF($D$25:$D$1000,M19,$F$25:$F$1000) -> 0 | O19: =N19/$N$17 -> 0 | Q19: 섬김비 | R19: =SUMIF($D$25:$D$1000,Q19,$F$25:$F$1000) -> 0
B20: 기타 | C20: 30000 | D20: 3900 | E20: 0.13 | F20: 26100 | I20: 간식비 | J20: =SUMIF($D$25:$D$297,I20,$F$25:$F$1000) -> 4500 | K20: =J20/$J$17 -> 0.003956471777 | M20: 보험/세금 | N20: =SUMIF($D$25:$D$1000,M20,$F$25:$F$1000) -> 181810 | O20: =N20/$N$17 -> 0.1179167883
B21: 합계 | C21: =SUM(C5:C20) -> 2795218 | D21: =SUM(D5:D20) -> 1168569 | E21: 예산-실사용금액 | F21: =SUM(F5:F20) -> 1626649 | M21: 주차/통행료 | N21: =SUMIF($D$25:$D$1000,M21,$F$25:$F$1000) -> 0 | O21: =N21/$N$17 -> 0
B22: 총수입-총지출 | C22: =N13-D21 -> 1581581
A24: 날짜 | B24: 계좌 | C24: 대분류 | D24: 소분류 | E24: 내용 | F24: 금액 | G24: 수입지출
A25: 2020-12-28 | B25: 하나카드 | C25: 육아 | D25: 육아용품 | E25: 쿠팡(쿠페이) | F25: 17200 | G25: 지출
A26: 2020-12-28 | B26: 하나카드 | C26: 주거 | D26: 관리비 | E26: 아파트관리비 | F26: 150940 | G26: 지출
A27: 2020-12-27 | B27: 하나카드 | C27: 식비 | D27: 식자재 | E27: 두배로쇼핑 | F27: 3000 | G27: 지출
A28: 2020-12-27 | B28: 하나카드 | C28: 육아 | D28: 육아용품 | E28: 쿠팡(쿠페이) 아이들 선물 | F28: 45400 | G28: 지출
A29: 2020-12-27 | B29: 하나카드 | C29: 식비 | D29: 식자재 | E29: 두배로쇼핑 | F29: 6850 | G29: 지출
A30: 2020-12-27 | B30: 하나카드 | C30: 식비 | D30: 식자재 | E30: 두배로쇼핑 | F30: 12000 | G30: 지출
A31: 2020-12-27 | B31: 하나카드 | C31: 생활용품 | D31: 가전/가구 | E31: 쿠팡(쿠페이) 옷걸이 | F31: 9900 | G31: 지출
A32: 2020-12-27 | B32: 하나카드 | C32: 생활용품 | D32: 가전/가구 | E32: 쿠팡(쿠페이)빈백쇼파 6개월 무이자 ((1/6)) | F32: 23170 | G32: 지출
A33: 2020-12-26 | B33: 하나카드 | C33: 식비 | D33: 식자재 | E33: 경선정육점 | F33: 6000 | G33: 지출
A34: 2020-12-26 | B34: 하나카드 | C34: 식비 | D34: 식자재 | E34: 두배로쇼핑 | F34: 17660 | G34: 지출
A35: 2020-12-26 | B35: 하나카드 | C35: 육아 | D35: 육아용품 | E35: 쿠팡(쿠페이) 분유 | F35: 46060 | G35: 지출
A36: 2020-12-25 | B36: 하나카드 | C36: 식비 | D36: 식자재 | E36: 두배로쇼핑 | F36: 40410 | G36: 지출
A37: 2020-12-25 | B37: 하나카드 | C37: 식비 | D37: 식자재 | E37: 두배로쇼핑 | F37: 2420 | G37: 지출
A38: 2020-12-24 | B38: 하나카드 | C38: 육아 | D38: 장난감 | E38: 햇님토이 | F38: 1000 | G38: 지출
A39: 2020-12-24 | B39: 하나카드 | C39: 육아 | D39: 장난감 | E39: 햇님토이 | F39: 40000 | G39: 지출
A40: 2020-12-24 | B40: 하나카드 | C40: 자기계발 | D40: 도서/문구 | E40: 한길문고나운점 | F40: 25800 | G40: 지출
A41: 2020-12-24 | B41: 하나카드 | C41: 육아 | D41: 육아용품 | E41: 쿠팡(쿠페이) | F41: 7500 | G41: 지출
A42: 2020-12-24 | B42: 하나카드 | C42: 육아 | D42: 육아용품 | E42: 쿠팡(쿠페이) | F42: 48890 | G42: 지출
A43: 2020-12-24 | B43: 신한은행 | C43: 수입 | D43: 기타수입 | E43: 아동수당 | F43: 100000 | G43: 수입
A44: 2020-12-24 | B44: 하나카드 | C44: 식비 | D44: 간식비 | E44: 신일슈퍼 | F44: 4500 | G44: 지출
A45: 2020-12-23 | B45: 하나카드 | C45: 식비 | D45: 식자재 | E45: 경선정육점 | F45: 13500 | G45: 지출
A46: 2020-12-23 | B46: 삼성 | C46: 식비 | E46: DB손해보험 ((7/10)) | F46: 112459 | G46: 지출
A47: 2020-12-21 | B47: 신한은행 | C47: 보험 | D47: 손해보험 | E47: DB손 | F47: 14210 | G47: 지출
A48: 2020-12-21 | B48: 신한은행 | C48: 보험 | D48: 손해보험 | E48: DB손 | F48: 11330 | G48: 지출
A49: 2020-12-21 | B49: 하나카드 | C49: 식비 | D49: 외식 | E49: 유한회사알지피코리 | F49: 43000 | G49: 지출
A50: 2020-12-21 | B50: 하나카드 | C50: 주거 | D50: 렌탈비 | E50: 엘지전자(주)렌탈케 | F50: 20900 | G50: 지출
A51: 2020-12-20 | B51: 신한은행 | C51: 주거 | D51: 도시가스 | E51: 군산도시가스 | F51: 45180 | G51: 지출
A52: 2020-12-20 | B52: 신한은행 | C52: 기타 | D52: 기타 | E52: 쿠팡와우월회비 | F52: 2900 | G52: 지출
A53: 2020-12-19 | B53: 신한은행 | C53: 미분류 | E53: 0919~1218 | F53: 349 | G53: 수입
A54: 2020-12-15 | B54: 신한은행 | C54: 전월카드지출 | E54: 삼성카드주식회 | F54: 182488 | G54: 지출
A55: 2020-12-15 | B55: 하나카드 | C55: 주거 | D55: 렌탈비 | E55: 엘지전자(주)렌탈케 | F55: 44900 | G55: 지출
A56: 2020-12-14 | B56: 신한은행 | C56: 전월카드지출 | E56: 하나카드 | F56: 1541850 | G56: 지출
A57: 2020-12-14 | B57: 신한은행 | C57: 자동차 | D57: 보험/세금 | E57: 김인철_군산시 | F57: 181810 | G57: 지출
A58: 2020-12-14 | B58: 신한은행 | C58: 미분류 | F58: 68850 | G58: 지출
A59: 2020-12-11 | B59: 신한은행 | C59: 전월카드지출 | E59: 우리00 | F59: 689217 | G59: 지출
A60: 2020-12-11 | B60: 신한은행 | C60: 식비 | D60: 식자재 | E60: 카드 | F60: 6500 | G60: 지출
A61: 2020-12-11 | B61: 하나카드 | C61: 생활용품 | D61: 기타용품 | E61: 한길문고 | F61: 5000 | G61: 지출
A62: 2020-12-11 | B62: 신한은행 | C62: 육아 | D62: 교육비 | E62: 해나라유치원 | F62: 124500 | G62: 지출
A63: 2020-12-10 | B63: 하나카드 | C63: 육아 | D63: 육아용품 | E63: 쿠팡(쿠페이) 물티슈 | F63: 26180 | G63: 지출
A64: 2020-12-10 | B64: 신한은행 | C64: 수입 | D64: 월급 | E64: 엘비휴넷(주) | F64: 2650150 | G64: 수입
A65: 2020-12-10 | B65: 신한 | C65: 자기계발 | D65: 도서/문구 | E65: 리디북스 | F65: 6500 | G65: 지출
A66: 2020-12-10 | B66: 신한은행 | C66: 기타 | D66: 은행수수료 | E66: SMS | F66: 1000 | G66: 지출

Sheet 종합
A1: 2019년
A2: 월 | B2: 수입 | C2: 총지출 | D2: 잔액 | E2: 지출
E3: 저축_투자 | F3: 주거 | G3: 식비 | H3: 생활용품 | I3: 의복_미용 | J3: 건강 | K3: 자기계발 | L3: 자동차 | M3: 육아 | N3: 보험 | O3: 이벤트 | P3: 경조사 | Q3: 헌금 | R3: 기부 | S3: 통신비 | T3: 기타
A4: 1월 | B4: ='1월'!$N$13 -> 8335010 | C4: ='1월'!$D$21 -> 2721855 | D4: =B4-C4 -> 5613155 | E4: ='1월'!$D$5 -> 410000 | F4: ='1월'!$D$6 -> 365020 | G4: ='1월'!$D$7 -> 535140 | H4: ='1월'!$D$8 -> 195040 | I4: ='1월'!$D$9 -> 49000 | J4: ='1월'!$D$10 -> 27900 | K4: ='1월'!$D$11 -> 85591 | L4: ='1월'!$D$12 -> 160596 | M4: ='1월'!$D$13 -> 260980 | N4: ='1월'!$D$14 -> 42718 | O4: ='1월'!$D$15 -> 17000 | P4: ='1월'!$D$16 -> 0 | Q4: ='1월'!$D$17 -> 337000 | R4: ='1월'!$D$18 -> 95000 | S4: ='1월'!$D$19 -> 110870 | T4: ='1월'!$D$20 -> 30000
A5: 2월 | B5: ='2월'!$N$13 -> 2782070 | C5: ='2월'!$D$21 -> 2589035 | D5: 193035 | E5: ='2월'!$D$5 -> 110000 | F5: ='2월'!$D$6 -> 415900 | G5: ='2월'!$D$7 -> 726280 | H5: ='2월'!$D$8 -> 347010 | I5: ='2월'!$D$9 -> 10000 | J5: ='2월'!$D$10 -> 45900 | K5: ='2월'!$D$11 -> 141600 | L5: ='2월'!$D$12 -> 83497 | M5: ='2월'!$D$13 -> 60000 | N5: ='2월'!$D$14 -> 27730 | O5: ='2월'!$D$15 -> 0 | P5: ='2월'!$D$16 -> 32000 | Q5: ='2월'!$D$17 -> 250000 | R5: ='2월'!$D$18 -> 95000 | S5: ='2월'!$D$19 -> 193060 | T5: ='2월'!$D$20 -> 51058
A6: 3월 | B6: ='3월'!$N$13 -> 4822150 | C6: ='3월'!$D$21 -> 3167189 | D6: 1654961 | E6: ='3월'!$D$5 -> 100000 | F6: ='3월'!$D$6 -> 396850 | G6: ='3월'!$D$7 -> 936608 | H6: ='3월'!$D$8 -> 350530 | I6: ='3월'!$D$9 -> 10000 | J6: ='3월'!$D$10 -> 637190 | K6: ='3월'!$D$11 -> 6500 | L6: ='3월'!$D$12 -> 85092 | M6: ='3월'!$D$13 -> 316340 | N6: ='3월'!$D$14 -> 27730 | O6: ='3월'!$D$15 -> 0 | P6: ='3월'!$D$16 -> 11290 | Q6: ='3월'!$D$17 -> 0 | R6: ='3월'!$D$18 -> 95000 | S6: ='3월'!$D$19 -> 176330 | T6: ='3월'!$D$20 -> 17729
A7: 4월 | B7: ='4월'!$N$13 -> 3428070 | C7: ='4월'!$D$21 -> 2583738 | D7: 844332 | E7: ='4월'!$D$5 -> 0 | F7: ='4월'!$D$6 -> 322220 | G7: ='4월'!$D$7 -> 652840 | H7: ='4월'!$D$8 -> 25820 | I7: ='4월'!$D$9 -> 135900 | J7: ='4월'!$D$10 -> 20100 | K7: ='4월'!$D$11 -> 6500 | L7: ='4월'!$D$12 -> 41036 | M7: ='4월'!$D$13 -> 338590 | N7: ='4월'!$D$14 -> 27730 | O7: ='4월'!$D$15 -> 0 | P7: ='4월'!$D$16 -> 660500 | Q7: ='4월'!$D$17 -> 200000 | R7: ='4월'!$D$18 -> 0 | S7: ='4월'!$D$19 -> 137680 | T7: ='4월'!$D$20 -> 14822
A8: 5월 | B8: ='5월'!$N$13 -> 4670470 | C8: ='5월'!$D$21 -> 2724227 | D8: 1946243 | E8: ='5월'!$D$5 -> 110000 | F8: ='5월'!$D$6 -> 447590 | G8: ='5월'!$D$7 -> 628440 | H8: ='5월'!$D$8 -> 114130 | I8: ='5월'!$D$9 -> 17000 | J8: ='5월'!$D$10 -> 200300 | K8: ='5월'!$D$11 -> 6500 | L8: ='5월'!$D$12 -> 86686 | M8: ='5월'!$D$13 -> 586413 | N8: ='5월'!$D$14 -> 25540 | O8: ='5월'!$D$15 -> 0 | P8: ='5월'!$D$16 -> 200050 | Q8: ='5월'!$D$17 -> 0 | R8: ='5월'!$D$18 -> 0 | S8: ='5월'!$D$19 -> 247360 | T8: ='5월'!$D$20 -> 54218
A9: 6월 | B9: ='6월'!$N$13 -> 2800709 | C9: ='6월'!$D$21 -> 2808261 | D9: -7552 | E9: ='6월'!$D$5 -> 0 | F9: ='6월'!$D$6 -> 407170 | G9: ='6월'!$D$7 -> 849340 | H9: ='6월'!$D$8 -> 437525 | I9: ='6월'!$D$9 -> 17000 | J9: ='6월'!$D$10 -> 228044 | K9: ='6월'!$D$11 -> 24143 | L9: ='6월'!$D$12 -> 35466 | M9: ='6월'!$D$13 -> 371638 | N9: ='6월'!$D$14 -> 137999 | O9: ='6월'!$D$15 -> 0 | P9: ='6월'!$D$16 -> 130900 | Q9: ='6월'!$D$17 -> 0 | R9: ='6월'!$D$18 -> 0 | S9: ='6월'!$D$19 -> 120120 | T9: ='6월'!$D$20 -> 48916
A10: 7월 | B10: ='7월'!$N$13 -> 0 | C10: ='7월'!$D$21 -> 0 | D10: 0 | E10: ='7월'!$D$5 -> 0 | F10: ='7월'!$D$6 -> 0 | G10: ='7월'!$D$7 -> 0 | H10: ='7월'!$D$8 -> 0 | I10: ='7월'!$D$9 -> 0 | J10: ='7월'!$D$10 -> 0 | K10: ='7월'!$D$11 -> 0 | L10: ='7월'!$D$12 -> 0 | M10: ='7월'!$D$13 -> 0 | N10: ='7월'!$D$14 -> 0 | O10: ='7월'!$D$15 -> 0 | P10: ='7월'!$D$16 -> 0 | Q10: ='7월'!$D$17 -> 0 | R10: ='7월'!$D$18 -> 0 | S10: ='7월'!$D$19 -> 0 | T10: ='7월'!$D$20 -> 0
A11: 8월 | B11: ='8월'!$N$13 -> 0 | C11: ='8월'!$D$21 -> 0 | D11: 0 | E11: ='8월'!$D$5 -> 0 | F11: ='8월'!$D$6 -> 0 | G11: ='8월'!$D$7 -> 0 | H11: ='8월'!$D$8 -> 0 | I11: ='8월'!$D$9 -> 0 | J11: ='8월'!$D$10 -> 0 | K11: ='8월'!$D$11 -> 0 | L11: ='8월'!$D$12 -> 0 | M11: ='8월'!$D$13 -> 0 | N11: ='8월'!$D$14 -> 0 | O11: ='8월'!$D$15 -> 0 | P11: ='8월'!$D$16 -> 0 | Q11: ='8월'!$D$17 -> 0 | R11: ='8월'!$D$18 -> 0 | S11: ='8월'!$D$19 -> 0 | T11: ='8월'!$D$20 -> 0
A12: 9월 | B12: ='9월'!$N$13 -> 0 | C12: ='9월'!$D$21 -> 0 | D12: 0 | E12: ='9월'!$D$5 -> 0 | F12: ='9월'!$D$6 -> 0 | G12: ='9월'!$D$7 -> 0 | H12: ='9월'!$D$8 -> 0 | I12: ='9월'!$D$9 -> 0 | J12: ='9월'!$D$10 -> 0 | K12: ='9월'!$D$11 -> 0 | L12: ='9월'!$D$12 -> 0 | M12: ='9월'!$D$13 -> 0 | N12: ='9월'!$D$14 -> 0 | O12: ='9월'!$D$15 -> 0 | P12: ='9월'!$D$16 -> 0 | Q12: ='9월'!$D$17 -> 0 | R12: ='9월'!$D$18 -> 0 | S12: ='9월'!$D$19 -> 0 | T12: ='9월'!$D$20 -> 0
A13: 10월 | B13: ='10월'!$N$13 -> 0 | C13: ='10월'!$D$21 -> 0 | D13: 0 | E13: ='10월'!$D$5 -> 0 | F13: ='10월'!$D$6 -> 0 | G13: ='10월'!$D$7 -> 0 | H13: ='10월'!$D$8 -> 0 | I13: ='10월'!$D$9 -> 0 | J13: ='10월'!$D$10 -> 0 | K13: ='10월'!$D$11 -> 0 | L13: ='10월'!$D$12 -> 0 | M13: ='10월'!$D$13 -> 0 | N13: ='10월'!$D$14 -> 0 | O13: ='10월'!$D$15 -> 0 | P13: ='10월'!$D$16 -> 0 | Q13: ='10월'!$D$17 -> 0 | R13: ='10월'!$D$18 -> 0 | S13: ='10월'!$D$19 -> 0 | T13: ='10월'!$D$20 -> 0
A14: 11월 | B14: ='11월'!$N$13 -> 2786050 | C14: ='11월'!$D$21 -> 2414021 | D14: 372029 | E14: ='11월'!$D$5 -> 0 | F14: ='11월'!$D$6 -> 302080 | G14: ='11월'!$D$7 -> 720821 | H14: ='11월'!$D$8 -> 166080 | I14: ='11월'!$D$9 -> 0 | J14: ='11월'!$D$10 -> 34020 | K14: ='11월'!$D$11 -> 6500 | L14: ='11월'!$D$12 -> 71260 | M14: ='11월'!$D$13 -> 374650 | N14: ='11월'!$D$14 -> 25540 | O14: ='11월'!$D$15 -> 0 | P14: ='11월'!$D$16 -> 359170 | Q14: ='11월'!$D$17 -> 350000 | R14: ='11월'!$D$18 -> 0 | S14: ='11월'!$D$19 -> 0 | T14: ='11월'!$D$20 -> 3900
A15: 12월 | B15: ='12월'!$N$13 -> 2750150 | C15: ='12월'!$D$21 -> 1168569 | D15: 1581581 | E15: ='12월'!$D$5 -> 0 | F15: ='12월'!$D$6 -> 261920 | G15: ='12월'!$D$7 -> 268299 | H15: ='12월'!$D$8 -> 38070 | I15: ='12월'!$D$9 -> 0 | J15: ='12월'!$D$10 -> 0 | K15: ='12월'!$D$11 -> 32300 | L15: ='12월'!$D$12 -> 181810 | M15: ='12월'!$D$13 -> 356730 | N15: ='12월'!$D$14 -> 25540 | O15: ='12월'!$D$15 -> 0 | P15: ='12월'!$D$16 -> 0 | Q15: ='12월'!$D$17 -> 0 | R15: ='12월'!$D$18 -> 0 | S15: ='12월'!$D$19 -> 0 | T15: ='12월'!$D$20 -> 3900

Sheet 세부항목
A1: 결제방법 | B1: 수입 | C1: 저축_투자 | D1: 주거 | E1: 식비 | F1: 생활용품 | G1: 의복_미용 | H1: 건강 | I1: 자기계발 | J1: 자동차 | K1: 육아 | L1: 보험 | M1: 이벤트 | N1: 섬김비 | O1: 헌금 | P1: 기부 | Q1: 통신비 | R1: 기타
A2: 신한은행 | B2: 월급 | C2: 신한저축 | D2: 관리비 | E2: 식자재 | F2: 가전/가구 | G2: 의류/잡화 | H2: 병원/약국 | I2: 스터디 | J2: 주유비 | K2: 육아용품 | L2: 암보험 | M2: 소풍 | N2: 가족/친지 | O2: 십일조 | P2: CCC | Q2: 김인철 | R2: 택시비
A3: 하나카드 | B3: 기타수입 | C3: 저축 | D3: 도시가스 | E3: 간식비 | F3: 기타용품 | G3: 미용/헤어 | H3: 건강용품 | I3: 운동 | J3: 보험/세금 | K3: 교육비 | L3: 실비보험 | M3: 놀이방 | N3: 지인 | O3: 주일헌금 | P3: 컨패션 | Q3: 김진령 | R3: 택배비
A4: 신한카드 | B4: 이자 | D4: 대출이자 | E4: 외식 | G4: 세탁/수선 | I4: 도서/문구 | J4: 소모품/수리 | K4: 장난감 | L4: 손해보험 | M4: 기타 | N4: 기타 | O4: 셀모임 | P4: 치킨캠프 | R4: 기타
A5: 삼성카드 | D5: 수리/청소 | I5: 문화생활 | J5: 주차/통행료 | O5: 기타헌금 | P5: 섬김비
A6: 현금 | D6: 렌탈비 | I6: 기타
A7: 군산사랑 | D7: KT인터넷
I9: 자기계발 아래 '기타'항목을 추가해 보겠습니다.
D12: 안녕하세요 지금부터 대항목 소항목 추가 삭제방법을 알려드리겠습니다.
A16: 신한생명㈜ | B16: 18343837
A17: 키움증권 | B17: 23000000
A18: 농협 | B18: 2030673
A19: 미국주식 | B19: 120달러
A21: 농협,김진령 | B21: 361294
A22: 농협,김인철 | B22: 257911
A23: 농협,섬김비 | B23: 821692
A24: 농협,치캠 | B24: 292802 | C24: 공금
